Workbook

Sheet LookUp Tables (hidden)
A2: Override | D2: Activity | H2: County | I2: Number | J2: District | L2: Supplemental Code | O2: District | Q2: Other Override | S2: Project Description | V2: Vendor | W2: Oasis ID
A3: 0 | B3: NO | D3: A1 | E3: Section 401 Base I | F3: 1 | H3: Barbour | I3: 1 | J3: 7 | L3: 00 | M3: Not Applicable | O3: 1 | Q3: Yes | S3: Preservation | V3: AAA PAVING AND SEALING INC | W3: DOT20*41
A4: 1 | B4: YES | D4: A2 | E4: Section 401 25mm Superpave | F4: 2 | H4: Berkeley | I4: 2 | J4: 05 | L4: 01 | M4: Alternate | O4: 2 | Q4: No | S4: Minor Rehabilitation | V4: BELT PAVING INC | W4: DOT20*40
D5: A3 | E5: Section 401 Base II | F5: 3 | H5: Boone | I5: 3 | J5: 01 | L5: 02 | M5: Wye | O5: 3 | S5: Major Rehabilitation | V5: CAMDEN MATERIALS LLC | W5: DOT20*42
D6: A4 | E6: Section 401 Patch & Level | F6: 4 | H6: Braxton | I6: 4 | J6: 07 | L6: 03 | M6: Spur | O6: 4 | Q6: Other Override | S6: Reconstruction | V6: CAST & BAKER CORP | W6: DOT20*43
A7: Sign System | D7: A5 | E7: Section 401 Wearing IV | F7: 5 | H7: Brooke | I7: 5 | J7: 06 | L7: 04 | M7: North | O7: 5 | Q7: 1 | V7: C WILLIAM HETZER INC | W7: DOT20*44
A8: I | B8: 1 | D8: A6 | E8: Section 402 Wearing IV | F8: 6 | H8: Cabell | I8: 6 | J8: 02 | L8: 05 | M8: South | O8: 6 | Q8: 0 | V8: GREENBRIER EXCAVATING & PAVING | W8: DOT20*45
A9: US | B9: 2 | D9: A7 | E9: Section 401 19mm Superpave | F9: 7 | H9: Calhoun | I9: 7 | J9: 03 | L9: 06 | M9: East | O9: 7 | V9: GREER INDUSTRIES INC | W9: DOT20*46
A10: WV | B10: 3 | D10: A8 | E10: Section 401 Scratch Course | F10: 8 | H10: Clay | I10: 8 | J10: 01 | L10: 07 | M10: West | O10: 8 | V10: JEFFERSON ASPHALT PRODUCTS CO | W10: DOT20*47
A11: CO | B11: 4 | D11: A9 | E11: Section 402 9.5mm Superpave | F11: 9 | H11: Doddridge | I11: 9 | J11: 04 | L11: 08 | M11: Business | O11: 9 | V11: J F ALLEN CO | W11: DOT20*48
A12: PF | B12: 6 | D12: A10 | E12: Section 401 Wearing I | F12: 10 | H12: Fayette | I12: 10 | J12: 09 | L12: 09 | M12: North Bound(Business) | O12: 10 | V12: KELLY PAVING INC | W12: DOT20*49
A13: HA | B13: 8 | D13: A11 | E13: Section 402 Wearing I | F13: 11 | H13: Gilmer | I13: 11 | J13: 07 | L13: 10 | M13: South Bound(Business) | V13: KLUG BROS CO | W13: DOT20*50
D14: A12 | E14: Section 401 4.75mm Superpave | F14: 12 | H14: Grant | I14: 12 | J14: 05 | L14: 11 | M14: East Bound(Business) | Q14: Override List | V14: MEADOWS STONE & PAVING INC | W14: DOT20*51
A15: AF Table | D15: A13 | E15: Section 402 4.75mm Superpave | F15: 13 | H15: Greenbrier | I15: 13 | J15: 09 | L15: 12 | M15: West Bound(Business) | Q15: Vendor A | V15: NEW ENTERPRISE STONE & LIME CO INC | W15: DOT20*52
A16: 0 | B16: 0 | D16: A14 | E16: Section 401 Wearing III | F16: 14 | H16: Hampshire | I16: 14 | J16: 05 | L16: 13 | M16: Truck Route | Q16: Vendor B | V16: NLS PAVING INC | W16: DOT20*53
A17: 250 | B17: 1 | D17: A15 | E17: Section 402 Wearing III | F17: 15 | H17: Hancock | I17: 15 | J17: 06 | L17: 14 | M17: Bypass | Q17: Vendor C | V17: P & W EXCAVATING INC | W17: DOT20*54
A18: 1000 | B18: 2 | D18: P | E18: Asphalt Section 401 - 12.5mm Superpave | F18: 16 | H18: Hardy | I18: 16 | J18: 05 | L18: 15 | M18: Loop | Q18: Vendor D | V18: STONE ASPHALT LLC | W18: DOT20*55
A19: 2500 | B19: 3 | D19: Q | E19: Asphalt Section 402 - 12.5mm Superpave | F19: 17 | H19: Harrison | I19: 17 | J19: 04 | L19: 16 | M19: Toll | Q19: Vendor E | V19: W L CONSTRUCTION & PAVING INC. | W19: DOT20*56
A20: 5000 | B20: 4 | D20: R | E20: Plant Run | F20: 18 | H20: Jackson | I20: 18 | J20: 03 | L20: 17 | M20: Ramp | Q20: Vendor F | V20: WV PAVING INC | W20: DOT20*57
D21: S1 | E21: Surcharge for PG64H-22 Binder | F21: 19 | H21: Jefferson | I21: 19 | J21: 05 | L21: 18 | M21: Other | Q21: Vendor G
A22: S Table | D22: S2 | E22: Surcharge for PG64E-22 Binder | F22: 20 | H22: Kanawha | I22: 20 | J22: 01 | L22: 19 | M22: City Streets - Non-State | Q22: Vendor H
A23: 0 | B23: 0 | D23: S3 | E23: ESAL Surcharge - 3 million to 20 million ESALs | F23: 21 | H23: Lewis | I23: 21 | J23: 07 | L23: 20 | M23: Roads Under Construction | Q23: Vendor I
A24: 1000 | B24: 1 | D24: S4 | E24: ESAL Surcharge - Greater than 20 million ESALs | F24: 22 | H24: Lincoln | I24: 22 | J24: 02 | L24: 21 | M24: Footbridges | Q24: Vendor J
A25: 2000 | B25: 2 | D25: T1 | E25: Off Season first day | F25: 23 | H25: Logan | I25: 23 | J25: 02 | L25: 22 | M25: Historical Bridges | Q25: Vendor K
A26: 3000 | B26: 3 | D26: T2 | E26: Off Season additional day | F26: 24 | H26: McDowell | I26: 24 | J26: 10 | Q26: Vendor L
D27: T3 | E27: Base 1 Shoulder Paving 201 to 500 | F27: 31 | H27: Marion | I27: 25 | J27: 04 | Q27: Vendor M
A28: TUW Table | D28: T4 | E28: Base 1 Shoulder Paving 500+ | F28: 32 | H28: Marshall | I28: 26 | J28: 06 | Q28: Vendor N
A29: 0 | B29: 0 | D29: U1 | E29: Base 2 Shoulder Paving 0 to 100 | F29: 33 | H29: Mason | I29: 27 | J29: 01 | Q29: Vendor O
A30: 100 | B30: 1 | D30: U2 | E30: Base 2 Shoulder Paving 101 to 200 | F30: 34 | H30: Mercer | I30: 28 | J30: 10 | Q30: Vendor P
A31: 200 | B31: 2 | D31: U3 | E31: Base 2 Shoulder Paving 201 to 500 | F31: 35 | H31: Mineral | I31: 29 | J31: 05 | Q31: Vendor Q
A32: 500 | B32: 3 | D32: U4 | E32: Base 2 Shoulder Paving 500+ | F32: 36 | H32: Mingo | I32: 30 | J32: 02 | Q32: Vendor R
D33: V1 | E33: Haul first ton mile | F33: 37 | H33: Monongalia | I33: 31 | J33: 04 | Q33: Vendor S
D34: V2 | E34: Haul each additional mile | F34: 38 | H34: Monroe | I34: 32 | J34: 09 | Q34: Vendor T
D35: W1 | E35: Lay Down 0 to 100 tons | F35: 39 | H35: Morgan | I35: 33 | J35: 05 | Q35: Vendor U
D36: W2 | E36: Lay Down 101 to 200 tons | F36: 40 | H36: Nicholas | I36: 34 | J36: 09 | Q36: Vendor V
D37: W3 | E37: Lay Down 201 to 500 tons | F37: 41 | H37: Ohio | I37: 35 | J37: 06 | Q37: Vendor W
D38: W4 | E38: Lay Down 500 and up | F38: 42 | H38: Pendleton | I38: 36 | J38: 08 | Q38: Vendor X
D39: X | E39: Cleaning & Sweeping | F39: 43 | H39: Pleasants | I39: 37 | J39: 03 | Q39: Vendor Y
D40: Y | E40: Bituminous Material | F40: 44 | H40: Pocahontas | I40: 38 | J40: 08 | Q40: Vendor Z
D41: Z | E41: Daytime Paving mobilization | F41: 45 | H41: Preston | I41: 39 | J41: 04 | Q41: Vendor AA
D42: AA | E42: Nighttime Paving Mobilization | F42: 46 | H42: Putnam | I42: 40 | J42: 01 | Q42: Vendor AB
D43: AB1 | E43: Off Season first day | F43: 47 | H43: Raleigh | I43: 41 | J43: 10 | Q43: Vendor AC
D44: AB2 | E44: Off Season additional day | F44: 48 | H44: Randolph | I44: 42 | J44: 08 | Q44: Vendor AD
D45: AC | E45: Additional Heel-In Joints | F45: 49 | H45: Ritchie | I45: 43 | J45: 03 | Q45: Vendor AE
D46: AD | E46: Skip Paving Surcharge | F46: 50 | H46: Roane | I46: 44 | J46: 03
D47: AE | E47: Mobilization for Profiling | F47: 51 | H47: Summers | I47: 45 | J47: 09
D48: AF1 | E48: Milling Less than 250 | F48: 52 | H48: Taylor | I48: 46 | J48: 04
D49: AF2 | E49: Milling 250 less than 500 | F49: 53 | H49: Tucker | I49: 47 | J49: 08
D50: AF3 | E50: Milling 500 less than 1000 | F50: 54 | H50: Tyler | I50: 48 | J50: 06
D51: AF4 | E51: Milling 1000 less than 2500 | F51: 55 | H51: Upshur | I51: 49 | J51: 07
D52: AF5 | E52: Milling 2500 less than 5000 | F52: 56 | H52: Wayne | I52: 50 | J52: 02
D53: AF6 | E53: Milling 5000 and greater | F53: 57 | H53: Webster | I53: 51 | J53: 07
D54: AG | E54: Pilot w/Driver | F54: 58 | H54: Wetzel | I54: 52 | J54: 06
D55: AH | E55: Traffic Control | F55: 59 | H55: Wirt | I55: 53 | J55: 03
D56: AI | E56: Flagger | F56: 60 | H56: Wood | I56: 54 | J56: 03
D57: AJ | E57: Arrow Board | F57: 61 | H57: Wyoming | I57: 55 | J57: 10
D58: AK | E58: Rumble Strips | F58: 62
D59: AL | E59: Mobilization for rumble strips | F59: 63
D60: AM | E60: Pavement Repair | F60: 64
D61: AN | E61: Surcharge for Parking Lot | F61: 65

Sheet Instructions
A1: Instructions
A2: 1. Go to 'Order Details' sheet (Note: all dark green boxes indicate a user input area, all cells containing a note have red indicators in top right corner, scroll over to display note) (Note: some cells contain drop down lists for selections, choose a selection from the list, do not type in entry)
A3: 2. Select a county from the drop down menu
A4: 3. Select the "Get Bidders" button
A5: 4. Select the "Clear Data" button to clear any existing, old data in the sheet
A6: 5. Enter the route information into the Route box
A7: 6. Enter the beginning mile post (BMP), end mile post (EMP), longitude, latitude, and a beginning and end item description
A8: 7. Enter the length, average width, average thickness, and total number of lanes
A9: 8. Enter the average shoulder width, excavation depth, and average shoulder thickness along with selecting a Project Title and providing a Project Description
A10: 9. Under "Item Quantities," enter each quantity into the green blank (Note: if no quantity is needed of a certain item, can either enter 0 or leave blank) (Note: the sheet will automatically generate estimated asphalt quantities, however)
A11: 10. View the 'Vendor Totals' sheet for a complete cost breakdown of each company, bid prices for each item, and lowest bidder
A12: 11. The 'Vendor Totals' sheet will display the lowest, complete bid; meaning the vendor has a bid for each of the input quantities needed.
A13: 12. View the 'Order Summary' sheet for a complete list of unit bid prices for the lowest bidder from the 'Vendor Totals' sheet.
A14: 13. If you'd like to perform a maual override selection of a vendor from the available group of vendors that is not the lowest bidder, you can do so on the 'Order Summary' sheet
A15: 14. To perform a manual override pick a vendor using the drop down box at the top of the 'Order Summary' sheet, the data below will then be automatically filled in and a total will be displayed at the bottom. (Note: vendor identifications are found at the top of the 'Vendor Totals' sheet)
A16: 15. To go back and display the lowest bidder on the 'Order Summary' sheet simply select the blank box from the drop down box on the sheet
A17: 16. The 'Order Summary' sheet is fit to a single page for printing ease
A18: 17. The PJ-101 form is automatically filled in with data from the 'Order Details' sheet and can either be completed in excel or printed and completed by hand by filling in all green spaces
A19: 18. The Field Personnel sheet is also filled in automatically with quantities and project data and can either completed in excel or printed out for completion

Sheet Basic Price Adjustment
A1: 2024 Hot Mix Asphalt Contract (Material and Pickup by WVDOH Forces Only)
A2: Unit Bid Price Adjustment
C3: Asphalt | D3: Fuel
A4: Asphalt Price Index at Month of Bid Opening October 2023, Ib | B4: Fuel Price Index at Month of Bid Opening October 2023, Ib | C4: 605 | D4: 3.3066
A5: ='[3]Basic Price Adjustment'!$A5 -> (Enter Month of Record) 2024 Price Index, Ip | B5: =A5 -> (Enter Month of Record) 2024 Price Index, Ip | C5: ='[3]Basic Price Adjustment'!$C5 -> 0 | D5: ='[3]Basic Price Adjustment'!$D5 -> 0 | F5: Monthly Fuel/Asphalt Price Link
A8: Asphalt Cement Content, AC
A10: 1 | B10: Section 401 - Base I | C10: =3.9/100 -> 0.039
A11: 2 | B11: Section 401 - 25mm Superpave | C11: =4.4/100 -> 0.044
A12: 3 | B12: Section 401 - Base II | C12: =5/100 -> 0.05
A13: 4 | B13: Section 401 - Patch & Level | C13: =5/100 -> 0.05
A14: 5 | B14: Section 401 - Wearing IV | C14: =5.2/100 -> 0.052
A15: 6 | B15: Section 402 - Wearing IV | C15: =5.1/100 -> 0.051
A16: 7 | B16: Section 401 - 19mm Superpave | C16: =4.7/100 -> 0.047
A17: 8 | B17: Section 401 - Scratch Course | C17: =6.2/100 -> 0.062
A18: 9 | B18: Section 402 - 9.5mm Superpave | C18: =6.1/100 -> 0.061
A19: 10 | B19: Section 401 - Wearing I | C19: =6.1/100 -> 0.061
A20: 11 | B20: Section 402 - Wearing I | C20: =6/100 -> 0.06
A21: 12 | B21: Section 401 - 4.75mm Superpave | C21: =7.6/100 -> 0.076
A22: 13 | B22: Section 402 - 4.75mm Superpave | C22: =7.2/100 -> 0.072
A23: 14 | B23: Section 401 - Wearing III | C23: =7.3/100 -> 0.073
A24: 15 | B24: Section 402 - Wearing III | C24: =7.5/100 -> 0.075
A25: 16 | B25: Section 401 - 12.5mm Superpave | C25: =5.6/100 -> 0.056
A26: 17 | B26: Section 402 - 12.5mm Superpave | C26: =5.6/100 -> 0.056
A27: 18 | B27: Plant Run | C27: =5.7/100 -> 0.057
A29: The asphalt prices will be adjusted as follows: | B29: The fuel prices will be adjusted as follows:
A30: (Ip - Ib) x AC / 100 | B30: (Ip/Ib - 1) x Ib x C | C30: Where C= | D30: 0.43
A32: Adjustment to Price* at Bid Opening | C32: Asphalt | D32: Fuel | E32: Total
A33: 1 | B33: Section 401 - Base I | C33: =ROUND(($C$5-$C$4)*C10,2) -> -23.6 | D33: =ROUND((($D$5/$D$4)-1)*$D$4*0.43,2) -> -1.42 | E33: =C33+D33 -> -25.02
A34: 2 | B34: Section 401 - 25mm Superpave | C34: -26.62 | D34: =ROUND((($D$5/$D$4)-1)*$D$4*0.43,2) -> -1.42 | E34: -28.04
A35: 3 | B35: Section 401 - Base II | C35: -30.25 | D35: -1.42 | E35: -31.67
A36: 4 | B36: Section 401 - Patch & Level | C36: -30.25 | D36: -1.42 | E36: -31.67
A37: 5 | B37: Section 401 - Wearing IV | C37: -31.46 | D37: -1.42 | E37: -32.88
A38: 6 | B38: Section 402 - Wearing IV | C38: -30.86 | D38: -1.42 | E38: -32.28
A39: 7 | B39: Section 401 - 19mm Superpave | C39: -28.44 | D39: -1.42 | E39: -29.86
A40: 8 | B40: Section 401 - Scratch Course | C40: -37.51 | D40: -1.42 | E40: -38.93
A41: 9 | B41: Section 402 - 9.5mm Superpave | C41: -36.91 | D41: -1.42 | E41: -38.33
A42: 10 | B42: Section 401 - Wearing I | C42: -36.91 | D42: -1.42 | E42: -38.33
A43: 11 | B43: Section 402 - Wearing I | C43: -36.3 | D43: -1.42 | E43: -37.72
A44: 12 | B44: Section 401 - 4.75mm Superpave | C44: -45.98 | D44: -1.42 | E44: -47.4
A45: 13 | B45: Section 402 - 4.75mm Superpave | C45: -43.56 | D45: -1.42 | E45: -44.98
A46: 14 | B46: Section 401 - Wearing III | C46: -44.17 | D46: -1.42 | E46: -45.59
A47: 15 | B47: Section 402 - Wearing III | C47: -45.38 | D47: -1.42 | E47: -46.8
A48: 16 | B48: Section 401 - 12.5mm Superpave | C48: -33.88 | D48: -1.42 | E48: -35.3
A49: 17 | B49: Section 402 - 12.5mm Superpave | C49: -33.88 | D49: -1.42 | E49: -35.3
A50: 18 | B50: Plant Run | C50: -34.49 | D50: -1.42 | E50: -35.91
A53: *per ton of asphalt
A54: If you prepare Receiving Reports, please click on the District Tab below to get the correct adjusted Asphalt Price Index.

Sheet Data (hidden)
A1: 0 | B1: 1 | C1: 2 | D1: 3 | E1: 4 | F1: 5 | G1: 6 | H1: 7 | I1: 8 | J1: 9 | K1: 10 | L1: 11 | M1: 12 | N1: 13 | O1: 14 | P1: 15 | Q1: 16 | R1: 17 | S1: 18 | T1: 19 | U1: 20 | V1: 21 | W1: 22 | X1: 23 | Y1: 24 | Z1: 25 | AA1: 26 | AB1: 27 | AC1: 28 | AD1: 29 | AE1: 30
A2: MASTER BID TABLE (Material)
A3: District | B3: PID | C3: Vendor | D3: Location | E3: Plant Location | F3: City | G3: State | H3: 1 | I3: 2 | J3: 3 | K3: 4 | L3: 5 | M3: 6 | N3: 7 | O3: 8 | P3: 9 | Q3: 10 | R3: 11 | S3: 12 | T3: 13 | U3: 14 | V3: 15 | W3: 16 | X3: 17 | Y3: 18 | Z3: 19 | AA3: 20 | AB3: 21 | AC3: 22 | AD3: 23 | AE3: 24
A4: 1 | B4: 101 | C4: AMERICAN ASPHALT | D4: 2334 Rt 52, Kenova, WV 25530 | E4: KENOVA | F4: Kenova | G4: WV | H4: 73.99 | I4: 74.99 | J4: 76.95 | K4: 76.95 | L4: 77.68 | M4: 84.41 | N4: 77.25 | O4: 84.56 | P4: 89.03 | Q4: 84.56 | R4: 88.83 | S4: 110 | T4: 110 | U4: 105 | V4: 110 | W4: 89.11 | X4: 89.11 | Y4: 84.56 | Z4: 5 | AA4: 12.5 | AB4: 0 | AC4: 0 | AD4: 3500 | AE4: 1000
A5: 1 | B5: 102 | C5: AMERICAN ASPHALT | D5: 484 Industrial Rd, St Albans, WV 25177 | E5: ST ALBANS | F5: St Albans | G5: WV | H5: 74.51 | I5: 75.51 | J5: 77.54 | K5: 77.54 | L5: 78.59 | M5: 85.91 | N5: 79.19 | O5: 85.39 | P5: 89.89 | Q5: 85.39 | R5: 89.25 | S5: 110 | T5: 110 | U5: 105 | V5: 110 | W5: 89.11 | X5: 89.11 | Y5: 85.39 | Z5: 5 | AA5: 12.5 | AB5: 0 | AC5: 0 | AD5: 3500 | AE5: 1000
A6: 1 | B6: 103 | C6: GREENBRIER EXCAVATING | D6: 232 Rambler Rd, Lewisburg, WV 24901 | E6: LEWISBURG | F6: Lewisburg | G6: WV | H6: 62.32 | I6: 0 | J6: 72.87 | K6: 72.87 | L6: 73.61 | M6: 0 | N6: 0 | O6: 76.18 | P6: 0 | Q6: 75.92 | R6: 84.55 | S6: 0 | T6: 0 | U6: 0 | V6: 0 | W6: 0 | X6: 0 | Y6: 75.92 | Z6: 0 | AA6: 0 | AB6: 0 | AC6: 0 | AD6: 3000 | AE6: 750
A7: 1 | B7: 104 | C7: JF ALLEN | D7: 320 Alcon Rd, Buckhannon, WV 26201 | E7: BUCKHANNON | F7: Buckhannon | G7: WV | H7: 68.95 | I7: 72.88 | J7: 73.2 | K7: 73.2 | L7: 73.41 | M7: 77.09 | N7: 73.2 | O7: 78.08 | P7: 82.92 | Q7: 78.08 | R7: 83.06 | S7: 97.95 | T7: 100.45 | U7: 94.46 | V7: 97.68 | W7: 83.71 | X7: 86.38 | Y7: 77.74 | Z7: 4.75 | AA7: 12.5 | AB7: 10 | AC7: 10 | AD7: 3500 | AE7: 1500
A8: 1 | B8: 105 | C8: JF ALLEN | D8: 3105 Harrison Ave., Elkins WV 26257 | E8: ELKINS | F8: Elkins | G8: WV | H8: 63.28 | I8: 62.87 | J8: 68.45 | K8: 68.45 | L8: 69.51 | M8: 72.37 | N8: 68.45 | O8: 77.23 | P8: 77.97 | Q8: 75.37 | R8: 77.97 | S8: 86 | T8: 87.6 | U8: 87.63 | V8: 91.28 | W8: 77.51 | X8: 80.84 | Y8: 77.08 | Z8: 4.75 | AA8: 12.5 | AB8: 10 | AC8: 10 | AD8: 3500 | AE8: 1500
A9: 1 | B9: 106 | C9: JF ALLEN | D9: 5856 Saltwell Rd, Bridgeport, WV 26330 | E9: SALTWELL | F9: Bridgeport | G9: WV | H9: 69.64 | I9: 73.33 | J9: 73.33 | K9: 73.33 | L9: 73.41 | M9: 77.09 | N9: 73.33 | O9: 78.08 | P9: 82.92 | Q9: 78.08 | R9: 83.06 | S9: 104.95 | T9: 107.59 | U9: 103.17 | V9: 104.2 | W9: 87.08 | X9: 89.67 | Y9: 79.64 | Z9: 4.75 | AA9: 12.5 | AB9: 10 | AC9: 10 | AD9: 3500 | AE9: 1500
A10: 1 | B10: 107 | C10: MEADOWS STONE | D10: OLD B&O RAILROAD YARD, GASSAWAY WV 26624 | E10: GASSAWAY | F10: Gassaway | G10: WV | H10: 72 | I10: 79 | J10: 77 | K10: 77 | L10: 77 | M10: 92 | N10: 79 | O10: 80.5 | P10: 82.5 | Q10: 80.5 | R10: 100 | S10: 112 | T10: 124 | U10: 110 | V10: 121 | W10: 80 | X10: 102 | Y10: 80.5 | Z10: 8 | AA10: 12 | AB10: 5 | AC10: 10 | AD10: 3500 | AE10: 900
A11: 1 | B11: 108 | C11: KELLY PAVING | D11: 123 Dodd Drive, St. Marys WV 26170 | E11: PLANT 14 | F11: St Marys | G11: WV | H11: 80 | I11: 86 | J11: 84 | K11: 84 | L11: 85 | M11: 96 | N11: 86 | O11: 90 | P11: 100 | Q11: 90 | R11: 95 | S11: 0 | T11: 0 | U11: 98 | V11: 0 | W11: 92 | X11: 100 | Y11: 90 | Z11: 6 | AA11: 15 | AB11: 0.3 | AC11: 0.45 | AD11: 5000 | AE11: 500
A12: 1 | B12: 109 | C12: WV PAVING | D12: 2902 Charles Ave Dunbar, WV 25064 | E12: DUNBAR | F12: Dunbar | G12: WV | H12: 85.5 | I12: 85.5 | J12: 87 | K12: 87 | L12: 89 | M12: 0 | N12: 90.5 | O12: 94.5 | P12: 106.5 | Q12: 94.5 | R12: 103.5 | S12: 0 | T12: 0 | U12: 112.5 | V12: 0 | W12: 102.5 | X12: 102.5 | Y12: 94.5 | Z12: 4 | AA12: 12 | AB12: 2 | AC12: 5 | AD12: 4000 | AE12: 1500
A13: 1 | B13: 110 | C13: WV PAVING | D13: Rt. 7 N, Gallipolis OH 45631 | E13: GALLIPOLIS | F13: Gallipolis | G13: OH | H13: 84 | I13: 0 | J13: 88 | K13: 88 | L13: 90 | M13: 0 | N13: 0 | O13: 98 | P13: 0 | Q13: 98 | R13: 0 | S13: 0 | T13: 0 | U13: 0 | V13: 0 | W13: 0 | X13: 0 | Y13: 98 | Z13: 4 | AA13: 12 | AB13: 2 | AC13: 5 | AD13: 4000 | AE13: 1500
A14: 1 | B14: 111 | C14: WV PAVING | D14: 40222 Ohio River Road, Huntington, WV 25702 | E14: HUNTINGTON | F14: Huntington | G14: WV | H14: 84.75 | I14: 84.75 | J14: 88.5 | K14: 88.5 | L14: 90.5 | M14: 100 | N14: 89.5 | O14: 98 | P14: 108.5 | Q14: 98 | R14: 107 | S14: 0 | T14: 0 | U14: 0 | V14: 0 | W14: 104.5 | X14: 104.5 | Y14: 98 | Z14: 4 | AA14: 12 | AB14: 2 | AC14: 5 | AD14: 4000 | AE14: 1500
A15: 1 | B15: 112 | C15: WV PAVING | D15: Wright Road Poca, WV 25159 | E15: POCA | F15: Poca | G15: WV | H15: 85.5 | I15: 85.5 | J15: 87 | K15: 87 | L15: 89 | M15: 0 | N15: 90.5 | O15: 94.5 | P15: 106.5 | Q15: 94.5 | R15: 103.5 | S15: 0 | T15: 0 | U15: 112.5 | V15: 0 | W15: 102.5 | X15: 102.5 | Y15: 94.5 | Z15: 4 | AA15: 12 | AB15: 2 | AC15: 5 | AD15: 4000 | AE15: 1500
A16: 1 | B16: 113 | C16: WV PAVING | D16: 2187 Ripley Rd, Ripley, WV 25271 | E16: RIPLEY | F16: Ripley | G16: WV | H16: 0 | I16: 0 | J16: 90 | K16: 90 | L16: 92 | M16: 0 | N16: 0 | O16: 95.5 | P16: 0 | Q16: 95.5 | R16: 0 | S16: 0 | T16: 0 | U16: 106 | V16: 0 | W16: 0 | X16: 0 | Y16: 95.5 | Z16: 4 | AA16: 12 | AB16: 2 | AC16: 5 | AD16: 4000 | AE16: 1500
A17: 1 | B17: 114 | C17: WV PAVING | D17: 2816 Frontage Rd, Summersville, WV 26651 | E17: SUMMERSVILLE | F17: Summersville | G17: WV | H17: 94 | I17: 94 | J17: 98 | K17: 98 | L17: 100 | M17: 0 | N17: 98.5 | O17: 108 | P17: 110 | Q17: 108 | R17: 110 | S17: 0 | T17: 0 | U17: 117 | V17: 0 | W17: 105 | X17: 105 | Y17: 108 | Z17: 4 | AA17: 12 | AB17: 2 | AC17: 5 | AD17: 4000 | AE17: 1500
A18: 2 | B18: 201 | C18: AMERICAN ASPHALT | D18: 2334 Rt 52, Kenova, WV 25530 | E18: KENOVA | F18: Kenova | G18: WV | H18: 73.99 | I18: 74.99 | J18: 76.95 | K18: 76.95 | L18: 77.68 | M18: 84.41 | N18: 77.25 | O18: 84.56 | P18: 89.03 | Q18: 84.56 | R18: 88.83 | S18: 110 | T18: 110 | U18: 105 | V18: 110 | W18: 89.11 | X18: 89.11 | Y18: 84.56 | Z18: 5 | AA18: 12.5 | AB18: 0 | AC18: 0 | AD18: 3500 | AE18: 1000
A19: 2 | B19: 202 | C19: AMERICAN ASPHALT | D19: 484 Industrial Rd, St Albans, WV 25177 | E19: ST ALBANS | F19: St Albans | G19: WV | H19: 74.51 | I19: 75.51 | J19: 77.54 | K19: 77.54 | L19: 78.59 | M19: 85.91 | N19: 79.19 | O19: 85.39 | P19: 89.89 | Q19: 85.39 | R19: 89.25 | S19: 110 | T19: 110 | U19: 105 | V19: 110 | W19: 89.11 | X19: 89.11 | Y19: 85.39 | Z19: 5 | AA19: 12.5 | AB19: 0 | AC19: 0 | AD19: 3500 | AE19: 1000
A20: 2 | B20: 203 | C20: KELLY PAVING | D20: 123 Dodd Drive, St. Marys WV 26170 | E20: PLANT 14 | F20: St Marys | G20: WV | H20: 80 | I20: 86 | J20: 84 | K20: 84 | L20: 85 | M20: 96 | N20: 86 | O20: 90 | P20: 100 | Q20: 90 | R20: 95 | S20: 0 | T20: 0 | U20: 98 | V20: 0 | W20: 92 | X20: 100 | Y20: 90 | Z20: 6 | AA20: 15 | AB20: 0.3 | AC20: 0.45 | AD20: 5000 | AE20: 500
A21: 2 | B21: 204 | C21: GREENBRIER EXCAVATING | D21: 232 Rambler Rd, Lewisburg, WV 24901 | E21: LEWISBURG | F21: Lewisburg | G21: WV | H21: 62.32 | I21: 0 | J21: 72.87 | K21: 72.87 | L21: 73.61 | M21: 0 | N21: 0 | O21: 76.18 | P21: 0 | Q21: 75.92 | R21: 84.55 | S21: 0 | T21: 0 | U21: 0 | V21: 0 | W21: 0 | X21: 0 | Y21: 75.92 | Z21: 0 | AA21: 0 | AB21: 0 | AC21: 0 | AD21: 3000 | AE21: 750
A22: 2 | B22: 205 | C22: JF ALLEN | D22: 320 Alcon Rd, Buckhannon, WV 26201 | E22: BUCKHANNON | F22: Buckhannon | G22: WV | H22: 68.95 | I22: 72.88 | J22: 73.2 | K22: 73.2 | L22: 73.41 | M22: 77.09 | N22: 73.2 | O22: 78.08 | P22: 82.92 | Q22: 78.08 | R22: 83.06 | S22: 97.95 | T22: 100.45 | U22: 94.46 | V22: 97.68 | W22: 83.71 | X22: 86.38 | Y22: 77.74 | Z22: 4.75 | AA22: 12.5 | AB22: 10 | AC22: 10 | AD22: 3500 | AE22: 1500
A23: 2 | B23: 206 | C23: JF ALLEN | D23: 3105 Harrison Ave., Elkins WV 26257 | E23: ELKINS | F23: Elkins | G23: WV | H23: 63.28 | I23: 62.87 | J23: 68.45 | K23: 68.45 | L23: 69.51 | M23: 72.37 | N23: 68.45 | O23: 77.23 | P23: 77.97 | Q23: 75.37 | R23: 77.97 | S23: 86 | T23: 87.6 | U23: 87.63 | V23: 91.28 | W23: 77.51 | X23: 80.84 | Y23: 77.08 | Z23: 4.75 | AA23: 12.5 | AB23: 10 | AC23: 10 | AD23: 3500 | AE23: 1500
A24: 2 | B24: 207 | C24: JF ALLEN | D24: 5856 Saltwell Rd, Bridgeport, WV 26330 | E24: SALTWELL | F24: Bridgeport | G24: WV | H24: 69.64 | I24: 73.33 | J24: 73.33 | K24: 73.33 | L24: 73.41 | M24: 77.09 | N24: 73.33 | O24: 78.08 | P24: 82.92 | Q24: 78.08 | R24: 83.06 | S24: 104.95 | T24: 107.59 | U24: 103.17 | V24: 104.2 | W24: 87.08 | X24: 89.67 | Y24: 79.64 | Z24: 4.75 | AA24: 12.5 | AB24: 10 | AC24: 10 | AD24: 3500 | AE24: 1500
A25: 2 | B25: 208 | C25: WV PAVING | D25: 2902 Charles Ave Dunbar, WV 25064 | E25: DUNBAR | F25: Dunbar | G25: WV | H25: 85.5 | I25: 85.5 | J25: 87 | K25: 87 | L25: 89 | M25: 0 | N25: 90.5 | O25: 94.5 | P25: 106.5 | Q25: 94.5 | R25: 103.5 | S25: 0 | T25: 0 | U25: 112.5 | V25: 0 | W25: 102.5 | X25: 102.5 | Y25: 94.5 | Z25: 4 | AA25: 12 | AB25: 2 | AC25: 5 | AD25: 4000 | AE25: 1500
A26: 2 | B26: 209 | C26: WV PAVING | D26: Rt. 7 N, Gallipolis OH 45631 | E26: GALLIPOLIS | F26: Gallipolis | G26: OH | H26: 84 | I26: 0 | J26: 88 | K26: 88 | L26: 90 | M26: 0 | N26: 0 | O26: 98 | P26: 0 | Q26: 98 | R26: 0 | S26: 0 | T26: 0 | U26: 0 | V26: 0 | W26: 0 | X26: 0 | Y26: 98 | Z26: 4 | AA26: 12 | AB26: 2 | AC26: 5 | AD26: 4000 | AE26: 1500
A27: 2 | B27: 210 | C27: WV PAVING | D27: 40222 Ohio River Road, Huntington, WV 25702 | E27: HUNTINGTON | F27: Huntington | G27: WV | H27: 84.75 | I27: 84.75 | J27: 88.5 | K27: 88.5 | L27: 90.5 | M27: 100 | N27: 89.5 | O27: 98 | P27: 108.5 | Q27: 98 | R27: 107 | S27: 0 | T27: 0 | U27: 0 | V27: 0 | W27: 104.5 | X27: 104.5 | Y27: 98 | Z27: 4 | AA27: 12 | AB27: 2 | AC27: 5 | AD27: 4000 | AE27: 1500
A28: 2 | B28: 211 | C28: WV PAVING | D28: Wright Road Poca, WV 25159 | E28: POCA | F28: Poca | G28: WV | H28: 85.5 | I28: 85.5 | J28: 87 | K28: 87 | L28: 89 | M28: 0 | N28: 90.5 | O28: 94.5 | P28: 106.5 | Q28: 94.5 | R28: 103.5 | S28: 0 | T28: 0 | U28: 112.5 | V28: 0 | W28: 102.5 | X28: 102.5 | Y28: 94.5 | Z28: 4 | AA28: 12 | AB28: 2 | AC28: 5 | AD28: 4000 | AE28: 1500
A29: 2 | B29: 212 | C29: WV PAVING | D29: US 119 Whitman Creek Rd., Whitman, WV 25652 | E29: WHITMAN | F29: Whitman | G29: WV | H29: 105.5 | I29: 105.5 | J29: 112 | K29: 112 | L29: 114 | M29: 117.5 | N29: 113.5 | O29: 119.5 | P29: 121.5 | Q29: 119.5 | R29: 120.5 | S29: 0 | T29: 0 | U29: 0 | V29: 0 | W29: 118.5 | X29: 118.5 | Y29: 119.5 | Z29: 4 | AA29: 12 | AB29: 2 | AC29: 5 | AD29: 4000 | AE29: 1500
A30: 3 | B30: 301 | C30: GREER IND. | D30: 2399 Benedum Dr, Bridgeport, WV 26330 | E30: CLARKSBURG | F30: Bridgeport | G30: WV | H30: 64 | I30: 68.9 | J30: 67 | K30: 67 | L30: 67 | M30: 74.3 | N30: 72 | O30: 74.9 | P30: 80.4 | Q30: 74.9 | R30: 78.2 | S30: 93.5 | T30: 96 | U30: 97 | V30: 107 | W30: 82.3 | X30: 82.3 | Y30: 68 | Z30: 4.55 | AA30: 9.25 | AB30: 10 | AC30: 10 | AD30: 3500 | AE30: 850
A31: 3 | B31: 302 | C31: MEADOWS STONE | D31: OLD B&O RAILROAD YARD, GASSAWAY WV 26624 | E31: GASSAWAY | F31: Gassaway | G31: WV | H31: 71 | I31: 78 | J31: 76 | K31: 76 | L31: 76 | M31: 91 | N31: 78 | O31: 79.5 | P31: 81.5 | Q31: 79.5 | R31: 99 | S31: 111 | T31: 123 | U31: 109 | V31: 120 | W31: 79 | X31: 101 | Y31: 79.5 | Z31: 8 | AA31: 12 | AB31: 5 | AC31: 10 | AD31: 3500 | AE31: 900
A32: 3 | B32: 303 | C32: KELLY PAVING | D32: 123 Dodd Drive, St. Marys WV 26170 | E32: PLANT 14 | F32: St Marys | G32: WV | H32: 80 | I32: 86 | J32: 84 | K32: 84 | L32: 85 | M32: 96 | N32: 86 | O32: 90 | P32: 100 | Q32: 90 | R32: 95 | S32: 0 | T32: 0 | U32: 98 | V32: 0 | W32: 92 | X32: 100 | Y32: 90 | Z32: 6 | AA32: 15 | AB32: 0.3 | AC32: 0.45 | AD32: 5000 | AE32: 500
A33: 3 | B33: 304 | C33: CAMDEN MATERIALS | D33: 202 HICKORY ST PARKERSBURG WV 26101 | E33: PARKERSBURG | F33: Parkersburg | G33: WV | H33: 82.25 | I33: 85.5 | J33: 84.75 | K33: 84.75 | L33: 86 | M33: 99.5 | N33: 86 | O33: 89 | P33: 99.5 | Q33: 88.25 | R33: 98.5 | S33: 100.75 | T33: 100.75 | U33: 100.75 | V33: 100.75 | W33: 91 | X33: 101.5 | Y33: 88.25 | Z33: 5 | AA33: 15 | AB33: 0.25 | AC33: 0.5 | AD33: 2500 | AE33: 500
A34: 3 | B34: 305 | C34: WV PAVING | D34: Rt. 7 North, Gallipolis, Ohio 45631 | E34: GALLIPOLIS | F34: Gallipolis | G34: OH | H34: 84 | I34: 0 | J34: 88 | K34: 88 | L34: 90 | M34: 0 | N34: 0 | O34: 98 | P34: 0 | Q34: 98 | R34: 0 | S34: 0 | T34: 0 | U34: 0 | V34: 0 | W34: 0 | X34: 0 | Y34: 98 | Z34: 4 | AA34: 12 | AB34: 2 | AC34: 5 | AD34: 4000 | AE34: 1500
A35: 3 | B35: 306 | C35: WV PAVING | D35: 2902 Charles Ave Dunbar, WV 25064 | E35: DUNBAR | F35: Dunbar | G35: WV | H35: 85.5 | I35: 85.5 | J35: 87 | K35: 87 | L35: 89 | M35: 0 | N35: 90.5 | O35: 94.5 | P35: 106.5 | Q35: 94.5 | R35: 103.5 | S35: 0 | T35: 0 | U35: 112.5 | V35: 0 | W35: 102.5 | X35: 102.5 | Y35: 94.5 | Z35: 4 | AA35: 12 | AB35: 2 | AC35: 5 | AD35: 4000 | AE35: 1500
A36: 3 | B36: 307 | C36: WV PAVING | D36: Wright Road Poca, WV 25159 | E36: POCA | F36: Poca | G36: WV | H36: 85.5 | I36: 85.5 | J36: 87 | K36: 87 | L36: 89 | M36: 0 | N36: 90.5 | O36: 94.5 | P36: 106.5 | Q36: 94.5 | R36: 103.5 | S36: 0 | T36: 0 | U36: 112.5 | V36: 0 | W36: 102.5 | X36: 102.5 | Y36: 94.5 | Z36: 4 | AA36: 12 | AB36: 2 | AC36: 5 | AD36: 4000 | AE36: 1500
A37: 3 | B37: 308 | C37: WV PAVING | D37: 2187 Ripley Rd, Ripley, WV 25271 | E37: RIPLEY | F37: Ripley | G37: WV | H37: 0 | I37: 0 | J37: 90 | K37: 90 | L37: 92 | M37: 0 | N37: 0 | O37: 95.5 | P37: 0 | Q37: 95.5 | R37: 0 | S37: 0 | T37: 0 | U37: 106 | V37: 0 | W37: 0 | X37: 0 | Y37: 95.5 | Z37: 4 | AA37: 12 | AB37: 2 | AC37: 5 | AD37: 4000 | AE37: 1500
A38: 3 | B38: 309 | C38: GREENBRIER EXCAVATING | D38: 232 Rambler Rd, Lewisburg, WV 24901 | E38: LEWISBURG | F38: Lewisburg | G38: WV | H38: 62.32 | I38: 0 | J38: 72.87 | K38: 72.87 | L38: 73.61 | M38: 0 | N38: 0 | O38: 76.18 | P38: 0 | Q38: 75.92 | R38: 84.55 | S38: 0 | T38: 0 | U38: 0 | V38: 0 | W38: 0 | X38: 0 | Y38: 75.92 | Z38: 0 | AA38: 0 | AB38: 0 | AC38: 0 | AD38: 3000 | AE38: 750
A39: 3 | B39: 310 | C39: AMERICAN ASPHALT | D39: 484 Industrial Rd, St Albans, WV 25177 | E39: ST ALBANS | F39: St Albans | G39: WV | H39: 74.51 | I39: 75.51 | J39: 77.54 | K39: 77.54 | L39: 78.59 | M39: 85.91 | N39: 79.19 | O39: 85.39 | P39: 89.89 | Q39: 85.39 | R39: 89.25 | S39: 110 | T39: 110 | U39: 105 | V39: 110 | W39: 89.11 | X39: 89.11 | Y39: 85.39 | Z39: 5 | AA39: 12.5 | AB39: 0 | AC39: 0 | AD39: 3500 | AE39: 1000
A40: 3 | B40: 311 | C40: JF ALLEN | D40: 5856 Saltwell Rd, Bridgeport, WV 26330 | E40: SALTWELL | F40: Bridgeport | G40: WV | H40: 69.64 | I40: 73.33 | J40: 73.33 | K40: 73.33 | L40: 73.41 | M40: 77.09 | N40: 73.33 | O40: 78.08 | P40: 82.92 | Q40: 78.08 | R40: 83.06 | S40: 104.95 | T40: 107.59 | U40: 103.17 | V40: 104.2 | W40: 87.08 | X40: 89.67 | Y40: 79.64 | Z40: 4.75 | AA40: 12.5 | AB40: 10 | AC40: 10 | AD40: 3500 | AE40: 1500
A41: 3 | B41: 312 | C41: J F ALLEN | D41: 3105 Harrison Ave., Elkins WV 26257 | E41: ELKINS | F41: Elkins | G41: WV | H41: 63.28 | I41: 62.87 | J41: 68.45 | K41: 68.45 | L41: 69.51 | M41: 72.37 | N41: 68.45 | O41: 77.23 | P41: 77.97 | Q41: 75.37 | R41: 77.97 | S41: 86 | T41: 87.6 | U41: 87.63 | V41: 91.28 | W41: 77.51 | X41: 80.84 | Y41: 77.08 | Z41: 4.75 | AA41: 12.5 | AB41: 10 | AC41: 10 | AD41: 3500 | AE41: 1500
A42: 3 | B42: 313 | C42: J F ALLEN | D42: 320 Alcon Rd, Buckhannon, WV 26201 | E42: BUCKHANNON | F42: Buckhannon | G42: WV | H42: 68.95 | I42: 72.88 | J42: 73.2 | K42: 73.2 | L42: 73.41 | M42: 77.09 | N42: 73.2 | O42: 78.08 | P42: 82.92 | Q42: 78.08 | R42: 83.06 | S42: 97.95 | T42: 100.45 | U42: 94.46 | V42: 97.68 | W42: 83.71 | X42: 86.38 | Y42: 77.74 | Z42: 4.75 | AA42: 12.5 | AB42: 10 | AC42: 10 | AD42: 3500 | AE42: 1500
A43: 4 | B43: 401 | C43: GREER IND. | D43: 2399 Benedum Dr, Bridgeport, WV 26330 | E43: CLARKSBURG | F43: Bridgeport | G43: WV | H43: 64 | I43: 68.9 | J43: 67 | K43: 67 | L43: 67 | M43: 74.3 | N43: 72 | O43: 74.9 | P43: 80.4 | Q43: 74.9 | R43: 78.2 | S43: 93.5 | T43: 96 | U43: 97 | V43: 107 | W43: 82.3 | X43: 82.3 | Y43: 68 | Z43: 4.55 | AA43: 9.25 | AB43: 10 | AC43: 10 | AD43: 3500 | AE43: 850
A44: 4 | B44: 402 | C44: GREER IND. | D44: 442 Blaney Hollow Rd, Morgantown WV 26508 | E44: BUCKEYE | F44: Morgantown | G44: WV | H44: 55.2 | I44: 61.7 | J44: 60.35 | K44: 60.35 | L44: 60.35 | M44: 68 | N44: 62.5 | O44: 69.1 | P44: 75 | Q44: 69.1 | R44: 73.5 | S44: 90 | T44: 95 | U44: 81.5 | V44: 89 | W44: 72.8 | X44: 72.8 | Y44: 60 | Z44: 4.55 | AA44: 9.25 | AB44: 1 | AC44: 3 | AD44: 3000 | AE44: 1500
A45: 4 | B45: 403 | C45: GREER IND. | D45: 5630 Earl L. Core Rd Rt 7, Morgantown WV 26508 | E45: GREER | F45: Morgantown | G45: WV | H45: 55.2 | I45: 61.7 | J45: 60.35 | K45: 60.35 | L45: 60.35 | M45: 68 | N45: 62.5 | O45: 69.1 | P45: 75 | Q45: 69.1 | R45: 73.5 | S45: 90 | T45: 95 | U45: 81.5 | V45: 89 | W45: 72.8 | X45: 72.8 | Y45: 60 | Z45: 4.55 | AA45: 9.25 | AB45: 1 | AC45: 3 | AD45: 3000 | AE45: 1500
A46: 4 | B46: 404 | C46: WV PAVING | D46: Route 33, Kelly Mountain Rd, Elkins, WV 26241 | E46: ELKINS | F46: Elkins | G46: WV | H46: 67.5 | I46: 67.5 | J46: 73.75 | K46: 73.75 | L46: 76 | M46: 80 | N46: 75 | O46: 80.5 | P46: 83 | Q46: 80.5 | R46: 83 | S46: 0 | T46: 0 | U46: 101 | V46: 0 | W46: 78.5 | X46: 78.5 | Y46: 80.5 | Z46: 4 | AA46: 12 | AB46: 2 | AC46: 5 | AD46: 4000 | AE46: 1500
A47: 4 | B47: 405 | C47: CAMDEN MATERIALS | D47: 202 HICKORY ST PARKERSBURG WV 26101 | E47: PARKERSBURG | F47: Parkersburg | G47: WV | H47: 82.25 | I47: 85.5 | J47: 84.75 | K47: 84.75 | L47: 86 | M47: 99.5 | N47: 86 | O47: 89 | P47: 99.5 | Q47: 88.25 | R47: 98.5 | S47: 100.75 | T47: 100.75 | U47: 100.75 | V47: 100.75 | W47: 91 | X47: 101.5 | Y47: 88.25 | Z47: 5 | AA47: 15 | AB47: 0.25 | AC47: 0.5 | AD47: 2500 | AE47: 500
A48: 4 | B48: 406 | C48: STONE ASPHALT | D48: 164 VIP Drive Masontown, WV 26542 | E48: MASONTOWN | F48: Masontown | G48: WV | H48: 60.85 | I48: 60.85 | J48: 63.15 | K48: 63.15 | L48: 62.7 | M48: 64.1 | N48: 66.85 | O48: 69.8 | P48: 72.95 | Q48: 69.8 | R48: 70.8 | S48: 102.5 | T48: 106 | U48: 79.75 | V48: 82.35 | W48: 69.25 | X48: 70.9 | Y48: 62.7 | Z48: 6.9 | AA48: 11.4 | AB48: 0 | AC48: 0 | AD48: 3000 | AE48: 2000
A49: 4 | B49: 407 | C49: GREENBRIER EXCAVATING | D49: 232 Rambler Rd, Lewisburg, WV 24901 | E49: LEWISBURG | F49: Lewisburg | G49: WV | H49: 62.32 | I49: 0 | J49: 72.87 | K49: 72.87 | L49: 73.61 | M49: 0 | N49: 0 | O49: 76.18 | P49: 0 | Q49: 75.92 | R49: 84.55 | S49: 0 | T49: 0 | U49: 0 | V49: 0 | W49: 0 | X49: 0 | Y49: 75.92 | Z49: 0 | AA49: 0 | AB49: 0 | AC49: 0 | AD49: 3000 | AE49: 750
A50: 4 | B50: 408 | C50: JF ALLEN | D50: 5856 Saltwell Rd, Bridgeport, WV 26330 | E50: SALTWELL | F50: Bridgeport | G50: WV | H50: 69.64 | I50: 73.33 | J50: 73.33 | K50: 73.33 | L50: 73.41 | M50: 77.09 | N50: 73.33 | O50: 78.08 | P50: 82.92 | Q50: 78.08 | R50: 83.06 | S50: 104.95 | T50: 107.59 | U50: 103.17 | V50: 104.2 | W50: 87.08 | X50: 89.67 | Y50: 79.64 | Z50: 4.75 | AA50: 12.5 | AB50: 10 | AC50: 10 | AD50: 3500 | AE50: 1500
A51: 4 | B51: 409 | C51: J F ALLEN | D51: 3105 Harrison Ave., Elkins WV 26257 | E51: ELKINS | F51: Elkins | G51: WV | H51: 63.28 | I51: 62.87 | J51: 68.45 | K51: 68.45 | L51: 69.51 | M51: 72.37 | N51: 68.45 | O51: 77.23 | P51: 77.97 | Q51: 75.37 | R51: 77.97 | S51: 86 | T51: 87.6 | U51: 87.63 | V51: 91.28 | W51: 77.51 | X51: 80.84 | Y51: 77.08 | Z51: 4.75 | AA51: 12.5 | AB51: 10 | AC51: 10 | AD51: 3500 | AE51: 1500
A52: 4 | B52: 410 | C52: J F ALLEN | D52: 320 Alcon Rd, Buckhannon, WV 26201 | E52: BUCKHANNON | F52: Buckhannon | G52: WV | H52: 68.95 | I52: 72.88 | J52: 73.2 | K52: 73.2 | L52: 73.41 | M52: 77.09 | N52: 73.2 | O52: 78.08 | P52: 82.92 | Q52: 78.08 | R52: 83.06 | S52: 97.95 | T52: 100.45 | U52: 94.46 | V52: 97.68 | W52: 83.71 | X52: 86.38 | Y52: 77.74 | Z52: 4.75 | AA52: 12.5 | AB52: 10 | AC52: 10 | AD52: 3500 | AE52: 1500
A53: 4 | B53: 411 | C53: KELLY PAVING | D53: 123 Dodd Drive, St. Marys WV 26170 | E53: PLANT 14 | F53: St Marys | G53: WV | H53: 80 | I53: 86 | J53: 84 | K53: 84 | L53: 85 | M53: 96 | N53: 86 | O53: 90 | P53: 100 | Q53: 90 | R53: 95 | S53: 0 | T53: 0 | U53: 98 | V53: 0 | W53: 92 | X53: 100 | Y53: 90 | Z53: 6 | AA53: 15 | AB53: 0.3 | AC53: 0.45 | AD53: 5000 | AE53: 500
A54: 5 | B54: 501 | C54: BELT PAVING | D54: 11269 Waxler Rd, Keyser WV 26726 | E54: KEYSER | F54: Keyser | G54: WV | H54: 65.5 | I54: 68 | J54: 70.25 | K54: 70.25 | L54: 73 | M54: 85 | N54: 71.5 | O54: 76.25 | P54: 86 | Q54: 76 | R54: 82 | S54: 86.5 | T54: 101 | U54: 86.25 | V54: 99 | W54: 79.5 | X54: 83 | Y54: 76 | Z54: 4.75 | AA54: 14.5 | AB54: 1.25 | AC54: 1.75 | AD54: 6850 | AE54: 4350
A55: 5 | B55: 502 | C55: GREENBRIER EXCAVATING | D55: 232 Rambler Rd, Lewisburg, WV 24901 | E55: LEWISBURG | F55: Lewisburg | G55: WV | H55: 62.32 | I55: 0 | J55: 72.87 | K55: 72.87 | L55: 73.61 | M55: 0 | N55: 0 | O55: 76.18 | P55: 0 | Q55: 75.92 | R55: 84.55 | S55: 0 | T55: 0 | U55: 0 | V55: 0 | W55: 0 | X55: 0 | Y55: 75.92 | Z55: 0 | AA55: 0 | AB55: 0 | AC55: 0 | AD55: 3000 | AE55: 750
A56: 5 | B56: 503 | C56: WL CONTRUCTION | D56: 390 Pedal Car Drive, Inwood, WV 25428 | E56: INWWOD | F56: Inwood | G56: WV | H56: 63.5 | I56: 69.85 | J56: 70.6 | K56: 70.6 | L56: 71.3 | M56: 75.4 | N56: 74.7 | O56: 78 | P56: 95.5 | Q56: 78 | R56: 82 | S56: 0 | T56: 0 | U56: 0 | V56: 0 | W56: 83.3 | X56: 84 | Y56: 78 | Z56: 5 | AA56: 12 | AB56: 4 | AC56: 10 | AD56: 4500 | AE56: 1500
A57: 5 | B57: 504 | C57: WL CONTRUCTION | D57: 57 Blair Rd, Harpers Ferry WV 25425 | E57: MILLEVILLE | F57: Harpers Ferry | G57: WV | H57: 66.2 | I57: 71 | J57: 73.2 | K57: 73.2 | L57: 73.8 | M57: 75.4 | N57: 77.7 | O57: 79.8 | P57: 93.5 | Q57: 79.8 | R57: 82.7 | S57: 0 | T57: 0 | U57: 0 | V57: 0 | W57: 84.5 | X57: 85 | Y57: 79.8 | Z57: 5 | AA57: 12 | AB57: 4 | AC57: 10 | AD57: 4500 | AE57: 1500
A58: 5 | B58: 505 | C58: WL CONTRUCTION | D58: 866 Oranda Rd., Strasburg VA 22657 | E58: CLEARBROOK | F58: Strasburg | G58: VA | H58: 63.5 | I58: 78.5 | J58: 70.6 | K58: 70.6 | L58: 71.3 | M58: 76.5 | N58: 79.25 | O58: 78 | P58: 95 | Q58: 78 | R58: 84.7 | S58: 0 | T58: 0 | U58: 0 | V58: 0 | W58: 88 | X58: 95.5 | Y58: 78 | Z58: 5 | AA58: 12 | AB58: 4 | AC58: 10 | AD58: 4500 | AE58: 1500
A59: 5 | B59: 506 | C59: WL CONTRUCTION | D59: 660 Quarry Lane Clearbrook VA 22624 | E59: CLEARBROOK | F59: Clearbrook | G59: VA | H59: 63.5 | I59: 78.5 | J59: 70.6 | K59: 70.6 | L59: 71.3 | M59: 76.5 | N59: 79.25 | O59: 78 | P59: 95 | Q59: 78 | R59: 84.7 | S59: 0 | T59: 0 | U59: 0 | V59: 0 | W59: 88 | X59: 95.5 | Y59: 78 | Z59: 5 | AA59: 12 | AB59: 4 | AC59: 10 | AD59: 4500 | AE59: 1500
A60: 5 | B60: 507 | C60: JF ALLEN | D60: 3105 Harrison Ave., Elkins WV 26257 | E60: ELKINS | F60: Elkins | G60: WV | H60: 63.28 | I60: 62.87 | J60: 68.45 | K60: 68.45 | L60: 69.51 | M60: 72.37 | N60: 68.45 | O60: 77.23 | P60: 77.97 | Q60: 75.37 | R60: 77.97 | S60: 86 | T60: 87.6 | U60: 87.63 | V60: 91.28 | W60: 77.51 | X60: 80.84 | Y60: 77.08 | Z60: 4.75 | AA60: 12.5 | AB60: 10 | AC60: 10 | AD60: 3500 | AE60: 1500
A61: 5 | B61: 508 | C61: JF ALLEN | D61: 320 Alcon Rd, Buckhannon, WV 26201 | E61: BUCKHANNON | F61: Buckhannon | G61: WV | H61: 68.95 | I61: 72.88 | J61: 73.2 | K61: 73.2 | L61: 73.41 | M61: 77.09 | N61: 73.2 | O61: 78.08 | P61: 82.92 | Q61: 78.08 | R61: 83.06 | S61: 97.95 | T61: 100.45 | U61: 94.46 | V61: 97.68 | W61: 83.71 | X61: 86.38 | Y61: 77.74 | Z61: 4.75 | AA61: 12.5 | AB61: 10 | AC61: 10 | AD61: 3500 | AE61: 1500
A62: 5 | B62: 509 | C62: JF ALLEN | D62: 5856 Saltwell Rd, Bridgeport, WV 26330 | E62: SALTWELL | F62: Bridgeport | G62: WV | H62: 69.64 | I62: 73.33 | J62: 73.33 | K62: 73.33 | L62: 73.41 | M62: 77.09 | N62: 73.33 | O62: 78.08 | P62: 82.92 | Q62: 78.08 | R62: 83.06 | S62: 104.95 | T62: 107.59 | U62: 103.17 | V62: 104.2 | W62: 87.08 | X62: 89.67 | Y62: 79.64 | Z62: 4.75 | AA62: 12.5 | AB62: 10 | AC62: 10 | AD62: 3500 | AE62: 1500
A63: 5 | B63: 510 | C63: P&W Excavating | D63: Warfordsburg, PA 17267 | E63: WARFORDSBURG | F63: Warfordsburg | G63: PA | H63: 69.5 | I63: 67.2 | J63: 70.6 | K63: 70.6 | L63: 70.6 | M63: 80.5 | N63: 70.5 | O63: 77.3 | P63: 0 | Q63: 77.3 | R63: 85.3 | S63: 0 | T63: 0 | U63: 0 | V63: 0 | W63: 0 | X63: 81.95 | Y63: 77.3 | Z63: 5 | AA63: 15 | AB63: 5 | AC63: 15 | AD63: 9000 | AE63: 3000
A64: 5 | B64: 511 | C64: STUART M PERRY | D64: 117 Limestone Lane, Winchester, VA 22602 | E64: Winchester - Berryville - Front Royal | F64: W-117 Limesone Lane B-426 Quarry Road FR - 711 Riverton Road | G64: VA, WV | H64: 0 | I64: 0 | J64: 0 | K64: 0 | L64: 0 | M64: 0 | N64: 0 | O64: 0 | P64: 0 | Q64: 0 | R64: 0 | S64: 0 | T64: 0 | U64: 0 | V64: 0 | W64: 0 | X64: 0 | Y64: 78 | Z64: 0 | AA64: 0 | AB64: 0 | AC64: 0 | AD64: 0 | AE64: 0
A65: 5 | B65: 512 | C65: KELLY PAVING | D65: 123 Dodd Drive, St. Marys WV 26170 | E65: PLANT 14 | F65: St Marys | G65: WV | H65: 80 | I65: 86 | J65: 84 | K65: 84 | L65: 85 | M65: 96 | N65: 86 | O65: 90 | P65: 100 | Q65: 90 | R65: 95 | S65: 0 | T65: 0 | U65: 98 | V65: 0 | W65: 92 | X65: 100 | Y65: 90 | Z65: 6 | AA65: 15 | AB65: 0.3 | AC65: 0.45 | AD65: 5000 | AE65: 500
A66: 5 | B66: 513 | C66: C WILLIAM HETZER INC | D66: 10104 Mapleville Road Hagerstown, MD 21740 | E66: C WILLIAM HETZER INC | F66: Hagerstown | G66: MD | H66: 56.5 | I66: 61.4 | J66: 63.5 | K66: 63.5 | L66: 63.5 | M66: 66.8 | N66: 63.5 | O66: 72.7 | P66: 72.7 | Q66: 72.7 | R66: 76 | S66: 82.9 | T66: 86.9 | U66: 82.9 | V66: 86.9 | W66: 70.6 | X66: 73.9 | Y66: 73 | Z66: 2 | AA66: 11 | AB66: 2 | AC66: 4 | AD66: 5000 | AE66: 1500
A67: 5 | B67: 514 | C67: NEW ENTERPRISE | D67: 3587 Stone Quarry Rd Chamersburg PA 17201 | E67: CHAMERSBURG | F67: Chamersburg | G67: PA | H67: 70 | I67: 70 | J67: 75 | K67: 75 | L67: 90 | M67: 100 | N67: 80 | O67: 90 | P67: 90 | Q67: 90 | R67: 100 | S67: 105 | T67: 115 | U67: 115 | V67: 125 | W67: 90 | X67: 100 | Y67: 90 | Z67: 8 | AA67: 8 | AB67: 0 | AC67: 0 | AD67: 8000 | AE67: 4000
A68: 5 | B68: 515 | C68: NEW ENTERPRISE | D68: 526 Ashcom Rd Everett PA 15537 | E68: ASHCOM PLANT | F68: Everett | G68: PA | H68: 70 | I68: 70 | J68: 75 | K68: 75 | L68: 90 | M68: 100 | N68: 80 | O68: 90 | P68: 90 | Q68: 90 | R68: 100 | S68: 105 | T68: 115 | U68: 115 | V68: 125 | W68: 90 | X68: 100 | Y68: 90 | Z68: 8 | AA68: 8 | AB68: 0 | AC68: 0 | AD68: 8000 | AE68: 4000
A69: 5 | B69: 516 | C69: WV PAVING | D69: Greenland Gap Rd, Scherr, WV 26726 | E69: SCHERR | F69: Scherr | G69: WV | H69: 71.5 | I69: 71.5 | J69: 79.5 | K69: 79.5 | L69: 81.5 | M69: 93 | N69: 79 | O69: 84 | P69: 97 | Q69: 84 | R69: 97 | S69: 0 | T69: 0 | U69: 104 | V69: 0 | W69: 99 | X69: 99 | Y69: 84 | Z69: 4 | AA69: 12 | AB69: 2 | AC69: 5 | AD69: 4000 | AE69: 1500
A70: 6 | B70: 601 | C70: GREENBRIER EXCAVATING | D70: 232 Rambler Rd, Lewisburg, WV 24901 | E70: LEWISBURG | F70: Lewisburg | G70: WV | H70: 62.32 | I70: 0 | J70: 72.87 | K70: 72.87 | L70: 73.61 | M70: 0 | N70: 0 | O70: 76.18 | P70: 0 | Q70: 75.92 | R70: 84.55 | S70: 0 | T70: 0 | U70: 0 | V70: 0 | W70: 0 | X70: 0 | Y70: 75.92 | Z70: 0 | AA70: 0 | AB70: 0 | AC70: 0 | AD70: 3000 | AE70: 750
A71: 6 | B71: 602 | C71: GREER IND. | D71: 442 Blaney Hollow Rd, Morgantown WV 26508 | E71: BUCKEYE | F71: Morgantown | G71: WV | H71: 55.2 | I71: 61.7 | J71: 60.35 | K71: 60.35 | L71: 60.35 | M71: 68 | N71: 62.5 | O71: 69.1 | P71: 75 | Q71: 69.1 | R71: 73.5 | S71: 90 | T71: 95 | U71: 81.5 | V71: 89 | W71: 72.8 | X71: 72.8 | Y71: 60 | Z71: 4.55 | AA71: 9.25 | AB71: 1 | AC71: 3 | AD71: 3000 | AE71: 1500
A72: 6 | B72: 603 | C72: GREER IND. | D72: 5630 Earl L. Core Rd Rt 7, Morgantown WV 26508 | E72: GREER | F72: Morgantown | G72: WV | H72: 55.2 | I72: 61.7 | J72: 60.35 | K72: 60.35 | L72: 60.35 | M72: 68 | N72: 62.5 | O72: 69.1 | P72: 75 | Q72: 69.1 | R72: 73.5 | S72: 90 | T72: 95 | U72: 81.5 | V72: 89 | W72: 72.8 | X72: 72.8 | Y72: 60 | Z72: 4.55 | AA72: 9.25 | AB72: 1 | AC72: 3 | AD72: 3000 | AE72: 1500
A73: 6 | B73: 604 | C73: GREER IND. | D73: 2399 Benedum Dr, Bridgeport, WV 26330 | E73: CLARKSBURG | F73: Bridgeport | G73: WV | H73: 64 | I73: 68.9 | J73: 67 | K73: 67 | L73: 67 | M73: 74.3 | N73: 72 | O73: 74.9 | P73: 80.4 | Q73: 74.9 | R73: 78.2 | S73: 93.5 | T73: 96 | U73: 97 | V73: 107 | W73: 82.3 | X73: 82.3 | Y73: 68 | Z73: 4.55 | AA73: 9.25 | AB73: 10 | AC73: 10 | AD73: 3500 | AE73: 850
A74: 6 | B74: 605 | C74: J F ALLEN | D74: 3105 Harrison Ave., Elkins WV 26257 | E74: ELKINS | F74: Elkins | G74: WV | H74: 63.28 | I74: 62.87 | J74: 68.45 | K74: 68.45 | L74: 69.51 | M74: 72.37 | N74: 68.45 | O74: 77.23 | P74: 77.97 | Q74: 75.37 | R74: 77.97 | S74: 86 | T74: 87.6 | U74: 87.63 | V74: 91.28 | W74: 77.51 | X74: 80.84 | Y74: 77.08 | Z74: 4.75 | AA74: 12.5 | AB74: 10 | AC74: 10 | AD74: 3500 | AE74: 1500
A75: 6 | B75: 606 | C75: J F ALLEN | D75: 320 Alcon Rd, Buckhannon, WV 26201 | E75: BUCKHANNON | F75: Buckhannon | G75: WV | H75: 68.95 | I75: 72.88 | J75: 73.2 | K75: 73.2 | L75: 73.41 | M75: 77.09 | N75: 73.2 | O75: 78.08 | P75: 82.92 | Q75: 78.08 | R75: 83.06 | S75: 97.95 | T75: 100.45 | U75: 94.46 | V75: 97.68 | W75: 83.71 | X75: 86.38 | Y75: 77.74 | Z75: 4.75 | AA75: 12.5 | AB75: 10 | AC75: 10 | AD75: 3500 | AE75: 1500
A76: 6 | B76: 607 | C76: J F ALLEN | D76: 5856 Saltwell Rd, Bridgeport, WV 26330 | E76: SALTWELL | F76: Bridgeport | G76: WV | H76: 69.64 | I76: 73.33 | J76: 73.33 | K76: 73.33 | L76: 73.41 | M76: 77.09 | N76: 73.33 | O76: 78.08 | P76: 82.92 | Q76: 78.08 | R76: 83.06 | S76: 104.95 | T76: 107.59 | U76: 103.17 | V76: 104.2 | W76: 87.08 | X76: 89.67 | Y76: 79.64 | Z76: 4.75 | AA76: 12.5 | AB76: 10 | AC76: 10 | AD76: 3500 | AE76: 1500
A77: 6 | B77: 608 | C77: KELLY PAVING | D77: 123 Dodd Drive, St. Marys WV 26170 | E77: PLANT 14 | F77: St Marys | G77: WV | H77: 80 | I77: 86 | J77: 84 | K77: 84 | L77: 85 | M77: 96 | N77: 86 | O77: 90 | P77: 100 | Q77: 90 | R77: 95 | S77: 0 | T77: 0 | U77: 98 | V77: 0 | W77: 92 | X77: 100 | Y77: 90 | Z77: 6 | AA77: 15 | AB77: 0.3 | AC77: 0.45 | AD77: 5000 | AE77: 500
A78: 6 | B78: 609 | C78: KELLY PAVING | D78: #1 IND PARK DR BENWOOD WV 26031 | E78: BENWOOD | F78: Benwood | G78: WV | H78: 72 | I78: 74 | J78: 70 | K78: 72 | L78: 73 | M78: 74 | N78: 73 | O78: 77 | P78: 83 | Q78: 75 | R78: 82 | S78: 0 | T78: 0 | U78: 95 | V78: 0 | W78: 78 | X78: 87 | Y78: 78 | Z78: 10 | AA78: 12 | AB78: 0.25 | AC78: 0.5 | AD78: 6000 | AE78: 1200
A79: 6 | B79: 610 | C79: KELLY PAVING | D79: 4260 FREEDOM WAY WEIRTON WV 26062 | E79: WEIRTON | F79: Weirton | G79: WV | H79: 77 | I79: 78 | J79: 77 | K79: 78 | L79: 77 | M79: 86 | N79: 80 | O79: 84 | P79: 89 | Q79: 84 | R79: 89 | S79: 0 | T79: 0 | U79: 102 | V79: 0 | W79: 81 | X79: 88 | Y79: 84 | Z79: 10 | AA79: 12 | AB79: 0.25 | AC79: 0.5 | AD79: 6000 | AE79: 1200
A80: 6 | B80: 611 | C80: KLUG BROS | D80: State Rt 2 S. Lafayette Ave. Moundsville, WV | E80: MOUNDSVILLE | F80: Moundsville | G80: WV | H80: 78.9 | I80: 0 | J80: 78.9 | K80: 78.9 | L80: 79.1 | M80: 0 | N80: 0 | O80: 86.95 | P80: 0 | Q80: 86.95 | R80: 93.45 | S80: 0 | T80: 0 | U80: 103.95 | V80: 0 | W80: 0 | X80: 0 | Y80: 86.25 | Z80: 0 | AA80: 0 | AB80: 0 | AC80: 0 | AD80: 1200 | AE80: 800
A81: 6 | B81: 612 | C81: KLUG BROS | D81: Foot of Wetzel St. New Martinsville, WV | E81: NEW MARTINSVILLE | F81: New Martinsville | G81: WV | H81: 78.9 | I81: 0 | J81: 78.9 | K81: 78.9 | L81: 79.1 | M81: 0 | N81: 0 | O81: 86.95 | P81: 0 | Q81: 86.95 | R81: 93.45 | S81: 0 | T81: 0 | U81: 103.95 | V81: 0 | W81: 0 | X81: 0 | Y81: 86.25 | Z81: 0 | AA81: 0 | AB81: 0 | AC81: 0 | AD81: 1200 | AE81: 800
A82: 6 | B82: 613 | C82: NLS PAVING | D82: 1422 Co HWY 7F Toronto Ohio 43964 | E82: EMPIRE | F82: Toronto | G82: OH | H82: 73 | I82: 75 | J82: 75 | K82: 75 | L82: 78 | M82: 81 | N82: 80 | O82: 84 | P82: 85 | Q82: 81 | R82: 91 | S82: 98 | T82: 0 | U82: 100 | V82: 101 | W82: 81 | X82: 90 | Y82: 84 | Z82: 10.5 | AA82: 12 | AB82: 0 | AC82: 2 | AD82: 5500 | AE82: 1500
A83: 6 | B83: 614 | C83: STONE ASPHALT | D83: 164 VIP Drive Masontown, WV 26542 | E83: MASONTOWN | F83: Masontown | G83: WV | H83: 60.85 | I83: 60.85 | J83: 63.15 | K83: 63.15 | L83: 62.7 | M83: 64.1 | N83: 66.85 | O83: 69.8 | P83: 72.95 | Q83: 69.8 | R83: 70.8 | S83: 102.5 | T83: 106 | U83: 79.75 | V83: 82.35 | W83: 69.25 | X83: 70.9 | Y83: 62.7 | Z83: 6.9 | AA83: 11.4 | AB83: 0 | AC83: 0 | AD83: 3000 | AE83: 2000
A84: 6 | B84: 615 | C84: WILSON BLACKTOP | D84: 102 CENTER ST MARTINS FERRY OH | E84: MARTINS FERRY | F84: Martins Ferry | G84: OH | H84: 73 | I84: 75 | J84: 74 | K84: 74 | L84: 75 | M84: 85 | N84: 75 | O84: 80 | P84: 82 | Q84: 80 | R84: 90 | S84: 100 | T84: 110 | U84: 100 | V84: 110 | W84: 90 | X84: 95 | Y84: 80 | Z84: 0 | AA84: 0 | AB84: 25 | AC84: 25 | AD84: 6500 | AE84: 1500
A85: 7 | B85: 701 | C85: AMERICAN ASPHALT | D85: 484 Industrial Rd, St Albans, WV 25177 | E85: ST ALBANS PLANT | F85: St Albans | G85: WV | H85: 74.51 | I85: 75.51 | J85: 77.54 | K85: 77.54 | L85: 78.59 | M85: 85.91 | N85: 79.19 | O85: 85.39 | P85: 89.89 | Q85: 85.39 | R85: 89.25 | S85: 110 | T85: 110 | U85: 105 | V85: 110 | W85: 89.11 | X85: 89.11 | Y85: 85.39 | Z85: 5 | AA85: 12.5 | AB85: 0 | AC85: 0 | AD85: 3500 | AE85: 1000
A86: 7 | B86: 702 | C86: GREENBRIER EXCAVATING | D86: 232 Rambler Rd, Lewisburg, WV 24901 | E86: LEWISBURG | F86: Lewisburg | G86: WV | H86: 62.32 | I86: 0 | J86: 72.87 | K86: 72.87 | L86: 73.61 | M86: 0 | N86: 0 | O86: 76.18 | P86: 0 | Q86: 75.92 | R86: 84.55 | S86: 0 | T86: 0 | U86: 0 | V86: 0 | W86: 0 | X86: 0 | Y86: 75.92 | Z86: 0 | AA86: 0 | AB86: 0 | AC86: 0 | AD86: 3000 | AE86: 750
A87: 7 | B87: 703 | C87: GREER IND. | D87: 5630 Earl L. Core Rd Rt 7, Morgantown WV 26508 | E87: GREER | F87: Morgantown | G87: WV | H87: 55.2 | I87: 61.7 | J87: 60.35 | K87: 60.35 | L87: 60.35 | M87: 68 | N87: 62.5 | O87: 69.1 | P87: 75 | Q87: 69.1 | R87: 73.5 | S87: 90 | T87: 95 | U87: 81.5 | V87: 89 | W87: 72.8 | X87: 72.8 | Y87: 60 | Z87: 4.55 | AA87: 9.25 | AB87: 1 | AC87: 3 | AD87: 3000 | AE87: 1500
A88: 7 | B88: 704 | C88: GREER IND. | D88: 442 Blaney Hollow Rd, Morgantown WV 26508 | E88: BUCKEYE | F88: Morgantown | G88: WV | H88: 55.2 | I88: 61.7 | J88: 60.35 | K88: 60.35 | L88: 60.35 | M88: 68 | N88: 62.5 | O88: 69.1 | P88: 75 | Q88: 69.1 | R88: 73.5 | S88: 90 | T88: 95 | U88: 81.5 | V88: 89 | W88: 72.8 | X88: 72.8 | Y88: 60 | Z88: 4.55 | AA88: 9.25 | AB88: 1 | AC88: 3 | AD88: 3000 | AE88: 1500
A89: 7 | B89: 705 | C89: GREER IND. | D89: 2399 Benedum Dr, Bridgeport, WV 26330 | E89: CLARKSBURG | F89: Bridgeport | G89: WV | H89: 64 | I89: 68.9 | J89: 67 | K89: 67 | L89: 67 | M89: 74.3 | N89: 72 | O89: 74.9 | P89: 80.4 | Q89: 74.9 | R89: 78.2 | S89: 93.5 | T89: 96 | U89: 97 | V89: 107 | W89: 82.3 | X89: 82.3 | Y89: 68 | Z89: 4.55 | AA89: 9.25 | AB89: 10 | AC89: 10 | AD89: 3500 | AE89: 850
A90: 7 | B90: 706 | C90: J F ALLEN | D90: 3105 Harrison Ave., Elkins WV 26257 | E90: ELKINS | F90: Elkins | G90: WV | H90: 63.28 | I90: 62.87 | J90: 68.45 | K90: 68.45 | L90: 69.51 | M90: 72.37 | N90: 68.45 | O90: 77.23 | P90: 77.97 | Q90: 75.37 | R90: 77.97 | S90: 86 | T90: 87.6 | U90: 87.63 | V90: 91.28 | W90: 77.51 | X90: 80.84 | Y90: 77.08 | Z90: 4.75 | AA90: 12.5 | AB90: 10 | AC90: 10 | AD90: 3500 | AE90: 1500
A91: 7 | B91: 707 | C91: J F ALLEN | D91: 320 Alcon Rd, Buckhannon, WV 26201 | E91: BUCKHANNON | F91: Buckhannon | G91: WV | H91: 68.95 | I91: 72.88 | J91: 73.2 | K91: 73.2 | L91: 73.41 | M91: 77.09 | N91: 73.2 | O91: 78.08 | P91: 82.92 | Q91: 78.08 | R91: 83.06 | S91: 97.95 | T91: 100.45 | U91: 94.46 | V91: 97.68 | W91: 83.71 | X91: 86.38 | Y91: 77.74 | Z91: 4.75 | AA91: 12.5 | AB91: 10 | AC91: 10 | AD91: 3500 | AE91: 1500
A92: 7 | B92: 708 | C92: J F ALLEN | D92: 5856 Saltwell Rd, Bridgeport, WV 26330 | E92: SALTWELL | F92: Bridgeport | G92: WV | H92: 69.64 | I92: 73.33 | J92: 73.33 | K92: 73.33 | L92: 73.41 | M92: 77.09 | N92: 73.33 | O92: 78.08 | P92: 82.92 | Q92: 78.08 | R92: 83.06 | S92: 104.95 | T92: 107.59 | U92: 103.17 | V92: 104.2 | W92: 87.08 | X92: 89.67 | Y92: 79.64 | Z92: 4.75 | AA92: 12.5 | AB92: 10 | AC92: 10 | AD92: 3500 | AE92: 1500
A93: 7 | B93: 709 | C93: KELLY PAVING | D93: 123 Dodd Drive, St. Marys WV 26170 | E93: PLANT 14 | F93: St Marys | G93: WV | H93: 80 | I93: 86 | J93: 84 | K93: 84 | L93: 85 | M93: 96 | N93: 86 | O93: 90 | P93: 100 | Q93: 90 | R93: 95 | S93: 0 | T93: 0 | U93: 98 | V93: 0 | W93: 92 | X93: 100 | Y93: 90 | Z93: 6 | AA93: 15 | AB93: 0.3 | AC93: 0.45 | AD93: 5000 | AE93: 500
A94: 7 | B94: 710 | C94: MEADOWS STONE | D94: OLD B&O RAILROAD YARD, GASSAWAY WV 26624 | E94: GASSAWAY | F94: Gassaway | G94: WV | H94: 71 | I94: 78 | J94: 76 | K94: 76 | L94: 76 | M94: 91 | N94: 78 | O94: 79.5 | P94: 81.5 | Q94: 79.5 | R94: 99 | S94: 111 | T94: 123 | U94: 109 | V94: 120 | W94: 79 | X94: 101 | Y94: 79.5 | Z94: 8 | AA94: 12 | AB94: 5 | AC94: 10 | AD94: 3500 | AE94: 900
A95: 7 | B95: 711 | C95: MEADOWS STONE | D95: 3401 POINT MOUNTAIN RD GASSAWAY WV 26624 | E95: MONTERVILLE | F95: Valley Head | G95: WV | H95: 61 | I95: 67 | J95: 65 | K95: 65 | L95: 65 | M95: 86 | N95: 68 | O95: 72.5 | P95: 74.5 | Q95: 72.5 | R95: 92 | S95: 94 | T95: 115 | U95: 93 | V95: 119 | W95: 72 | X95: 96 | Y95: 72.5 | Z95: 8 | AA95: 12 | AB95: 5 | AC95: 10 | AD95: 3500 | AE95: 900
A96: 7 | B96: 712 | C96: STONE ASPHALT | D96: 164 VIP Drive Masontown, WV 26542 | E96: MASONTOWN | F96: Masontown | G96: WV | H96: 60.85 | I96: 60.85 | J96: 63.15 | K96: 63.15 | L96: 62.7 | M96: 64.1 | N96: 66.85 | O96: 69.8 | P96: 72.95 | Q96: 69.8 | R96: 70.8 | S96: 102.5 | T96: 106 | U96: 79.75 | V96: 82.35 | W96: 69.25 | X96: 70.9 | Y96: 62.7 | Z96: 6.9 | AA96: 11.4 | AB96: 0 | AC96: 0 | AD96: 3000 | AE96: 2000
A97: 7 | B97: 713 | C97: WV PAVING | D97: Route 33, Kelly Mountain Rd, Elkins, WV 26241 | E97: ELKINS | F97: Elkins | G97: WV | H97: 67.5 | I97: 67.5 | J97: 73.75 | K97: 73.75 | L97: 76 | M97: 80 | N97: 75 | O97: 80.5 | P97: 83 | Q97: 80.5 | R97: 83 | S97: 0 | T97: 0 | U97: 101 | V97: 0 | W97: 78.5 | X97: 78.5 | Y97: 80.5 | Z97: 4 | AA97: 12 | AB97: 2 | AC97: 5 | AD97: 4000 | AE97: 1500
A98: 7 | B98: 714 | C98: WV PAVING | D98: 2816 Frontage Rd, Summersville, WV 26651 | E98: SUMMERSVILLE | F98: Summersville | G98: WV | H98: 94 | I98: 94 | J98: 98 | K98: 98 | L98: 100 | M98: 0 | N98: 98.5 | O98: 108 | P98: 110 | Q98: 108 | R98: 110 | S98: 0 | T98: 0 | U98: 117 | V98: 0 | W98: 105 | X98: 105 | Y98: 108 | Z98: 4 | AA98: 12 | AB98: 2 | AC98: 5 | AD98: 4000 | AE98: 1500
A99: 8 | B99: 801 | C99: GREENBRIER EXCAVATING | D99: 232 Rambler Rd, Lewisburg, WV 24901 | E99: LEWISBURG | F99: Lewisburg | G99: WV | H99: 62.32 | I99: 0 | J99: 72.87 | K99: 72.87 | L99: 73.61 | M99: 0 | N99: 0 | O99: 76.18 | P99: 0 | Q99: 75.92 | R99: 84.55 | S99: 0 | T99: 0 | U99: 0 | V99: 0 | W99: 0 | X99: 0 | Y99: 75.92 | Z99: 0 | AA99: 0 | AB99: 0 | AC99: 0 | AD99: 3000 | AE99: 750
A100: 8 | B100: 802 | C100: GREER IND. | D100: 5630 Earl L. Core Rd Rt 7, Morgantown WV 26508 | E100: GREER | F100: Morgantown | G100: WV | H100: 55.2 | I100: 61.7 | J100: 60.35 | K100: 60.35 | L100: 60.35 | M100: 68 | N100: 62.5 | O100: 69.1 | P100: 75 | Q100: 69.1 | R100: 73.5 | S100: 90 | T100: 95 | U100: 81.5 | V100: 89 | W100: 72.8 | X100: 72.8 | Y100: 60 | Z100: 4.55 | AA100: 9.25 | AB100: 1 | AC100: 3 | AD100: 3000 | AE100: 1500
A101: 8 | B101: 803 | C101: GREER IND. | D101: 442 Blaney Hollow Rd, Morgantown WV 26508 | E101: BUCKEYE | F101: Morgantown | G101: WV | H101: 55.2 | I101: 61.7 | J101: 60.35 | K101: 60.35 | L101: 60.35 | M101: 68 | N101: 62.5 | O101: 69.1 | P101: 75 | Q101: 69.1 | R101: 73.5 | S101: 90 | T101: 95 | U101: 81.5 | V101: 89 | W101: 72.8 | X101: 72.8 | Y101: 60 | Z101: 4.55 | AA101: 9.25 | AB101: 1 | AC101: 3 | AD101: 3000 | AE101: 1500
A102: 8 | B102: 804 | C102: GREER IND. | D102: 2399 Benedum Dr, Bridgeport, WV 26330 | E102: CLARKSBURG | F102: Bridgeport | G102: WV | H102: 64 | I102: 68.9 | J102: 67 | K102: 67 | L102: 67 | M102: 74.3 | N102: 72 | O102: 74.9 | P102: 80.4 | Q102: 74.9 | R102: 78.2 | S102: 93.5 | T102: 96 | U102: 97 | V102: 107 | W102: 82.3 | X102: 82.3 | Y102: 68 | Z102: 4.55 | AA102: 9.25 | AB102: 10 | AC102: 10 | AD102: 3500 | AE102: 850
A103: 8 | B103: 805 | C103: J F ALLEN | D103: 3105 Harrison Ave., Elkins WV 26257 | E103: ELKINS | F103: Elkins | G103: WV | H103: 63.28 | I103: 62.87 | J103: 68.45 | K103: 68.45 | L103: 69.51 | M103: 72.37 | N103: 68.45 | O103: 77.23 | P103: 77.97 | Q103: 75.37 | R103: 77.97 | S103: 86 | T103: 87.6 | U103: 87.63 | V103: 91.28 | W103: 77.51 | X103: 80.84 | Y103: 77.08 | Z103: 4.75 | AA103: 12.5 | AB103: 10 | AC103: 10 | AD103: 3500 | AE103: 1500
A104: 8 | B104: 806 | C104: J F ALLEN | D104: 320 Alcon Rd, Buckhannon, WV 26201 | E104: BUCKHANNON | F104: Buckhannon | G104: WV | H104: 68.95 | I104: 72.88 | J104: 73.2 | K104: 73.2 | L104: 73.41 | M104: 77.09 | N104: 73.2 | O104: 78.08 | P104: 82.92 | Q104: 78.08 | R104: 83.06 | S104: 97.95 | T104: 100.45 | U104: 94.46 | V104: 97.68 | W104: 83.71 | X104: 86.38 | Y104: 77.74 | Z104: 4.75 | AA104: 12.5 | AB104: 10 | AC104: 10 | AD104: 3500 | AE104: 1500
A105: 8 | B105: 807 | C105: J F ALLEN | D105: 5856 Saltwell Rd, Bridgeport, WV 26330 | E105: SALTWELL | F105: Bridgeport | G105: WV | H105: 69.64 | I105: 73.33 | J105: 73.33 | K105: 73.33 | L105: 73.41 | M105: 77.09 | N105: 73.33 | O105: 78.08 | P105: 82.92 | Q105: 78.08 | R105: 83.06 | S105: 104.95 | T105: 107.59 | U105: 103.17 | V105: 104.2 | W105: 87.08 | X105: 89.67 | Y105: 79.64 | Z105: 4.75 | AA105: 12.5 | AB105: 10 | AC105: 10 | AD105: 3500 | AE105: 1500
A106: 8 | B106: 808 | C106: KELLY PAVING | D106: 123 Dodd Drive, St. Marys WV 26170 | E106: PLANT 14 | F106: St Marys | G106: WV | H106: 80 | I106: 86 | J106: 84 | K106: 84 | L106: 85 | M106: 96 | N106: 86 | O106: 90 | P106: 100 | Q106: 90 | R106: 95 | S106: 0 | T106: 0 | U106: 98 | V106: 0 | W106: 92 | X106: 100 | Y106: 90 | Z106: 6 | AA106: 15 | AB106: 0.3 | AC106: 0.45 | AD106: 5000 | AE106: 500
A107: 8 | B107: 809 | C107: MEADOWS STONE | D107: OLD B&O RAILROAD YARD, GASSAWAY WV 26624 | E107: GASSAWAY | F107: Gassaway | G107: WV | H107: 71 | I107: 78 | J107: 76 | K107: 76 | L107: 76 | M107: 91 | N107: 78 | O107: 79.5 | P107: 81.5 | Q107: 79.5 | R107: 99 | S107: 111 | T107: 123 | U107: 109 | V107: 120 | W107: 79 | X107: 101 | Y107: 79.5 | Z107: 8 | AA107: 12 | AB107: 5 | AC107: 10 | AD107: 3500 | AE107: 900
A108: 8 | B108: 810 | C108: MEADOWS STONE | D108: 3401 POINT MOUNTAIN RD GASSAWAY WV 26624 | E108: MONTERVILLE | F108: Valley Head | G108: WV | H108: 61 | I108: 67 | J108: 65 | K108: 65 | L108: 65 | M108: 86 | N108: 68 | O108: 72.5 | P108: 74.5 | Q108: 72.5 | R108: 92 | S108: 94 | T108: 115 | U108: 93 | V108: 119 | W108: 72 | X108: 96 | Y108: 72.5 | Z108: 8 | AA108: 12 | AB108: 5 | AC108: 10 | AD108: 3500 | AE108: 900
A109: 8 | B109: 811 | C109: STONE ASPHALT | D109: 164 VIP Drive Masontown, WV 26542 | E109: MASONTOWN | F109: Masontown | G109: WV | H109: 60.85 | I109: 60.85 | J109: 63.15 | K109: 63.15 | L109: 62.7 | M109: 64.1 | N109: 66.85 | O109: 69.8 | P109: 72.95 | Q109: 69.8 | R109: 70.8 | S109: 102.5 | T109: 106 | U109: 79.75 | V109: 82.35 | W109: 69.25 | X109: 70.9 | Y109: 62.7 | Z109: 6.9 | AA109: 11.4 | AB109: 0 | AC109: 0 | AD109: 3000 | AE109: 2000
A110: 8 | B110: 812 | C110: WV PAVING | D110: Route 33, Kelly Mountain Rd, Elkins, WV 26241 | E110: ELKINS | F110: Elkins | G110: WV | H110: 67.5 | I110: 67.5 | J110: 73.75 | K110: 73.75 | L110: 76 | M110: 80 | N110: 75 | O110: 80.5 | P110: 83 | Q110: 80.5 | R110: 83 | S110: 0 | T110: 0 | U110: 101 | V110: 0 | W110: 78.5 | X110: 78.5 | Y110: 80.5 | Z110: 4 | AA110: 12 | AB110: 2 | AC110: 5 | AD110: 4000 | AE110: 1500
A111: 8 | B111: 813 | C111: WV PAVING | D111: Greenland Gap Rd, Scherr, WV 26726 | E111: SCHERR | F111: Scherr | G111: WV | H111: 71.5 | I111: 71.5 | J111: 79.5 | K111: 79.5 | L111: 81.5 | M111: 93 | N111: 79 | O111: 84 | P111: 97 | Q111: 84 | R111: 97 | S111: 0 | T111: 0 | U111: 104 | V111: 0 | W111: 99 | X111: 99 | Y111: 84 | Z111: 4 | AA111: 12 | AB111: 2 | AC111: 5 | AD111: 4000 | AE111: 1500
A112: 8 | B112: 814 | C112: WV PAVING | D112: Rt. 60, West Lewisburg Asbury, WV 24916 | E112: ALTA | F112: Lewisburg | G112: WV | H112: 85.75 | I112: 85.75 | J112: 92 | K112: 92 | L112: 94 | M112: 0 | N112: 92.5 | O112: 97.5 | P112: 108.25 | Q112: 97.5 | R112: 108.25 | S112: 0 | T112: 0 | U112: 0 | V112: 0 | W112: 105 | X112: 105 | Y112: 97.5 | Z112: 4 | AA112: 12 | AB112: 2 | AC112: 5 | AD112: 4000 | AE112: 1500
A113: 9 | B113: 901 | C113: AAA PAVING | D113: 560 TURNPIKE IND PARK RD, PRINCETON WV | E113: PRINCETON | F113: Princeton | G113: WV | H113: 65 | I113: 0 | J113: 75 | K113: 75 | L113: 75 | M113: 0 | N113: 75 | O113: 77 | P113: 90 | Q113: 78 | R113: 86 | S113: 0 | T113: 0 | U113: 0 | V113: 0 | W113: 0 | X113: 0 | Y113: 78 | Z113: 5 | AA113: 12 | AB113: 0.01 | AC113: 0.01 | AD113: 3500 | AE113: 1000
A114: 9 | B114: 902 | C114: AMERICAN ASPHALT | D114: 484 Industrial Rd, St Albans, WV 25177 | E114: ST ALBANS | F114: St Albans | G114: WV | H114: 74.51 | I114: 75.51 | J114: 77.54 | K114: 77.54 | L114: 78.59 | M114: 85.91 | N114: 79.19 | O114: 85.39 | P114: 89.89 | Q114: 85.39 | R114: 89.25 | S114: 110 | T114: 110 | U114: 105 | V114: 110 | W114: 89.11 | X114: 89.11 | Y114: 85.39 | Z114: 5 | AA114: 12.5 | AB114: 0 | AC114: 0 | AD114: 3500 | AE114: 1000
A115: 9 | B115: 903 | C115: GREENBRIER EXCAVATING | D115: 232 Rambler Rd, Lewisburg, WV 24901 | E115: LEWISBURG | F115: Lewisburg | G115: WV | H115: 62.32 | I115: 0 | J115: 72.87 | K115: 72.87 | L115: 73.61 | M115: 0 | N115: 0 | O115: 76.18 | P115: 0 | Q115: 75.92 | R115: 84.55 | S115: 0 | T115: 0 | U115: 0 | V115: 0 | W115: 0 | X115: 0 | Y115: 75.92 | Z115: 0 | AA115: 0 | AB115: 0 | AC115: 0 | AD115: 3000 | AE115: 750
A116: 9 | B116: 904 | C116: J F ALLEN | D116: 3105 Harrison Ave., Elkins WV 26257 | E116: ELKINS | F116: Elkins | G116: WV | H116: 63.28 | I116: 62.87 | J116: 68.45 | K116: 68.45 | L116: 69.51 | M116: 72.37 | N116: 68.45 | O116: 77.23 | P116: 77.97 | Q116: 75.37 | R116: 77.97 | S116: 86 | T116: 87.6 | U116: 87.63 | V116: 91.28 | W116: 77.51 | X116: 80.84 | Y116: 77.08 | Z116: 4.75 | AA116: 12.5 | AB116: 10 | AC116: 10 | AD116: 3500 | AE116: 1500
A117: 9 | B117: 905 | C117: J F ALLEN | D117: 320 Alcon Rd, Buckhannon, WV 26201 | E117: BUCKHANNON | F117: Buckhannon | G117: WV | H117: 68.95 | I117: 72.88 | J117: 73.2 | K117: 73.2 | L117: 73.41 | M117: 77.09 | N117: 73.2 | O117: 78.08 | P117: 82.92 | Q117: 78.08 | R117: 83.06 | S117: 97.95 | T117: 100.45 | U117: 94.46 | V117: 97.68 | W117: 83.71 | X117: 86.38 | Y117: 77.74 | Z117: 4.75 | AA117: 12.5 | AB117: 10 | AC117: 10 | AD117: 3500 | AE117: 1500
A118: 9 | B118: 906 | C118: J F ALLEN | D118: 5856 Saltwell Rd, Bridgeport, WV 26330 | E118: SALTWELL | F118: Bridgeport | G118: WV | H118: 69.64 | I118: 73.33 | J118: 73.33 | K118: 73.33 | L118: 73.41 | M118: 77.09 | N118: 73.33 | O118: 78.08 | P118: 82.92 | Q118: 78.08 | R118: 83.06 | S118: 104.95 | T118: 107.59 | U118: 103.17 | V118: 104.2 | W118: 87.08 | X118: 89.67 | Y118: 79.64 | Z118: 4.75 | AA118: 12.5 | AB118: 10 | AC118: 10 | AD118: 3500 | AE118: 1500
A119: 9 | B119: 907 | C119: KELLY PAVING | D119: 123 Dodd Drive, St. Marys WV 26170 | E119: PLANT 14 | F119: St Marys | G119: WV | H119: 80 | I119: 86 | J119: 84 | K119: 84 | L119: 85 | M119: 96 | N119: 86 | O119: 90 | P119: 100 | Q119: 90 | R119: 95 | S119: 0 | T119: 0 | U119: 98 | V119: 0 | W119: 92 | X119: 100 | Y119: 90 | Z119: 6 | AA119: 15 | AB119: 0.3 | AC119: 0.45 | AD119: 5000 | AE119: 500
A120: 9 | B120: 908 | C120: MEADOWS STONE | D120: OLD B&O RAILROAD YARD, GASSAWAY WV 26624 | E120: GASSAWAY | F120: Gassaway | G120: WV | H120: 72 | I120: 79 | J120: 77 | K120: 77 | L120: 77 | M120: 92 | N120: 79 | O120: 80.5 | P120: 82.5 | Q120: 80.5 | R120: 100 | S120: 112 | T120: 124 | U120: 110 | V120: 121 | W120: 80 | X120: 102 | Y120: 80.5 | Z120: 8 | AA120: 12 | AB120: 5 | AC120: 10 | AD120: 3500 | AE120: 900
A121: 9 | B121: 909 | C121: MEADOWS STONE | D121: 3401 POINT MOUNTAIN RD GASSAWAY WV 26624 | E121: MONTERVILLE | F121: Valley Head | G121: WV | H121: 62 | I121: 68 | J121: 66 | K121: 66 | L121: 66 | M121: 87 | N121: 69 | O121: 73.5 | P121: 73.5 | Q121: 73.5 | R121: 93 | S121: 95 | T121: 116 | U121: 94 | V121: 120 | W121: 73 | X121: 97 | Y121: 72.5 | Z121: 8 | AA121: 12 | AB121: 5 | AC121: 10 | AD121: 3500 | AE121: 900
A122: 9 | B122: 910 | C122: WV PAVING | D122: 195 Southern Industrial Dr. Beaver, WV 25813 | E122: BEAVER | F122: Beaver | G122: WV | H122: 95.5 | I122: 95.5 | J122: 98.5 | K122: 98.5 | L122: 100.5 | M122: 0 | N122: 99.25 | O122: 104.5 | P122: 110 | Q122: 104.5 | R122: 107 | S122: 0 | T122: 0 | U122: 117 | V122: 0 | W122: 104 | X122: 104 | Y122: 104.5 | Z122: 4 | AA122: 12 | AB122: 2 | AC122: 5 | AD122: 4000 | AE122: 1500
A123: 9 | B123: 911 | C123: WV PAVING | D123: Rt. 60, West Lewisburg Asbury, WV 24916 | E123: ALTA | F123: Lewisburg | G123: WV | H123: 85.75 | I123: 85.75 | J123: 92 | K123: 92 | L123: 94 | M123: 0 | N123: 92.5 | O123: 97.5 | P123: 108.25 | Q123: 97.5 | R123: 108.25 | S123: 0 | T123: 0 | U123: 0 | V123: 0 | W123: 105 | X123: 105 | Y123: 97.5 | Z123: 4 | AA123: 12 | AB123: 2 | AC123: 5 | AD123: 4000 | AE123: 1500
A124: 9 | B124: 912 | C124: WV PAVING | D124: 2816 Frontage Rd, Summersville, WV 26651 | E124: SUMMERSVILLE | F124: Summersville | G124: WV | H124: 94 | I124: 94 | J124: 98 | K124: 98 | L124: 100 | M124: 0 | N124: 98.5 | O124: 108 | P124: 110 | Q124: 108 | R124: 110 | S124: 0 | T124: 0 | U124: 117 | V124: 0 | W124: 105 | X124: 105 | Y124: 108 | Z124: 4 | AA124: 12 | AB124: 2 | AC124: 5 | AD124: 4000 | AE124: 1500
A125: 9 | B125: 913 | C125: WV PAVING | D125: 6941 Ingleside Dr Princeton, WV 24740 | E125: PRINCETON | F125: Princeton | G125: WV | H125: 76 | I125: 76 | J125: 85.5 | K125: 85.5 | L125: 87.5 | M125: 0 | N125: 86 | O125: 88.5 | P125: 102.5 | Q125: 88.5 | R125: 101.5 | S125: 0 | T125: 0 | U125: 0 | V125: 0 | W125: 100.5 | X125: 100.5 | Y125: 88.5 | Z125: 4 | AA125: 12 | AB125: 2 | AC125: 5 | AD125: 4000 | AE125: 1500
A126: 9 | B126: 914 | C126: WV PAVING | D126: 2902 Charles Ave Dunbar, WV 25064 | E126: DUNBAR | F126: Dunbar | G126: WV | H126: 85.5 | I126: 85.5 | J126: 87 | K126: 87 | L126: 89 | M126: 0 | N126: 90.5 | O126: 94.5 | P126: 106.5 | Q126: 94.5 | R126: 103.5 | S126: 0 | T126: 0 | U126: 112.5 | V126: 0 | W126: 102.5 | X126: 102.5 | Y126: 94.5 | Z126: 4 | AA126: 12 | AB126: 2 | AC126: 5 | AD126: 4000 | AE126: 1500
A127: 10 | B127: 1001 | C127: AAA PAVING | D127: 560 TURNPIKE IND PARK RD, PRINCETON WV | E127: PRINCETON | F127: Princeton | G127: WV | H127: 65 | I127: 0 | J127: 75 | K127: 75 | L127: 75 | M127: 0 | N127: 75 | O127: 77 | P127: 90 | Q127: 78 | R127: 86 | S127: 0 | T127: 0 | U127: 0 | V127: 0 | W127: 0 | X127: 0 | Y127: 78 | Z127: 5 | AA127: 12 | AB127: 0.01 | AC127: 0.01 | AD127: 3500 | AE127: 1000
A128: 10 | B128: 1002 | C128: AMERICAN ASPHALT | D128: 484 Industrial Rd, St Albans, WV 25177 | E128: ST ALBANS | F128: St Albans | G128: WV | H128: 74.51 | I128: 75.51 | J128: 77.54 | K128: 77.54 | L128: 78.59 | M128: 85.91 | N128: 79.19 | O128: 85.39 | P128: 89.89 | Q128: 85.39 | R128: 89.25 | S128: 110 | T128: 110 | U128: 105 | V128: 110 | W128: 89.11 | X128: 89.11 | Y128: 85.39 | Z128: 5 | AA128: 12.5 | AB128: 0 | AC128: 0 | AD128: 3500 | AE128: 1000
A129: 10 | B129: 1003 | C129: AMERICAN ASPHALT | D129: 2334 Rt 52, Kenova, WV 25530 | E129: KENOVA | F129: Kenova | G129: WV | H129: 73.99 | I129: 74.99 | J129: 76.95 | K129: 76.95 | L129: 77.68 | M129: 84.41 | N129: 77.25 | O129: 84.56 | P129: 89.03 | Q129: 84.56 | R129: 88.83 | S129: 110 | T129: 110 | U129: 105 | V129: 110 | W129: 89.11 | X129: 89.11 | Y129: 84.56 | Z129: 5 | AA129: 12.5 | AB129: 0 | AC129: 0 | AD129: 3500 | AE129: 1000
A130: 10 | B130: 1004 | C130: GREENBRIER EXCAVATING | D130: 232 Rambler Rd, Lewisburg, WV 24901 | E130: LEWISBURG | F130: Lewisburg | G130: WV | H130: 62.32 | I130: 0 | J130: 72.87 | K130: 72.87 | L130: 73.61 | M130: 0 | N130: 0 | O130: 76.18 | P130: 0 | Q130: 75.92 | R130: 84.55 | S130: 0 | T130: 0 | U130: 0 | V130: 0 | W130: 0 | X130: 0 | Y130: 75.92 | Z130: 0 | AA130: 0 | AB130: 0 | AC130: 0 | AD130: 3000 | AE130: 750
A131: 10 | B131: 1005 | C131: J F ALLEN | D131: 3105 Harrison Ave., Elkins WV 26257 | E131: ELKINS | F131: Elkins | G131: WV | H131: 63.28 | I131: 62.87 | J131: 68.45 | K131: 68.45 | L131: 69.51 | M131: 72.37 | N131: 68.45 | O131: 77.23 | P131: 77.97 | Q131: 75.37 | R131: 77.97 | S131: 86 | T131: 87.6 | U131: 87.63 | V131: 91.28 | W131: 77.51 | X131: 80.84 | Y131: 77.08 | Z131: 4.75 | AA131: 12.5 | AB131: 10 | AC131: 10 | AD131: 3500 | AE131: 1500
A132: 10 | B132: 1006 | C132: J F ALLEN | D132: 320 Alcon Rd, Buckhannon, WV 26201 | E132: BUCKHANNON | F132: Buckhannon | G132: WV | H132: 68.95 | I132: 72.88 | J132: 73.2 | K132: 73.2 | L132: 73.41 | M132: 77.09 | N132: 73.2 | O132: 78.08 | P132: 82.92 | Q132: 78.08 | R132: 83.06 | S132: 97.95 | T132: 100.45 | U132: 94.46 | V132: 97.68 | W132: 83.71 | X132: 86.38 | Y132: 77.74 | Z132: 4.75 | AA132: 12.5 | AB132: 10 | AC132: 10 | AD132: 3500 | AE132: 1500
A133: 10 | B133: 1007 | C133: J F ALLEN | D133: 5856 Saltwell Rd, Bridgeport, WV 26330 | E133: SALTWELL | F133: Bridgeport | G133: WV | H133: 69.64 | I133: 73.33 | J133: 73.33 | K133: 73.33 | L133: 73.41 | M133: 77.09 | N133: 73.33 | O133: 78.08 | P133: 82.92 | Q133: 78.08 | R133: 83.06 | S133: 104.95 | T133: 107.59 | U133: 103.17 | V133: 104.2 | W133: 87.08 | X133: 89.67 | Y133: 79.64 | Z133: 4.75 | AA133: 12.5 | AB133: 10 | AC133: 10 | AD133: 3500 | AE133: 1500
A134: 10 | B134: 1008 | C134: KELLY PAVING | D134: 123 Dodd Drive, St. Marys WV 26170 | E134: PLANT 14 | F134: St Marys | G134: WV | H134: 80 | I134: 86 | J134: 84 | K134: 84 | L134: 85 | M134: 96 | N134: 86 | O134: 90 | P134: 100 | Q134: 90 | R134: 95 | S134: 0 | T134: 0 | U134: 98 | V134: 0 | W134: 92 | X134: 100 | Y134: 90 | Z134: 6 | AA134: 15 | AB134: 0.3 | AC134: 0.45 | AD134: 5000 | AE134: 500
A135: 10 | B135: 1009 | C135: WV PAVING | D135: 195 Southern Industrial Dr. Beaver, WV 25813 | E135: BEAVER | F135: Beaver | G135: WV | H135: 95.5 | I135: 95.5 | J135: 98.5 | K135: 98.5 | L135: 100.5 | M135: 0 | N135: 99.25 | O135: 104.5 | P135: 110 | Q135: 104.5 | R135: 107 | S135: 0 | T135: 0 | U135: 117 | V135: 0 | W135: 104 | X135: 104 | Y135: 104.5 | Z135: 4 | AA135: 12 | AB135: 2 | AC135: 5 | AD135: 4000 | AE135: 1500
A136: 10 | B136: 1010 | C136: WV PAVING | D136: US 119 Whitman Creek Rd., Whitman, WV 25652 | E136: WHITMAN | F136: Whitman | G136: WV | H136: 105.5 | I136: 105.5 | J136: 112 | K136: 112 | L136: 114 | M136: 117.5 | N136: 113.5 | O136: 119.5 | P136: 121.5 | Q136: 119.5 | R136: 120.5 | S136: 0 | T136: 0 | U136: 0 | V136: 0 | W136: 118.5 | X136: 118.5 | Y136: 119.5 | Z136: 4 | AA136: 12 | AB136: 2 | AC136: 5 | AD136: 4000 | AE136: 1500
A137: 10 | B137: 1011 | C137: WV PAVING | D137: 6941 Ingleside Dr Princeton, WV 24740 | E137: PRINCETON | F137: Princeton | G137: WV | H137: 76 | I137: 76 | J137: 85.5 | K137: 85.5 | L137: 87.5 | M137: 0 | N137: 86 | O137: 88.5 | P137: 102.5 | Q137: 88.5 | R137: 101.5 | S137: 0 | T137: 0 | U137: 0 | V137: 0 | W137: 100.5 | X137: 100.5 | Y137: 88.5 | Z137: 4 | AA137: 12 | AB137: 2 | AC137: 5 | AD137: 4000 | AE137: 1500
B143: 00 | D143: Not Applicable
B144: 01 | D144: Alternate
B145: 02 | D145: Wye
B146: 03 | D146: Spur
B147: 04 | D147: North | J147: Barbour | K147: 01 | L147: 07
B148: 05 | D148: South | J148: Berkeley | K148: 02 | L148: 05 | O148: Sign System
B149: 06 | D149: East | J149: Boone | K149: 03 | L149: 01 | O149: I | P149: 1
B150: 07 | D150: West | J150: Braxton | K150: 04 | L150: 07 | O150: US | P150: 2
B151: 08 | D151: Business | J151: Brooke | K151: 05 | L151: 06 | O151: WV | P151: 3
B152: 09 | D152: North Bound(Business) | J152: Cabell | K152: 06 | L152: 02 | O152: CO | P152: 4
B153: 10 | D153: South Bound(Business) | J153: Calhoun | K153: 07 | L153: 03 | O153: PF | P153: 6
B154: 11 | D154: East Bound(Business) | J154: Clay | K154: 08 | L154: 01 | O154: HA | P154: 8
B155: 12 | D155: West Bound(Business) | J155: Doddridge | K155: 09 | L155: 04
B156: 13 | D156: Truck Route | J156: Fayette | K156: 10 | L156: 09
B157: 14 | D157: Bypass | J157: Gilmer | K157: 11 | L157: 07
B158: 15 | D158: Loop | J158: Grant | K158: 12 | L158: 05
B159: 16 | D159: Toll | J159: Greenbrier | K159: 13 | L159: 09
B160: 17 | D160: Ramp | J160: Hampshire | K160: 14 | L160: 05
B161: 18 | D161: Other | J161: Hancock | K161: 15 | L161: 06
B162: 19 | D162: City Streets - Non-State | J162: Hardy | K162: 16 | L162: 05
B163: 20 | D163: Roads Under Construction | J163: Harrison | K163: 17 | L163: 04
B164: 21 | D164: Footbridges | J164: Jackson | K164: 18 | L164: 03
B165: 22 | D165: Historical Bridges | J165: Jefferson | K165: 19 | L165: 05
J166: Kanawha | K166: 20 | L166: 01
J167: Lewis | K167: 21 | L167: 07
B168: Yes | J168: Lincoln | K168: 22 | L168: 02
B169: No | J169: Logan | K169: 23 | L169: 02
J170: McDowell | K170: 24 | L170: 10
B171: Vendor A | J171: Marion | K171: 25 | L171: 04
B172: Vendor B | J172: Marshall | K172: 26 | L172: 06
B173: Vendor C | J173: Mason | K173: 27 | L173: 01
B174: Vendor D | J174: Mercer | K174: 28 | L174: 10
B175: Vendor E | J175: Mineral | K175: 29 | L175: 05
B176: Vendor F | J176: Mingo | K176: 30 | L176: 02
B177: Vendor G | J177: Monongalia | K177: 31 | L177: 04
B178: Vendor H | J178: Monroe | K178: 32 | L178: 09
B179: Vendor I | J179: Morgan | K179: 33 | L179: 05
B180: Vendor J | J180: Nicholas | K180: 34 | L180: 09
B181: Vendor K | J181: Ohio | K181: 35 | L181: 06
B182: Vendor L | J182: Pendleton | K182: 36 | L182: 08
B183: Vendor M | J183: Pleasants | K183: 37 | L183: 03
B184: Vendor N | J184: Pocahontas | K184: 38 | L184: 08
B185: Vendor O | J185: Preston | K185: 39 | L185: 04
B186: Vendor P | J186: Putnam | K186: 40 | L186: 01
B187: Vendor Q | J187: Raleigh | K187: 41 | L187: 10
B188: Vendor R | J188: Randolph | K188: 42 | L188: 08
J189: Ritchie | K189: 43 | L189: 03
J190: Roane | K190: 44 | L190: 03
J191: Summers | K191: 45 | L191: 09
J192: Taylor | K192: 46 | L192: 04
J193: Tucker | K193: 47 | L193: 08
J194: Tyler | K194: 48 | L194: 06
J195: Upshur | K195: 49 | L195: 07
J196: Wayne | K196: 50 | L196: 02
J197: Webster | K197: 51 | L197: 07
J198: Wetzel | K198: 52 | L198: 06
J199: Wirt | K199: 53 | L199: 03
J200: Wood | K200: 54 | L200: 03
J201: Wyoming | K201: 55 | L201: 10

Sheet Order Details
A1: HOT-LAID BITUMINOUS CONCRETE PROJECT COST
B2: County | D2: District | I2: Estimated Asphalt Quantities | K2: Unit(s)
B3: Berkeley | D3: =VLOOKUP(B3,County,3,FALSE) -> 05 | I3: HMA Required for Pavement | J3: =E24*B26*110/2000 -> 0 | K3: TONS
I4: HMA Required for Shoulders | J4: =E28*B30*110/2000 -> 0 | K4: TONS
A6: Sign | D6: BMP | H6: Item | I6: Description | J6: Quantity | K6: Unit(s)
A7: Route | D7: EMP | H7: 1 | I7: Asphalt Section 401 - Base I | J7: 1 | K7: Ton | M7: Potential Vendors
A8: Subroute | H8: 2 | I8: Asphalt Section 401 - 25mm Superpave | K8: Ton | M8: PID | N8: Vendor | O8: Plant Location
A9: Supplemental Designation | H9: 3 | I9: Asphalt Section 401 - Base II | K9: Ton | M9: 501 | N9: BELT PAVING | O9: 11269 Waxler Rd, Keyser WV 26726
A10: Designation | B10: =VLOOKUP($B$9,'LookUp Tables'!SAList,2) ->  | H10: 4 | I10: Asphalt Section 401 - Patch and Level | K10: Ton | M10: 502 | N10: GREENBRIER EXCAVATING | O10: 232 Rambler Rd, Lewisburg, WV 24901
H11: 5 | I11: Asphalt Section 401 - Wearing IV | K11: Ton | M11: 503 | N11: WL CONTRUCTION | O11: 390 Pedal Car Drive, Inwood, WV 25428
A12: Route ID Builder Link: | H12: 6 | I12: Asphalt Section 402 - Wearing IV | K12: Ton | M12: 504 | N12: WL CONTRUCTION | O12: 57 Blair Rd, Harpers Ferry WV 25425
A13: GIS Route ID | H13: 7 | I13: Asphalt Section 401 - 19mm Superpave | K13: Ton | M13: 505 | N13: WL CONTRUCTION | O13: 866 Oranda Rd., Strasburg VA 22657
A14: Begin | H14: 8 | I14: Asphalt Section 401 - Scratch Course | K14: Ton | M14: 506 | N14: WL CONTRUCTION | O14: 660 Quarry Lane Clearbrook VA 22624
A15: End | H15: 9 | I15: Asphalt Section 402 - 9.5mm Superpave | K15: Ton | M15: 507 | N15: JF ALLEN | O15: 3105 Harrison Ave., Elkins WV 26257
A16: Project Location | H16: 10 | I16: Asphalt Section 401 - Wearing 1 | K16: Ton | M16: 508 | N16: JF ALLEN | O16: 320 Alcon Rd, Buckhannon, WV 26201
A17: Project Type | H17: 11 | I17: Asphalt Section 402 - Wearing 1 | K17: Ton | M17: 509 | N17: JF ALLEN | O17: 5856 Saltwell Rd, Bridgeport, WV 26330
A18: Project Description | H18: 12 | I18: Asphalt Section 401 - 4.75mm Superpave | K18: Ton | M18: 510 | N18: P&W Excavating | O18: Warfordsburg, PA 17267
A19: Agency Release No.: | H19: 13 | I19: Asphalt Section 402 - 4.75mm Superpave | K19: Ton | M19: 511 | N19: STUART M PERRY | O19: 117 Limestone Lane, Winchester, VA 22602
A20: Project # | H20: 14 | I20: Asphalt Section 401 - Wearing III | K20: Ton | M20: 512 | N20: KELLY PAVING | O20: 123 Dodd Drive, St. Marys WV 26170
A21: Authorization # | H21: 15 | I21: Asphalt Section 402 - Wearing III | K21: Ton | M21: 513 | N21: C WILLIAM HETZER INC | O21: 10104 Mapleville Road Hagerstown, MD 21740
H22: 16 | I22: Asphalt Section 401 - 12.5mm Superpave | K22: Ton | M22: 514 | N22: NEW ENTERPRISE | O22: 3587 Stone Quarry Rd Chamersburg PA 17201
A23: Paving | E23: Area | H23: 17 | I23: Asphalt Section 402 - 12.5mm Superpave | K23: Ton | M23: 515 | N23: NEW ENTERPRISE | O23: 526 Ashcom Rd Everett PA 15537
A24: Length | C24: Miles | D24: >>>>>>>> | E24: =B24*1760*B25/3 -> 0 | F24: Square Yards | H24: 18 | I24: Asphalt Plant Run | K24: Ton | M24: 516 | N24: WV PAVING | O24: Greenland Gap Rd, Scherr, WV 26726
A25: Average Width | C25: Feet | E25: =B27*B24 -> 0 | F25: Lane Miles | H25: 19 | I25: Surcharge for PG Binder - 64H minus 22 | K25: Ton
A26: Average Thickness | C26: Inches | H26: 20 | I26: Surcharge for PG Binder - 64E minus 22 - ordered in 400 ton increments | K26: Ton
A27: Lanes | E27: Area | H27: 21 | I27: ESAL Surcharge - 3 million to 20 million ESALs | K27: Ton
A28: Shoulder Excavation Depth | C28: Inches | D28: >>>>>>> | E28: =B24*1760*B29/3 -> 0 | F28: Square Yards | H28: 22 | I28: ESAL Surcharge - Greater than 20 million ESALs | K28: Ton
A29: Avg Shoulder Width | C29: Feet | H29: 23 | I29: Off-Season Plant Opening - First Day | K29: Day
A30: Avg Shoulder Thickness | C30: Inches | H30: 24 | I30: Off-Season Plant Opening - Each Additional Day | K30: Days

Sheet Vendor Totals
B1: Lowest Bid | C1: =SMALL(CB8:CB25,COUNTIF(CB8:CB25,0)+1) -> 31.48
C2: =VLOOKUP(B3,'Order Details'!_xlnm.Extract,2,0) -> C WILLIAM HETZER INC | F2: Vendor A | J2: Vendor B | N2: Vendor C | R2: Vendor D | V2: Vendor E | Z2: Vendor F | AD2: Vendor G | AH2: Vendor H | AL2: Vendor I | AP2: Vendor J | AT2: Vendor K | AX2: Vendor L | BB2: Vendor M | BF2: Vendor N | BJ2: Vendor O | BN2: Vendor P | BR2: Vendor Q | BV2: Vendor R
B3: =VLOOKUP(C1,CB8:CC25,2,0) -> 513 | C3: =VLOOKUP(B3,'Order Details'!_xlnm.Extract,3,0) -> 10104 Mapleville Road Hagerstown, MD 21740 | F3: =H3 -> 501 | H3: ='Order Details'!$M9 -> 501 | J3: =L3 -> 502 | L3: ='Order Details'!$M10 -> 502 | N3: =P3 -> 503 | P3: ='Order Details'!$M11 -> 503 | R3: =T3 -> 504 | T3: ='Order Details'!$M12 -> 504 | V3: =X3 -> 505 | X3: ='Order Details'!$M13 -> 505 | Z3: =AB3 -> 506 | AB3: ='Order Details'!$M14 -> 506 | AD3: =AF3 -> 507 | AF3: ='Order Details'!$M15 -> 507 | AH3: =AJ3 -> 508 | AJ3: ='Order Details'!$M16 -> 508 | AL3: =AN3 -> 509 | AN3: ='Order Details'!$M17 -> 509 | AP3: =AR3 -> 510 | AR3: ='Order Details'!$M18 -> 510 | AT3: =AV3 -> 511 | AV3: ='Order Details'!$M19 -> 511 | AX3: =AZ3 -> 512 | AZ3: ='Order Details'!$M20 -> 512 | BB3: =BD3 -> 513 | BD3: ='Order Details'!$M21 -> 513 | BF3: =BH3 -> 514 | BH3: ='Order Details'!$M22 -> 514 | BJ3: =BL3 -> 515 | BL3: ='Order Details'!$M23 -> 515 | BN3: =BP3 -> 516 | BP3: ='Order Details'!$M24 -> 516 | BR3: =BT3 -> 0 | BT3: ='Order Details'!$M25 -> 0 | BV3: =BX3 -> 0 | BX3: ='Order Details'!$M26 -> 0
F4: ='Order Details'!$N9 -> BELT PAVING | J4: ='Order Details'!$N10 -> GREENBRIER EXCAVATING | N4: ='Order Details'!$N11 -> WL CONTRUCTION | R4: ='Order Details'!$N12 -> WL CONTRUCTION | V4: ='Order Details'!$N13 -> WL CONTRUCTION | Z4: ='Order Details'!$N14 -> WL CONTRUCTION | AD4: ='Order Details'!$N15 -> JF ALLEN | AH4: ='Order Details'!$N16 -> JF ALLEN | AL4: ='Order Details'!$N17 -> JF ALLEN | AP4: ='Order Details'!$N18 -> P&W Excavating | AT4: ='Order Details'!$N19 -> STUART M PERRY | AX4: ='Order Details'!$N20 -> KELLY PAVING | BB4: ='Order Details'!$N21 -> C WILLIAM HETZER INC | BF4: ='Order Details'!$N22 -> NEW ENTERPRISE | BJ4: ='Order Details'!$N23 -> NEW ENTERPRISE | BN4: ='Order Details'!$N24 -> WV PAVING | BR4: ='Order Details'!$N25 -> 0 | BV4: ='Order Details'!$N26 -> 0
F5: ='Order Details'!$O9 -> 11269 Waxler Rd, Keyser WV 26726 | J5: ='Order Details'!$O10 -> 232 Rambler Rd, Lewisburg, WV 24901 | N5: ='Order Details'!$O11 -> 390 Pedal Car Drive, Inwood, WV 25428 | R5: ='Order Details'!$O12 -> 57 Blair Rd, Harpers Ferry WV 25425 | V5: ='Order Details'!$O13 -> 866 Oranda Rd., Strasburg VA 22657 | Z5: ='Order Details'!$O14 -> 660 Quarry Lane Clearbrook VA 22624 | AD5: ='Order Details'!$O15 -> 3105 Harrison Ave., Elkins WV 26257 | AH5: ='Order Details'!$O16 -> 320 Alcon Rd, Buckhannon, WV 26201 | AL5: ='Order Details'!$O17 -> 5856 Saltwell Rd, Bridgeport, WV 26330 | AP5: ='Order Details'!$O18 -> Warfordsburg, PA 17267 | AT5: ='Order Details'!$O19 -> 117 Limestone Lane, Winchester, VA 22602 | AX5: ='Order Details'!$O20 -> 123 Dodd Drive, St. Marys WV 26170 | BB5: ='Order Details'!$O21 -> 10104 Mapleville Road Hagerstown, MD 21740 | BF5: ='Order Details'!$O22 -> 3587 Stone Quarry Rd Chamersburg PA 17201 | BJ5: ='Order Details'!$O23 -> 526 Ashcom Rd Everett PA 15537 | BN5: ='Order Details'!$O24 -> Greenland Gap Rd, Scherr, WV 26726 | BR5: ='Order Details'!$O25 -> 0 | BV5: ='Order Details'!$O26 -> 0
F6: PROJECT TOTAL | H6: =IFERROR(IF(I32="Incomplete","Incomplete",SUM(H8:H31)),"") -> 40.48 | J6: PROJECT TOTAL | L6: =IFERROR(IF(M32="Incomplete","Incomplete",SUM(L8:L31)),"") -> 37.3 | N6: PROJECT TOTAL | P6: =IFERROR(IF(Q32="Incomplete","Incomplete",SUM(P8:P31)),"") -> 38.48 | R6: PROJECT TOTAL | T6: =IFERROR(IF(U32="Incomplete","Incomplete",SUM(T8:T31)),"") -> 41.18 | V6: PROJECT TOTAL | X6: =IFERROR(IF(Y32="Incomplete","Incomplete",SUM(X8:X31)),"") -> 38.48 | Z6: PROJECT TOTAL | AB6: =IFERROR(IF(AC32="Incomplete","Incomplete",SUM(AB8:AB31)),"") -> 38.48 | AD6: PROJECT TOTAL | AF6: =IFERROR(IF(AG32="Incomplete","Incomplete",SUM(AF8:AF31)),"") -> 38.26 | AH6: PROJECT TOTAL | AJ6: =IFERROR(IF(AK32="Incomplete","Incomplete",SUM(AJ8:AJ31)),"") -> 43.93 | AL6: PROJECT TOTAL | AN6: =IFERROR(IF(AO32="Incomplete","Incomplete",SUM(AN8:AN31)),"") -> 44.62 | AP6: PROJECT TOTAL | AR6: =IFERROR(IF(AS32="Incomplete","Incomplete",SUM(AR8:AR31)),"") -> 44.48 | AT6: PROJECT TOTAL | AV6: =IFERROR(IF(AW32="Incomplete","Incomplete",SUM(AV8:AV31)),"") -> Incomplete | AX6: PROJECT TOTAL | AZ6: =IFERROR(IF(BA32="Incomplete","Incomplete",SUM(AZ8:AZ31)),"") -> 54.98 | BB6: PROJECT TOTAL | BD6: =IFERROR(IF(BE32="Incomplete","Incomplete",SUM(BD8:BD31)),"") -> 31.48 | BF6: PROJECT TOTAL | BH6: =IFERROR(IF(BI32="Incomplete","Incomplete",SUM(BH8:BH31)),"") -> 44.98 | BJ6: PROJECT TOTAL | BL6: =IFERROR(IF(BM32="Incomplete","Incomplete",SUM(BL8:BL31)),"") -> 44.98 | BN6: PROJECT TOTAL | BP6: =IFERROR(IF(BQ32="Incomplete","Incomplete",SUM(BP8:BP31)),"") -> 46.48 | BR6: PROJECT TOTAL | BT6: =IFERROR(IF(BU32="Incomplete","Incomplete",SUM(BT8:BT31)),"") -> 0 | BV6: PROJECT TOTAL | BX6: =IFERROR(IF(BY32="Incomplete","Incomplete",SUM(BX8:BX31)),"") -> 0
B7: Item | C7: Description | E7: Quantity | F7: Unit $ | G7: Unit $ with Qty | H7: Adjusted | J7: Unit $ | K7: Unit $ with Qty | L7: Adjusted | N7: Unit $ | O7: Unit $ with Qty | P7: Adjusted | R7: Unit $ | S7: Unit $ with Qty | T7: Adjusted | V7: Unit $ | W7: Unit $ with Qty | X7: Adjusted | Z7: Unit $ | AA7: Unit $ with Qty | AB7: Adjusted | AD7: Unit $ | AE7: Unit $ with Qty | AF7: Adjusted | AH7: Unit $ | AI7: Unit $ with Qty | AJ7: Adjusted | AL7: Unit $ | AM7: Unit $ with Qty | AN7: Adjusted | AP7: Unit $ | AQ7: Unit $ with Qty | AR7: Adjusted | AT7: Unit $ | AU7: Unit $ with Qty | AV7: Adjusted | AX7: Unit $ | AY7: Unit $ with Qty | AZ7: Adjusted | BB7: Unit $ | BC7: Unit $ with Qty | BD7: Adjusted | BF7: Unit $ | BG7: Unit $ with Qty | BH7: Adjusted | BJ7: Unit $ | BK7: Unit $ with Qty | BL7: Adjusted | BN7: Unit $ | BO7: Unit $ with Qty | BP7: Adjusted | BR7: Unit $ | BS7: Unit $ with Qty | BT7: Adjusted | BV7: Unit $ | BW7: Unit $ with Qty | BX7: Adjusted
B8: 1 | C8: Asphalt Section 401 - Base I | E8: ='Order Details'!J7 -> 1 | F8: =IFERROR(VLOOKUP(H$3,Data!$B$4:$AE$137,7,0),"") -> 65.5 | G8: =IFERROR(F8*$E8,"") -> 65.5 | H8: =IF(G8=0,0,IFERROR($E8*F8+($E8*'Basic Price Adjustment'!$E33),"")) -> 40.48 | I8: =IF(AND($E8>0,F8=0),"Incomplete","") ->  | J8: =IFERROR(VLOOKUP(L$3,Data!$B$4:$AE$137,7,0),"") -> 62.32 | K8: =IFERROR(J8*$E8,"") -> 62.32 | L8: =IF(K8=0,0,IFERROR($E8*J8+($E8*'Basic Price Adjustment'!$E33),"")) -> 37.3 | M8: =IF(AND($E8>0,J8=0),"Incomplete","") ->  | N8: =IFERROR(VLOOKUP(P$3,Data!$B$4:$AE$137,7,0),"") -> 63.5 | O8: =IFERROR(N8*$E8,"") -> 63.5 | P8: =IF(O8=0,0,IFERROR($E8*N8+($E8*'Basic Price Adjustment'!$E33),"")) -> 38.48 | Q8: =IF(AND($E8>0,N8=0),"Incomplete","") ->  | R8: =IFERROR(VLOOKUP(T$3,Data!$B$4:$AE$137,7,0),"") -> 66.2 | S8: =IFERROR(R8*$E8,"") -> 66.2 | T8: =IF(S8=0,0,IFERROR($E8*R8+($E8*'Basic Price Adjustment'!$E33),"")) -> 41.18 | U8: =IF(AND($E8>0,R8=0),"Incomplete","") ->  | V8: =IFERROR(VLOOKUP(X$3,Data!$B$4:$AE$137,7,0),"") -> 63.5 | W8: =IFERROR(V8*$E8,"") -> 63.5 | X8: =IF(W8=0,0,IFERROR($E8*V8+($E8*'Basic Price Adjustment'!$E33),"")) -> 38.48 | Y8: =IF(AND($E8>0,V8=0),"Incomplete","") ->  | Z8: =IFERROR(VLOOKUP(AB$3,Data!$B$4:$AE$137,7,0),"") -> 63.5 | AA8: =IFERROR(Z8*$E8,"") -> 63.5 | AB8: =IF(AA8=0,0,IFERROR($E8*Z8+($E8*'Basic Price Adjustment'!$E33),"")) -> 38.48 | AC8: =IF(AND($E8>0,Z8=0),"Incomplete","") ->  | AD8: =IFERROR(VLOOKUP(AF$3,Data!$B$4:$AE$137,7,0),"") -> 63.28 | AE8: =IFERROR(AD8*$E8,"") -> 63.28 | AF8: =IF(AE8=0,0,IFERROR($E8*AD8+($E8*'Basic Price Adjustment'!$E33),"")) -> 38.26 | AG8: =IF(AND($E8>0,AD8=0),"Incomplete","") ->  | AH8: =IFERROR(VLOOKUP(AJ$3,Data!$B$4:$AE$137,7,0),"") -> 68.95 | AI8: =IFERROR(AH8*$E8,"") -> 68.95 | AJ8: =IF(AI8=0,0,IFERROR($E8*AH8+($E8*'Basic Price Adjustment'!$E33),"")) -> 43.93 | AK8: =IF(AND($E8>0,AH8=0),"Incomplete","") ->  | AL8: =IFERROR(VLOOKUP(AN$3,Data!$B$4:$AE$137,7,0),"") -> 69.64 | AM8: =IFERROR(AL8*$E8,"") -> 69.64 | AN8: =IF(AM8=0,0,IFERROR($E8*AL8+($E8*'Basic Price Adjustment'!$E33),"")) -> 44.62 | AO8: =IF(AND($E8>0,AL8=0),"Incomplete","") ->  | AP8: =IFERROR(VLOOKUP(AR$3,Data!$B$4:$AE$137,7,0),"") -> 69.5 | AQ8: =IFERROR(AP8*$E8,"") -> 69.5 | AR8: =IF(AQ8=0,0,IFERROR($E8*AP8+($E8*'Basic Price Adjustment'!$E33),"")) -> 44.48 | AS8: =IF(AND($E8>0,AP8=0),"Incomplete","") ->  | AT8: =IFERROR(VLOOKUP(AV$3,Data!$B$4:$AE$137,7,0),"") -> 0 | AU8: =IFERROR(AT8*$E8,"") -> 0 | AV8: =IF(AU8=0,0,IFERROR($E8*AT8+($E8*'Basic Price Adjustment'!$E33),"")) -> 0 | AW8: =IF(AND($E8>0,AT8=0),"Incomplete","") -> Incomplete | AX8: =IFERROR(VLOOKUP(AZ$3,Data!$B$4:$AE$137,7,0),"") -> 80 | AY8: =IFERROR(AX8*$E8,"") -> 80 | AZ8: =IF(AY8=0,0,IFERROR($E8*AX8+($E8*'Basic Price Adjustment'!$E33),"")) -> 54.98 | BA8: =IF(AND($E8>0,AX8=0),"Incomplete","") ->  | BB8: =IFERROR(VLOOKUP(BD$3,Data!$B$4:$AE$137,7,0),"") -> 56.5 | BC8: =IFERROR(BB8*$E8,"") -> 56.5 | BD8: =IF(BC8=0,0,IFERROR($E8*BB8+($E8*'Basic Price Adjustment'!$E33),"")) -> 31.48 | BE8: =IF(AND($E8>0,BB8=0),"Incomplete","") ->  | BF8: =IFERROR(VLOOKUP(BH$3,Data!$B$4:$AE$137,7,0),"") -> 70 | BG8: =IFERROR(BF8*$E8,"") -> 70 | BH8: =IF(BG8=0,0,IFERROR($E8*BF8+($E8*'Basic Price Adjustment'!$E33),"")) -> 44.98 | BI8: =IF(AND($E8>0,BF8=0),"Incomplete","") ->  | BJ8: =IFERROR(VLOOKUP(BL$3,Data!$B$4:$AE$137,7,0),"") -> 70 | BK8: =IFERROR(BJ8*$E8,"") -> 70 | BL8: =IF(BK8=0,0,IFERROR($E8*BJ8+($E8*'Basic Price Adjustment'!$E33),"")) -> 44.98 | BM8: =IF(AND($E8>0,BJ8=0),"Incomplete","") ->  | BN8: =IFERROR(VLOOKUP(BP$3,Data!$B$4:$AE$137,7,0),"") -> 71.5 | BO8: =IFERROR(BN8*$E8,"") -> 71.5 | BP8: =IF(BO8=0,0,IFERROR($E8*BN8+($E8*'Basic Price Adjustment'!$E33),"")) -> 46.48 | BQ8: =IF(AND($E8>0,BN8=0),"Incomplete","") ->  | BR8: =IFERROR(VLOOKUP(BT$3,Data!$B$4:$AE$137,7,0),"") ->  | BS8: =IFERROR(BR8*$E8,"") ->  | BT8: =IF(BS8=0,0,IFERROR($E8*BR8+($E8*'Basic Price Adjustment'!$E33),"")) ->  | BU8: =IF(AND($E8>0,BR8=0),"Incomplete","") ->  | BV8: =IFERROR(VLOOKUP(BX$3,Data!$B$4:$AE$137,7,0),"") ->  | BW8: =IFERROR(BV8*$E8,"") ->  | BX8: =IF(BW8=0,0,IFERROR($E8*BV8+($E8*'Basic Price Adjustment'!$E33),"")) ->  | BY8: =IF(AND($E8>0,BV8=0),"Incomplete","") ->  | CB8: =H$6 -> 40.48 | CC8: =H$3 -> 501
B9: 2 | C9: Asphalt Section 401 - 25mm Superpave | E9: ='Order Details'!J8 -> 0 | F9: =IFERROR(VLOOKUP(H$3,Data!$B$4:$AE$137,8,0),"") -> 68 | G9: =IFERROR(F9*$E9,"") -> 0 | H9: =IF(G9=0,0,IFERROR($E9*F9+($E9*'Basic Price Adjustment'!$E34),"")) -> 0 | I9: =IF(AND($E9>0,F9=0),"Incomplete","") ->  | J9: =IFERROR(VLOOKUP(L$3,Data!$B$4:$AE$137,8,0),"") -> 0 | K9: =IFERROR(J9*$E9,"") -> 0 | L9: =IF(K9=0,0,IFERROR($E9*J9+($E9*'Basic Price Adjustment'!$E34),"")) -> 0 | M9: =IF(AND($E9>0,J9=0),"Incomplete","") ->  | N9: =IFERROR(VLOOKUP(P$3,Data!$B$4:$AE$137,8,0),"") -> 69.85 | O9: =IFERROR(N9*$E9,"") -> 0 | P9: =IF(O9=0,0,IFERROR($E9*N9+($E9*'Basic Price Adjustment'!$E34),"")) -> 0 | Q9: =IF(AND($E9>0,N9=0),"Incomplete","") ->  | R9: =IFERROR(VLOOKUP(T$3,Data!$B$4:$AE$137,8,0),"") -> 71 | S9: =IFERROR(R9*$E9,"") -> 0 | T9: =IF(S9=0,0,IFERROR($E9*R9+($E9*'Basic Price Adjustment'!$E34),"")) -> 0 | U9: =IF(AND($E9>0,R9=0),"Incomplete","") ->  | V9: =IFERROR(VLOOKUP(X$3,Data!$B$4:$AE$137,8,0),"") -> 78.5 | W9: =IFERROR(V9*$E9,"") -> 0 | X9: =IF(W9=0,0,IFERROR($E9*V9+($E9*'Basic Price Adjustment'!$E34),"")) -> 0 | Y9: =IF(AND($E9>0,V9=0),"Incomplete","") ->  | Z9: =IFERROR(VLOOKUP(AB$3,Data!$B$4:$AE$137,8,0),"") -> 78.5 | AA9: =IFERROR(Z9*$E9,"") -> 0 | AB9: =IF(AA9=0,0,IFERROR($E9*Z9+($E9*'Basic Price Adjustment'!$E34),"")) -> 0 | AC9: =IF(AND($E9>0,Z9=0),"Incomplete","") ->  | AD9: =IFERROR(VLOOKUP(AF$3,Data!$B$4:$AE$137,8,0),"") -> 62.87 | AE9: =IFERROR(AD9*$E9,"") -> 0 | AF9: =IF(AE9=0,0,IFERROR($E9*AD9+($E9*'Basic Price Adjustment'!$E34),"")) -> 0 | AG9: =IF(AND($E9>0,AD9=0),"Incomplete","") ->  | AH9: =IFERROR(VLOOKUP(AJ$3,Data!$B$4:$AE$137,8,0),"") -> 72.88 | AI9: =IFERROR(AH9*$E9,"") -> 0 | AJ9: =IF(AI9=0,0,IFERROR($E9*AH9+($E9*'Basic Price Adjustment'!$E34),"")) -> 0 | AK9: =IF(AND($E9>0,AH9=0),"Incomplete","") ->  | AL9: =IFERROR(VLOOKUP(AN$3,Data!$B$4:$AE$137,8,0),"") -> 73.33 | AM9: =IFERROR(AL9*$E9,"") -> 0 | AN9: =IF(AM9=0,0,IFERROR($E9*AL9+($E9*'Basic Price Adjustment'!$E34),"")) -> 0 | AO9: =IF(AND($E9>0,AL9=0),"Incomplete","") ->  | AP9: =IFERROR(VLOOKUP(AR$3,Data!$B$4:$AE$137,8,0),"") -> 67.2 | AQ9: =IFERROR(AP9*$E9,"") -> 0 | AR9: =IF(AQ9=0,0,IFERROR($E9*AP9+($E9*'Basic Price Adjustment'!$E34),"")) -> 0 | AS9: =IF(AND($E9>0,AP9=0),"Incomplete","") ->  | AT9: =IFERROR(VLOOKUP(AV$3,Data!$B$4:$AE$137,8,0),"") -> 0 | AU9: =IFERROR(AT9*$E9,"") -> 0 | AV9: =IF(AU9=0,0,IFERROR($E9*AT9+($E9*'Basic Price Adjustment'!$E34),"")) -> 0 | AW9: =IF(AND($E9>0,AT9=0),"Incomplete","") ->  | AX9: =IFERROR(VLOOKUP(AZ$3,Data!$B$4:$AE$137,8,0),"") -> 86 | AY9: =IFERROR(AX9*$E9,"") -> 0 | AZ9: =IF(AY9=0,0,IFERROR($E9*AX9+($E9*'Basic Price Adjustment'!$E34),"")) -> 0 | BA9: =IF(AND($E9>0,AX9=0),"Incomplete","") ->  | BB9: =IFERROR(VLOOKUP(BD$3,Data!$B$4:$AE$137,8,0),"") -> 61.4 | BC9: =IFERROR(BB9*$E9,"") -> 0 | BD9: =IF(BC9=0,0,IFERROR($E9*BB9+($E9*'Basic Price Adjustment'!$E34),"")) -> 0 | BE9: =IF(AND($E9>0,BB9=0),"Incomplete","") ->  | BF9: =IFERROR(VLOOKUP(BH$3,Data!$B$4:$AE$137,8,0),"") -> 70 | BG9: =IFERROR(BF9*$E9,"") -> 0 | BH9: =IF(BG9=0,0,IFERROR($E9*BF9+($E9*'Basic Price Adjustment'!$E34),"")) -> 0 | BI9: =IF(AND($E9>0,BF9=0),"Incomplete","") ->  | BJ9: =IFERROR(VLOOKUP(BL$3,Data!$B$4:$AE$137,8,0),"") -> 70 | BK9: =IFERROR(BJ9*$E9,"") -> 0 | BL9: =IF(BK9=0,0,IFERROR($E9*BJ9+($E9*'Basic Price Adjustment'!$E34),"")) -> 0 | BM9: =IF(AND($E9>0,BJ9=0),"Incomplete","") ->  | BN9: =IFERROR(VLOOKUP(BP$3,Data!$B$4:$AE$137,8,0),"") -> 71.5 | BO9: =IFERROR(BN9*$E9,"") -> 0 | BP9: =IF(BO9=0,0,IFERROR($E9*BN9+($E9*'Basic Price Adjustment'!$E34),"")) -> 0 | BQ9: =IF(AND($E9>0,BN9=0),"Incomplete","") ->  | BR9: =IFERROR(VLOOKUP(BT$3,Data!$B$4:$AE$137,8,0),"") ->  | BS9: =IFERROR(BR9*$E9,"") ->  | BT9: =IF(BS9=0,0,IFERROR($E9*BR9+($E9*'Basic Price Adjustment'!$E34),"")) ->  | BU9: =IF(AND($E9>0,BR9=0),"Incomplete","") ->  | BV9: =IFERROR(VLOOKUP(BX$3,Data!$B$4:$AE$137,8,0),"") ->  | BW9: =IFERROR(BV9*$E9,"") ->  | BX9: =IF(BW9=0,0,IFERROR($E9*BV9+($E9*'Basic Price Adjustment'!$E34),"")) ->  | BY9: =IF(AND($E9>0,BV9=0),"Incomplete","") ->  | CB9: =L$6 -> 37.3 | CC9: =L$3 -> 502
B10: 3 | C10: Asphalt Section 401 - Base II | E10: ='Order Details'!J9 -> 0 | F10: =IFERROR(VLOOKUP(H$3,Data!$B$4:$AE$137,9,0),"") -> 70.25 | G10: 0 | H10: =IF(G10=0,0,IFERROR($E10*F10+($E10*'Basic Price Adjustment'!$E35),"")) -> 0 | J10: =IFERROR(VLOOKUP(L$3,Data!$B$4:$AE$137,9,0),"") -> 72.87 | K10: 0 | L10: =IF(K10=0,0,IFERROR($E10*J10+($E10*'Basic Price Adjustment'!$E35),"")) -> 0 | N10: =IFERROR(VLOOKUP(P$3,Data!$B$4:$AE$137,9,0),"") -> 70.6 | O10: 0 | P10: =IF(O10=0,0,IFERROR($E10*N10+($E10*'Basic Price Adjustment'!$E35),"")) -> 0 | R10: =IFERROR(VLOOKUP(T$3,Data!$B$4:$AE$137,9,0),"") -> 73.2 | S10: 0 | T10: =IF(S10=0,0,IFERROR($E10*R10+($E10*'Basic Price Adjustment'!$E35),"")) -> 0 | V10: =IFERROR(VLOOKUP(X$3,Data!$B$4:$AE$137,9,0),"") -> 70.6 | W10: 0 | X10: =IF(W10=0,0,IFERROR($E10*V10+($E10*'Basic Price Adjustment'!$E35),"")) -> 0 | Z10: =IFERROR(VLOOKUP(AB$3,Data!$B$4:$AE$137,9,0),"") -> 70.6 | AA10: 0 | AB10: =IF(AA10=0,0,IFERROR($E10*Z10+($E10*'Basic Price Adjustment'!$E35),"")) -> 0 | AD10: =IFERROR(VLOOKUP(AF$3,Data!$B$4:$AE$137,9,0),"") -> 68.45 | AE10: 0 | AF10: =IF(AE10=0,0,IFERROR($E10*AD10+($E10*'Basic Price Adjustment'!$E35),"")) -> 0 | AH10: =IFERROR(VLOOKUP(AJ$3,Data!$B$4:$AE$137,9,0),"") -> 73.2 | AI10: 0 | AJ10: =IF(AI10=0,0,IFERROR($E10*AH10+($E10*'Basic Price Adjustment'!$E35),"")) -> 0 | AL10: =IFERROR(VLOOKUP(AN$3,Data!$B$4:$AE$137,9,0),"") -> 73.33 | AM10: 0 | AN10: =IF(AM10=0,0,IFERROR($E10*AL10+($E10*'Basic Price Adjustment'!$E35),"")) -> 0 | AP10: =IFERROR(VLOOKUP(AR$3,Data!$B$4:$AE$137,9,0),"") -> 70.6 | AQ10: 0 | AR10: =IF(AQ10=0,0,IFERROR($E10*AP10+($E10*'Basic Price Adjustment'!$E35),"")) -> 0 | AT10: =IFERROR(VLOOKUP(AV$3,Data!$B$4:$AE$137,9,0),"") -> 0 | AU10: 0 | AV10: =IF(AU10=0,0,IFERROR($E10*AT10+($E10*'Basic Price Adjustment'!$E35),"")) -> 0 | AX10: =IFERROR(VLOOKUP(AZ$3,Data!$B$4:$AE$137,9,0),"") -> 84 | AY10: 0 | AZ10: =IF(AY10=0,0,IFERROR($E10*AX10+($E10*'Basic Price Adjustment'!$E35),"")) -> 0 | BB10: =IFERROR(VLOOKUP(BD$3,Data!$B$4:$AE$137,9,0),"") -> 63.5 | BC10: 0 | BD10: =IF(BC10=0,0,IFERROR($E10*BB10+($E10*'Basic Price Adjustment'!$E35),"")) -> 0 | BF10: =IFERROR(VLOOKUP(BH$3,Data!$B$4:$AE$137,9,0),"") -> 75 | BG10: 0 | BH10: =IF(BG10=0,0,IFERROR($E10*BF10+($E10*'Basic Price Adjustment'!$E35),"")) -> 0 | BJ10: =IFERROR(VLOOKUP(BL$3,Data!$B$4:$AE$137,9,0),"") -> 75 | BK10: 0 | BL10: =IF(BK10=0,0,IFERROR($E10*BJ10+($E10*'Basic Price Adjustment'!$E35),"")) -> 0 | BN10: =IFERROR(VLOOKUP(BP$3,Data!$B$4:$AE$137,9,0),"") -> 79.5 | BO10: 0 | BP10: =IF(BO10=0,0,IFERROR($E10*BN10+($E10*'Basic Price Adjustment'!$E35),"")) -> 0 | BR10: =IFERROR(VLOOKUP(BT$3,Data!$B$4:$AE$137,9,0),"") ->  | BT10: =IF(BS10=0,0,IFERROR($E10*BR10+($E10*'Basic Price Adjustment'!$E35),"")) ->  | BV10: =IFERROR(VLOOKUP(BX$3,Data!$B$4:$AE$137,9,0),"") ->  | BX10: =IF(BW10=0,0,IFERROR($E10*BV10+($E10*'Basic Price Adjustment'!$E35),"")) ->  | CB10: =P$6 -> 38.48 | CC10: =P$3 -> 503
B11: 4 | C11: Asphalt Section 401 - Patch and Level | E11: ='Order Details'!J10 -> 0 | F11: =IFERROR(VLOOKUP(H$3,Data!$B$4:$AE$137,10,0),"") -> 70.25 | G11: 0 | H11: =IF(G11=0,0,IFERROR($E11*F11+($E11*'Basic Price Adjustment'!$E36),"")) -> 0 | J11: =IFERROR(VLOOKUP(L$3,Data!$B$4:$AE$137,10,0),"") -> 72.87 | K11: 0 | L11: =IF(K11=0,0,IFERROR($E11*J11+($E11*'Basic Price Adjustment'!$E36),"")) -> 0 | N11: =IFERROR(VLOOKUP(P$3,Data!$B$4:$AE$137,10,0),"") -> 70.6 | O11: 0 | P11: =IF(O11=0,0,IFERROR($E11*N11+($E11*'Basic Price Adjustment'!$E36),"")) -> 0 | R11: =IFERROR(VLOOKUP(T$3,Data!$B$4:$AE$137,10,0),"") -> 73.2 | S11: 0 | T11: =IF(S11=0,0,IFERROR($E11*R11+($E11*'Basic Price Adjustment'!$E36),"")) -> 0 | V11: =IFERROR(VLOOKUP(X$3,Data!$B$4:$AE$137,10,0),"") -> 70.6 | W11: 0 | X11: =IF(W11=0,0,IFERROR($E11*V11+($E11*'Basic Price Adjustment'!$E36),"")) -> 0 | Z11: =IFERROR(VLOOKUP(AB$3,Data!$B$4:$AE$137,10,0),"") -> 70.6 | AA11: 0 | AB11: =IF(AA11=0,0,IFERROR($E11*Z11+($E11*'Basic Price Adjustment'!$E36),"")) -> 0 | AD11: =IFERROR(VLOOKUP(AF$3,Data!$B$4:$AE$137,10,0),"") -> 68.45 | AE11: 0 | AF11: =IF(AE11=0,0,IFERROR($E11*AD11+($E11*'Basic Price Adjustment'!$E36),"")) -> 0 | AH11: =IFERROR(VLOOKUP(AJ$3,Data!$B$4:$AE$137,10,0),"") -> 73.2 | AI11: 0 | AJ11: =IF(AI11=0,0,IFERROR($E11*AH11+($E11*'Basic Price Adjustment'!$E36),"")) -> 0 | AL11: =IFERROR(VLOOKUP(AN$3,Data!$B$4:$AE$137,10,0),"") -> 73.33 | AM11: 0 | AN11: =IF(AM11=0,0,IFERROR($E11*AL11+($E11*'Basic Price Adjustment'!$E36),"")) -> 0 | AP11: =IFERROR(VLOOKUP(AR$3,Data!$B$4:$AE$137,10,0),"") -> 70.6 | AQ11: 0 | AR11: =IF(AQ11=0,0,IFERROR($E11*AP11+($E11*'Basic Price Adjustment'!$E36),"")) -> 0 | AT11: =IFERROR(VLOOKUP(AV$3,Data!$B$4:$AE$137,10,0),"") -> 0 | AU11: 0 | AV11: =IF(AU11=0,0,IFERROR($E11*AT11+($E11*'Basic Price Adjustment'!$E36),"")) -> 0 | AX11: =IFERROR(VLOOKUP(AZ$3,Data!$B$4:$AE$137,10,0),"") -> 84 | AY11: 0 | AZ11: =IF(AY11=0,0,IFERROR($E11*AX11+($E11*'Basic Price Adjustment'!$E36),"")) -> 0 | BB11: =IFERROR(VLOOKUP(BD$3,Data!$B$4:$AE$137,10,0),"") -> 63.5 | BC11: 0 | BD11: =IF(BC11=0,0,IFERROR($E11*BB11+($E11*'Basic Price Adjustment'!$E36),"")) -> 0 | BF11: =IFERROR(VLOOKUP(BH$3,Data!$B$4:$AE$137,10,0),"") -> 75 | BG11: 0 | BH11: =IF(BG11=0,0,IFERROR($E11*BF11+($E11*'Basic Price Adjustment'!$E36),"")) -> 0 | BJ11: =IFERROR(VLOOKUP(BL$3,Data!$B$4:$AE$137,10,0),"") -> 75 | BK11: 0 | BL11: =IF(BK11=0,0,IFERROR($E11*BJ11+($E11*'Basic Price Adjustment'!$E36),"")) -> 0 | BN11: =IFERROR(VLOOKUP(BP$3,Data!$B$4:$AE$137,10,0),"") -> 79.5 | BO11: 0 | BP11: =IF(BO11=0,0,IFERROR($E11*BN11+($E11*'Basic Price Adjustment'!$E36),"")) -> 0 | BR11: =IFERROR(VLOOKUP(BT$3,Data!$B$4:$AE$137,10,0),"") ->  | BT11: =IF(BS11=0,0,IFERROR($E11*BR11+($E11*'Basic Price Adjustment'!$E36),"")) ->  | BV11: =IFERROR(VLOOKUP(BX$3,Data!$B$4:$AE$137,10,0),"") ->  | BX11: =IF(BW11=0,0,IFERROR($E11*BV11+($E11*'Basic Price Adjustment'!$E36),"")) ->  | CB11: =T$6 -> 41.18 | CC11: =T$3 -> 504
B12: 5 | C12: Asphalt Section 401 - Wearing IV | E12: ='Order Details'!J11 -> 0 | F12: =IFERROR(VLOOKUP(H$3,Data!$B$4:$AE$137,11,0),"") -> 73 | G12: 0 | H12: =IF(G12=0,0,IFERROR($E12*F12+($E12*'Basic Price Adjustment'!$E37),"")) -> 0 | J12: =IFERROR(VLOOKUP(L$3,Data!$B$4:$AE$137,11,0),"") -> 73.61 | K12: 0 | L12: =IF(K12=0,0,IFERROR($E12*J12+($E12*'Basic Price Adjustment'!$E37),"")) -> 0 | N12: =IFERROR(VLOOKUP(P$3,Data!$B$4:$AE$137,11,0),"") -> 71.3 | O12: 0 | P12: =IF(O12=0,0,IFERROR($E12*N12+($E12*'Basic Price Adjustment'!$E37),"")) -> 0 | R12: =IFERROR(VLOOKUP(T$3,Data!$B$4:$AE$137,11,0),"") -> 73.8 | S12: 0 | T12: =IF(S12=0,0,IFERROR($E12*R12+($E12*'Basic Price Adjustment'!$E37),"")) -> 0 | V12: =IFERROR(VLOOKUP(X$3,Data!$B$4:$AE$137,11,0),"") -> 71.3 | W12: 0 | X12: =IF(W12=0,0,IFERROR($E12*V12+($E12*'Basic Price Adjustment'!$E37),"")) -> 0 | Z12: =IFERROR(VLOOKUP(AB$3,Data!$B$4:$AE$137,11,0),"") -> 71.3 | AA12: 0 | AB12: =IF(AA12=0,0,IFERROR($E12*Z12+($E12*'Basic Price Adjustment'!$E37),"")) -> 0 | AD12: =IFERROR(VLOOKUP(AF$3,Data!$B$4:$AE$137,11,0),"") -> 69.51 | AE12: 0 | AF12: =IF(AE12=0,0,IFERROR($E12*AD12+($E12*'Basic Price Adjustment'!$E37),"")) -> 0 | AH12: =IFERROR(VLOOKUP(AJ$3,Data!$B$4:$AE$137,11,0),"") -> 73.41 | AI12: 0 | AJ12: =IF(AI12=0,0,IFERROR($E12*AH12+($E12*'Basic Price Adjustment'!$E37),"")) -> 0 | AL12: =IFERROR(VLOOKUP(AN$3,Data!$B$4:$AE$137,11,0),"") -> 73.41 | AM12: 0 | AN12: =IF(AM12=0,0,IFERROR($E12*AL12+($E12*'Basic Price Adjustment'!$E37),"")) -> 0 | AP12: =IFERROR(VLOOKUP(AR$3,Data!$B$4:$AE$137,11,0),"") -> 70.6 | AQ12: 0 | AR12: =IF(AQ12=0,0,IFERROR($E12*AP12+($E12*'Basic Price Adjustment'!$E37),"")) -> 0 | AT12: =IFERROR(VLOOKUP(AV$3,Data!$B$4:$AE$137,11,0),"") -> 0 | AU12: 0 | AV12: =IF(AU12=0,0,IFERROR($E12*AT12+($E12*'Basic Price Adjustment'!$E37),"")) -> 0 | AX12: =IFERROR(VLOOKUP(AZ$3,Data!$B$4:$AE$137,11,0),"") -> 85 | AY12: 0 | AZ12: =IF(AY12=0,0,IFERROR($E12*AX12+($E12*'Basic Price Adjustment'!$E37),"")) -> 0 | BB12: =IFERROR(VLOOKUP(BD$3,Data!$B$4:$AE$137,11,0),"") -> 63.5 | BC12: 0 | BD12: =IF(BC12=0,0,IFERROR($E12*BB12+($E12*'Basic Price Adjustment'!$E37),"")) -> 0 | BF12: =IFERROR(VLOOKUP(BH$3,Data!$B$4:$AE$137,11,0),"") -> 90 | BG12: 0 | BH12: =IF(BG12=0,0,IFERROR($E12*BF12+($E12*'Basic Price Adjustment'!$E37),"")) -> 0 | BJ12: =IFERROR(VLOOKUP(BL$3,Data!$B$4:$AE$137,11,0),"") -> 90 | BK12: 0 | BL12: =IF(BK12=0,0,IFERROR($E12*BJ12+($E12*'Basic Price Adjustment'!$E37),"")) -> 0 | BN12: =IFERROR(VLOOKUP(BP$3,Data!$B$4:$AE$137,11,0),"") -> 81.5 | BO12: 0 | BP12: =IF(BO12=0,0,IFERROR($E12*BN12+($E12*'Basic Price Adjustment'!$E37),"")) -> 0 | BR12: =IFERROR(VLOOKUP(BT$3,Data!$B$4:$AE$137,11,0),"") ->  | BT12: =IF(BS12=0,0,IFERROR($E12*BR12+($E12*'Basic Price Adjustment'!$E37),"")) ->  | BV12: =IFERROR(VLOOKUP(BX$3,Data!$B$4:$AE$137,11,0),"") ->  | BX12: =IF(BW12=0,0,IFERROR($E12*BV12+($E12*'Basic Price Adjustment'!$E37),"")) ->  | CB12: =X$6 -> 38.48 | CC12: =X$3 -> 505
B13: 6 | C13: Asphalt Section 402 - Wearing IV | E13: ='Order Details'!J12 -> 0 | F13: =IFERROR(VLOOKUP(H$3,Data!$B$4:$AE$137,12,0),"") -> 85 | G13: 0 | H13: =IF(G13=0,0,IFERROR($E13*F13+($E13*'Basic Price Adjustment'!$E38),"")) -> 0 | J13: =IFERROR(VLOOKUP(L$3,Data!$B$4:$AE$137,12,0),"") -> 0 | K13: 0 | L13: =IF(K13=0,0,IFERROR($E13*J13+($E13*'Basic Price Adjustment'!$E38),"")) -> 0 | N13: =IFERROR(VLOOKUP(P$3,Data!$B$4:$AE$137,12,0),"") -> 75.4 | O13: 0 | P13: =IF(O13=0,0,IFERROR($E13*N13+($E13*'Basic Price Adjustment'!$E38),"")) -> 0 | R13: =IFERROR(VLOOKUP(T$3,Data!$B$4:$AE$137,12,0),"") -> 75.4 | S13: 0 | T13: =IF(S13=0,0,IFERROR($E13*R13+($E13*'Basic Price Adjustment'!$E38),"")) -> 0 | V13: =IFERROR(VLOOKUP(X$3,Data!$B$4:$AE$137,12,0),"") -> 76.5 | W13: 0 | X13: =IF(W13=0,0,IFERROR($E13*V13+($E13*'Basic Price Adjustment'!$E38),"")) -> 0 | Z13: =IFERROR(VLOOKUP(AB$3,Data!$B$4:$AE$137,12,0),"") -> 76.5 | AA13: 0 | AB13: =IF(AA13=0,0,IFERROR($E13*Z13+($E13*'Basic Price Adjustment'!$E38),"")) -> 0 | AD13: =IFERROR(VLOOKUP(AF$3,Data!$B$4:$AE$137,12,0),"") -> 72.37 | AE13: 0 | AF13: =IF(AE13=0,0,IFERROR($E13*AD13+($E13*'Basic Price Adjustment'!$E38),"")) -> 0 | AH13: =IFERROR(VLOOKUP(AJ$3,Data!$B$4:$AE$137,12,0),"") -> 77.09 | AI13: 0 | AJ13: =IF(AI13=0,0,IFERROR($E13*AH13+($E13*'Basic Price Adjustment'!$E38),"")) -> 0 | AL13: =IFERROR(VLOOKUP(AN$3,Data!$B$4:$AE$137,12,0),"") -> 77.09 | AM13: 0 | AN13: =IF(AM13=0,0,IFERROR($E13*AL13+($E13*'Basic Price Adjustment'!$E38),"")) -> 0 | AP13: =IFERROR(VLOOKUP(AR$3,Data!$B$4:$AE$137,12,0),"") -> 80.5 | AQ13: 0 | AR13: =IF(AQ13=0,0,IFERROR($E13*AP13+($E13*'Basic Price Adjustment'!$E38),"")) -> 0 | AT13: =IFERROR(VLOOKUP(AV$3,Data!$B$4:$AE$137,12,0),"") -> 0 | AU13: 0 | AV13: =IF(AU13=0,0,IFERROR($E13*AT13+($E13*'Basic Price Adjustment'!$E38),"")) -> 0 | AX13: =IFERROR(VLOOKUP(AZ$3,Data!$B$4:$AE$137,12,0),"") -> 96 | AY13: 0 | AZ13: =IF(AY13=0,0,IFERROR($E13*AX13+($E13*'Basic Price Adjustment'!$E38),"")) -> 0 | BB13: =IFERROR(VLOOKUP(BD$3,Data!$B$4:$AE$137,12,0),"") -> 66.8 | BC13: 0 | BD13: =IF(BC13=0,0,IFERROR($E13*BB13+($E13*'Basic Price Adjustment'!$E38),"")) -> 0 | BF13: =IFERROR(VLOOKUP(BH$3,Data!$B$4:$AE$137,12,0),"") -> 100 | BG13: 0 | BH13: =IF(BG13=0,0,IFERROR($E13*BF13+($E13*'Basic Price Adjustment'!$E38),"")) -> 0 | BJ13: =IFERROR(VLOOKUP(BL$3,Data!$B$4:$AE$137,12,0),"") -> 100 | BK13: 0 | BL13: =IF(BK13=0,0,IFERROR($E13*BJ13+($E13*'Basic Price Adjustment'!$E38),"")) -> 0 | BN13: =IFERROR(VLOOKUP(BP$3,Data!$B$4:$AE$137,12,0),"") -> 93 | BO13: 0 | BP13: =IF(BO13=0,0,IFERROR($E13*BN13+($E13*'Basic Price Adjustment'!$E38),"")) -> 0 | BR13: =IFERROR(VLOOKUP(BT$3,Data!$B$4:$AE$137,12,0),"") ->  | BT13: =IF(BS13=0,0,IFERROR($E13*BR13+($E13*'Basic Price Adjustment'!$E38),"")) ->  | BV13: =IFERROR(VLOOKUP(BX$3,Data!$B$4:$AE$137,12,0),"") ->  | BX13: =IF(BW13=0,0,IFERROR($E13*BV13+($E13*'Basic Price Adjustment'!$E38),"")) ->  | CB13: =AB$6 -> 38.48 | CC13: =AB$3 -> 506
B14: 7 | C14: Asphalt Section 401 - 19mm Superpave | E14: ='Order Details'!J13 -> 0 | F14: =IFERROR(VLOOKUP(H$3,Data!$B$4:$AE$137,13,0),"") -> 71.5 | G14: 0 | H14: =IF(G14=0,0,IFERROR($E14*F14+($E14*'Basic Price Adjustment'!$E39),"")) -> 0 | J14: =IFERROR(VLOOKUP(L$3,Data!$B$4:$AE$137,13,0),"") -> 0 | K14: 0 | L14: =IF(K14=0,0,IFERROR($E14*J14+($E14*'Basic Price Adjustment'!$E39),"")) -> 0 | N14: =IFERROR(VLOOKUP(P$3,Data!$B$4:$AE$137,13,0),"") -> 74.7 | O14: 0 | P14: =IF(O14=0,0,IFERROR($E14*N14+($E14*'Basic Price Adjustment'!$E39),"")) -> 0 | R14: =IFERROR(VLOOKUP(T$3,Data!$B$4:$AE$137,13,0),"") -> 77.7 | S14: 0 | T14: =IF(S14=0,0,IFERROR($E14*R14+($E14*'Basic Price Adjustment'!$E39),"")) -> 0 | V14: =IFERROR(VLOOKUP(X$3,Data!$B$4:$AE$137,13,0),"") -> 79.25 | W14: 0 | X14: =IF(W14=0,0,IFERROR($E14*V14+($E14*'Basic Price Adjustment'!$E39),"")) -> 0 | Z14: =IFERROR(VLOOKUP(AB$3,Data!$B$4:$AE$137,13,0),"") -> 79.25 | AA14: 0 | AB14: =IF(AA14=0,0,IFERROR($E14*Z14+($E14*'Basic Price Adjustment'!$E39),"")) -> 0 | AD14: =IFERROR(VLOOKUP(AF$3,Data!$B$4:$AE$137,13,0),"") -> 68.45 | AE14: 0 | AF14: =IF(AE14=0,0,IFERROR($E14*AD14+($E14*'Basic Price Adjustment'!$E39),"")) -> 0 | AH14: =IFERROR(VLOOKUP(AJ$3,Data!$B$4:$AE$137,13,0),"") -> 73.2 | AI14: 0 | AJ14: =IF(AI14=0,0,IFERROR($E14*AH14+($E14*'Basic Price Adjustment'!$E39),"")) -> 0 | AL14: =IFERROR(VLOOKUP(AN$3,Data!$B$4:$AE$137,13,0),"") -> 73.33 | AM14: 0 | AN14: =IF(AM14=0,0,IFERROR($E14*AL14+($E14*'Basic Price Adjustment'!$E39),"")) -> 0 | AP14: =IFERROR(VLOOKUP(AR$3,Data!$B$4:$AE$137,13,0),"") -> 70.5 | AQ14: 0 | AR14: =IF(AQ14=0,0,IFERROR($E14*AP14+($E14*'Basic Price Adjustment'!$E39),"")) -> 0 | AT14: =IFERROR(VLOOKUP(AV$3,Data!$B$4:$AE$137,13,0),"") -> 0 | AU14: 0 | AV14: =IF(AU14=0,0,IFERROR($E14*AT14+($E14*'Basic Price Adjustment'!$E39),"")) -> 0 | AX14: =IFERROR(VLOOKUP(AZ$3,Data!$B$4:$AE$137,13,0),"") -> 86 | AY14: 0 | AZ14: =IF(AY14=0,0,IFERROR($E14*AX14+($E14*'Basic Price Adjustment'!$E39),"")) -> 0 | BB14: =IFERROR(VLOOKUP(BD$3,Data!$B$4:$AE$137,13,0),"") -> 63.5 | BC14: 0 | BD14: =IF(BC14=0,0,IFERROR($E14*BB14+($E14*'Basic Price Adjustment'!$E39),"")) -> 0 | BF14: =IFERROR(VLOOKUP(BH$3,Data!$B$4:$AE$137,13,0),"") -> 80 | BG14: 0 | BH14: =IF(BG14=0,0,IFERROR($E14*BF14+($E14*'Basic Price Adjustment'!$E39),"")) -> 0 | BJ14: =IFERROR(VLOOKUP(BL$3,Data!$B$4:$AE$137,13,0),"") -> 80 | BK14: 0 | BL14: =IF(BK14=0,0,IFERROR($E14*BJ14+($E14*'Basic Price Adjustment'!$E39),"")) -> 0 | BN14: =IFERROR(VLOOKUP(BP$3,Data!$B$4:$AE$137,13,0),"") -> 79 | BO14: 0 | BP14: =IF(BO14=0,0,IFERROR($E14*BN14+($E14*'Basic Price Adjustment'!$E39),"")) -> 0 | BR14: =IFERROR(VLOOKUP(BT$3,Data!$B$4:$AE$137,13,0),"") ->  | BT14: =IF(BS14=0,0,IFERROR($E14*BR14+($E14*'Basic Price Adjustment'!$E39),"")) ->  | BV14: =IFERROR(VLOOKUP(BX$3,Data!$B$4:$AE$137,13,0),"") ->  | BX14: =IF(BW14=0,0,IFERROR($E14*BV14+($E14*'Basic Price Adjustment'!$E39),"")) ->  | CB14: =AF$6 -> 38.26 | CC14: =AF$3 -> 507
B15: 8 | C15: Asphalt Section 401 - Scratch Course | E15: ='Order Details'!J14 -> 0 | F15: =IFERROR(VLOOKUP(H$3,Data!$B$4:$AE$137,14,0),"") -> 76.25 | G15: 0 | H15: =IF(G15=0,0,IFERROR($E15*F15+($E15*'Basic Price Adjustment'!$E40),"")) -> 0 | J15: =IFERROR(VLOOKUP(L$3,Data!$B$4:$AE$137,14,0),"") -> 76.18 | K15: 0 | L15: =IF(K15=0,0,IFERROR($E15*J15+($E15*'Basic Price Adjustment'!$E40),"")) -> 0 | N15: =IFERROR(VLOOKUP(P$3,Data!$B$4:$AE$137,14,0),"") -> 78 | O15: 0 | P15: =IF(O15=0,0,IFERROR($E15*N15+($E15*'Basic Price Adjustment'!$E40),"")) -> 0 | R15: =IFERROR(VLOOKUP(T$3,Data!$B$4:$AE$137,14,0),"") -> 79.8 | S15: 0 | T15: =IF(S15=0,0,IFERROR($E15*R15+($E15*'Basic Price Adjustment'!$E40),"")) -> 0 | V15: =IFERROR(VLOOKUP(X$3,Data!$B$4:$AE$137,14,0),"") -> 78 | W15: 0 | X15: =IF(W15=0,0,IFERROR($E15*V15+($E15*'Basic Price Adjustment'!$E40),"")) -> 0 | Z15: =IFERROR(VLOOKUP(AB$3,Data!$B$4:$AE$137,14,0),"") -> 78 | AA15: 0 | AB15: =IF(AA15=0,0,IFERROR($E15*Z15+($E15*'Basic Price Adjustment'!$E40),"")) -> 0 | AD15: =IFERROR(VLOOKUP(AF$3,Data!$B$4:$AE$137,14,0),"") -> 77.23 | AE15: 0 | AF15: =IF(AE15=0,0,IFERROR($E15*AD15+($E15*'Basic Price Adjustment'!$E40),"")) -> 0 | AH15: =IFERROR(VLOOKUP(AJ$3,Data!$B$4:$AE$137,14,0),"") -> 78.08 | AI15: 0 | AJ15: =IF(AI15=0,0,IFERROR($E15*AH15+($E15*'Basic Price Adjustment'!$E40),"")) -> 0 | AL15: =IFERROR(VLOOKUP(AN$3,Data!$B$4:$AE$137,14,0),"") -> 78.08 | AM15: 0 | AN15: =IF(AM15=0,0,IFERROR($E15*AL15+($E15*'Basic Price Adjustment'!$E40),"")) -> 0 | AP15: =IFERROR(VLOOKUP(AR$3,Data!$B$4:$AE$137,14,0),"") -> 77.3 | AQ15: 0 | AR15: =IF(AQ15=0,0,IFERROR($E15*AP15+($E15*'Basic Price Adjustment'!$E40),"")) -> 0 | AT15: =IFERROR(VLOOKUP(AV$3,Data!$B$4:$AE$137,14,0),"") -> 0 | AU15: 0 | AV15: =IF(AU15=0,0,IFERROR($E15*AT15+($E15*'Basic Price Adjustment'!$E40),"")) -> 0 | AX15: =IFERROR(VLOOKUP(AZ$3,Data!$B$4:$AE$137,14,0),"") -> 90 | AY15: 0 | AZ15: =IF(AY15=0,0,IFERROR($E15*AX15+($E15*'Basic Price Adjustment'!$E40),"")) -> 0 | BB15: =IFERROR(VLOOKUP(BD$3,Data!$B$4:$AE$137,14,0),"") -> 72.7 | BC15: 0 | BD15: =IF(BC15=0,0,IFERROR($E15*BB15+($E15*'Basic Price Adjustment'!$E40),"")) -> 0 | BF15: =IFERROR(VLOOKUP(BH$3,Data!$B$4:$AE$137,14,0),"") -> 90 | BG15: 0 | BH15: =IF(BG15=0,0,IFERROR($E15*BF15+($E15*'Basic Price Adjustment'!$E40),"")) -> 0 | BJ15: =IFERROR(VLOOKUP(BL$3,Data!$B$4:$AE$137,14,0),"") -> 90 | BK15: 0 | BL15: =IF(BK15=0,0,IFERROR($E15*BJ15+($E15*'Basic Price Adjustment'!$E40),"")) -> 0 | BN15: =IFERROR(VLOOKUP(BP$3,Data!$B$4:$AE$137,14,0),"") -> 84 | BO15: 0 | BP15: =IF(BO15=0,0,IFERROR($E15*BN15+($E15*'Basic Price Adjustment'!$E40),"")) -> 0 | BR15: =IFERROR(VLOOKUP(BT$3,Data!$B$4:$AE$137,14,0),"") ->  | BT15: =IF(BS15=0,0,IFERROR($E15*BR15+($E15*'Basic Price Adjustment'!$E40),"")) ->  | BV15: =IFERROR(VLOOKUP(BX$3,Data!$B$4:$AE$137,14,0),"") ->  | BX15: =IF(BW15=0,0,IFERROR($E15*BV15+($E15*'Basic Price Adjustment'!$E40),"")) ->  | CB15: =AJ$6 -> 43.93 | CC15: =AJ$3 -> 508
B16: 9 | C16: Asphalt Section 402 - 9.5mm Superpave | E16: ='Order Details'!J15 -> 0 | F16: =IFERROR(VLOOKUP(H$3,Data!$B$4:$AE$137,15,0),"") -> 86 | G16: 0 | H16: =IF(G16=0,0,IFERROR($E16*F16+($E16*'Basic Price Adjustment'!$E41),"")) -> 0 | J16: =IFERROR(VLOOKUP(L$3,Data!$B$4:$AE$137,15,0),"") -> 0 | K16: 0 | L16: =IF(K16=0,0,IFERROR($E16*J16+($E16*'Basic Price Adjustment'!$E41),"")) -> 0 | N16: =IFERROR(VLOOKUP(P$3,Data!$B$4:$AE$137,15,0),"") -> 95.5 | O16: 0 | P16: =IF(O16=0,0,IFERROR($E16*N16+($E16*'Basic Price Adjustment'!$E41),"")) -> 0 | R16: =IFERROR(VLOOKUP(T$3,Data!$B$4:$AE$137,15,0),"") -> 93.5 | S16: 0 | T16: =IF(S16=0,0,IFERROR($E16*R16+($E16*'Basic Price Adjustment'!$E41),"")) -> 0 | V16: =IFERROR(VLOOKUP(X$3,Data!$B$4:$AE$137,15,0),"") -> 95 | W16: 0 | X16: =IF(W16=0,0,IFERROR($E16*V16+($E16*'Basic Price Adjustment'!$E41),"")) -> 0 | Z16: =IFERROR(VLOOKUP(AB$3,Data!$B$4:$AE$137,15,0),"") -> 95 | AA16: 0 | AB16: =IF(AA16=0,0,IFERROR($E16*Z16+($E16*'Basic Price Adjustment'!$E41),"")) -> 0 | AD16: =IFERROR(VLOOKUP(AF$3,Data!$B$4:$AE$137,15,0),"") -> 77.97 | AE16: 0 | AF16: =IF(AE16=0,0,IFERROR($E16*AD16+($E16*'Basic Price Adjustment'!$E41),"")) -> 0 | AH16: =IFERROR(VLOOKUP(AJ$3,Data!$B$4:$AE$137,15,0),"") -> 82.92 | AI16: 0 | AJ16: =IF(AI16=0,0,IFERROR($E16*AH16+($E16*'Basic Price Adjustment'!$E41),"")) -> 0 | AL16: =IFERROR(VLOOKUP(AN$3,Data!$B$4:$AE$137,15,0),"") -> 82.92 | AM16: 0 | AN16: =IF(AM16=0,0,IFERROR($E16*AL16+($E16*'Basic Price Adjustment'!$E41),"")) -> 0 | AP16: =IFERROR(VLOOKUP(AR$3,Data!$B$4:$AE$137,15,0),"") -> 0 | AQ16: 0 | AR16: =IF(AQ16=0,0,IFERROR($E16*AP16+($E16*'Basic Price Adjustment'!$E41),"")) -> 0 | AT16: =IFERROR(VLOOKUP(AV$3,Data!$B$4:$AE$137,15,0),"") -> 0 | AU16: 0 | AV16: =IF(AU16=0,0,IFERROR($E16*AT16+($E16*'Basic Price Adjustment'!$E41),"")) -> 0 | AX16: =IFERROR(VLOOKUP(AZ$3,Data!$B$4:$AE$137,15,0),"") -> 100 | AY16: 0 | AZ16: =IF(AY16=0,0,IFERROR($E16*AX16+($E16*'Basic Price Adjustment'!$E41),"")) -> 0 | BB16: =IFERROR(VLOOKUP(BD$3,Data!$B$4:$AE$137,15,0),"") -> 72.7 | BC16: 0 | BD16: =IF(BC16=0,0,IFERROR($E16*BB16+($E16*'Basic Price Adjustment'!$E41),"")) -> 0 | BF16: =IFERROR(VLOOKUP(BH$3,Data!$B$4:$AE$137,15,0),"") -> 90 | BG16: 0 | BH16: =IF(BG16=0,0,IFERROR($E16*BF16+($E16*'Basic Price Adjustment'!$E41),"")) -> 0 | BJ16: =IFERROR(VLOOKUP(BL$3,Data!$B$4:$AE$137,15,0),"") -> 90 | BK16: 0 | BL16: =IF(BK16=0,0,IFERROR($E16*BJ16+($E16*'Basic Price Adjustment'!$E41),"")) -> 0 | BN16: =IFERROR(VLOOKUP(BP$3,Data!$B$4:$AE$137,15,0),"") -> 97 | BO16: 0 | BP16: =IF(BO16=0,0,IFERROR($E16*BN16+($E16*'Basic Price Adjustment'!$E41),"")) -> 0 | BR16: =IFERROR(VLOOKUP(BT$3,Data!$B$4:$AE$137,15,0),"") ->  | BT16: =IF(BS16=0,0,IFERROR($E16*BR16+($E16*'Basic Price Adjustment'!$E41),"")) ->  | BV16: =IFERROR(VLOOKUP(BX$3,Data!$B$4:$AE$137,15,0),"") ->  | BX16: =IF(BW16=0,0,IFERROR($E16*BV16+($E16*'Basic Price Adjustment'!$E41),"")) ->  | CB16: =AN$6 -> 44.62 | CC16: =AN$3 -> 509
B17: 10 | C17: Asphalt Section 401 - Wearing 1 | E17: ='Order Details'!J16 -> 0 | F17: =IFERROR(VLOOKUP(H$3,Data!$B$4:$AE$137,16,0),"") -> 76 | G17: 0 | H17: =IF(G17=0,0,IFERROR($E17*F17+($E17*'Basic Price Adjustment'!$E42),"")) -> 0 | J17: =IFERROR(VLOOKUP(L$3,Data!$B$4:$AE$137,16,0),"") -> 75.92 | K17: 0 | L17: =IF(K17=0,0,IFERROR($E17*J17+($E17*'Basic Price Adjustment'!$E42),"")) -> 0 | N17: =IFERROR(VLOOKUP(P$3,Data!$B$4:$AE$137,16,0),"") -> 78 | O17: 0 | P17: =IF(O17=0,0,IFERROR($E17*N17+($E17*'Basic Price Adjustment'!$E42),"")) -> 0 | R17: =IFERROR(VLOOKUP(T$3,Data!$B$4:$AE$137,16,0),"") -> 79.8 | S17: 0 | T17: =IF(S17=0,0,IFERROR($E17*R17+($E17*'Basic Price Adjustment'!$E42),"")) -> 0 | V17: =IFERROR(VLOOKUP(X$3,Data!$B$4:$AE$137,16,0),"") -> 78 | W17: 0 | X17: =IF(W17=0,0,IFERROR($E17*V17+($E17*'Basic Price Adjustment'!$E42),"")) -> 0 | Z17: =IFERROR(VLOOKUP(AB$3,Data!$B$4:$AE$137,16,0),"") -> 78 | AA17: 0 | AB17: =IF(AA17=0,0,IFERROR($E17*Z17+($E17*'Basic Price Adjustment'!$E42),"")) -> 0 | AD17: =IFERROR(VLOOKUP(AF$3,Data!$B$4:$AE$137,16,0),"") -> 75.37 | AE17: 0 | AF17: =IF(AE17=0,0,IFERROR($E17*AD17+($E17*'Basic Price Adjustment'!$E42),"")) -> 0 | AH17: =IFERROR(VLOOKUP(AJ$3,Data!$B$4:$AE$137,16,0),"") -> 78.08 | AI17: 0 | AJ17: =IF(AI17=0,0,IFERROR($E17*AH17+($E17*'Basic Price Adjustment'!$E42),"")) -> 0 | AL17: =IFERROR(VLOOKUP(AN$3,Data!$B$4:$AE$137,16,0),"") -> 78.08 | AM17: 0 | AN17: =IF(AM17=0,0,IFERROR($E17*AL17+($E17*'Basic Price Adjustment'!$E42),"")) -> 0 | AP17: =IFERROR(VLOOKUP(AR$3,Data!$B$4:$AE$137,16,0),"") -> 77.3 | AQ17: 0 | AR17: =IF(AQ17=0,0,IFERROR($E17*AP17+($E17*'Basic Price Adjustment'!$E42),"")) -> 0 | AT17: =IFERROR(VLOOKUP(AV$3,Data!$B$4:$AE$137,16,0),"") -> 0 | AU17: 0 | AV17: =IF(AU17=0,0,IFERROR($E17*AT17+($E17*'Basic Price Adjustment'!$E42),"")) -> 0 | AX17: =IFERROR(VLOOKUP(AZ$3,Data!$B$4:$AE$137,16,0),"") -> 90 | AY17: 0 | AZ17: =IF(AY17=0,0,IFERROR($E17*AX17+($E17*'Basic Price Adjustment'!$E42),"")) -> 0 | BB17: =IFERROR(VLOOKUP(BD$3,Data!$B$4:$AE$137,16,0),"") -> 72.7 | BC17: 0 | BD17: =IF(BC17=0,0,IFERROR($E17*BB17+($E17*'Basic Price Adjustment'!$E42),"")) -> 0 | BF17: =IFERROR(VLOOKUP(BH$3,Data!$B$4:$AE$137,16,0),"") -> 90 | BG17: 0 | BH17: =IF(BG17=0,0,IFERROR($E17*BF17+($E17*'Basic Price Adjustment'!$E42),"")) -> 0 | BJ17: =IFERROR(VLOOKUP(BL$3,Data!$B$4:$AE$137,16,0),"") -> 90 | BK17: 0 | BL17: =IF(BK17=0,0,IFERROR($E17*BJ17+($E17*'Basic Price Adjustment'!$E42),"")) -> 0 | BN17: =IFERROR(VLOOKUP(BP$3,Data!$B$4:$AE$137,16,0),"") -> 84 | BO17: 0 | BP17: =IF(BO17=0,0,IFERROR($E17*BN17+($E17*'Basic Price Adjustment'!$E42),"")) -> 0 | BR17: =IFERROR(VLOOKUP(BT$3,Data!$B$4:$AE$137,16,0),"") ->  | BT17: =IF(BS17=0,0,IFERROR($E17*BR17+($E17*'Basic Price Adjustment'!$E42),"")) ->  | BV17: =IFERROR(VLOOKUP(BX$3,Data!$B$4:$AE$137,16,0),"") ->  | BX17: =IF(BW17=0,0,IFERROR($E17*BV17+($E17*'Basic Price Adjustment'!$E42),"")) ->  | CB17: =AR$6 -> 44.48 | CC17: =AR$3 -> 510
B18: 11 | C18: Asphalt Section 402 - Wearing 1 | E18: ='Order Details'!J17 -> 0 | F18: =IFERROR(VLOOKUP(H$3,Data!$B$4:$AE$137,17,0),"") -> 82 | G18: 0 | H18: =IF(G18=0,0,IFERROR($E18*F18+($E18*'Basic Price Adjustment'!$E43),"")) -> 0 | J18: =IFERROR(VLOOKUP(L$3,Data!$B$4:$AE$137,17,0),"") -> 84.55 | K18: 0 | L18: =IF(K18=0,0,IFERROR($E18*J18+($E18*'Basic Price Adjustment'!$E43),"")) -> 0 | N18: =IFERROR(VLOOKUP(P$3,Data!$B$4:$AE$137,17,0),"") -> 82 | O18: 0 | P18: =IF(O18=0,0,IFERROR($E18*N18+($E18*'Basic Price Adjustment'!$E43),"")) -> 0 | R18: =IFERROR(VLOOKUP(T$3,Data!$B$4:$AE$137,17,0),"") -> 82.7 | S18: 0 | T18: =IF(S18=0,0,IFERROR($E18*R18+($E18*'Basic Price Adjustment'!$E43),"")) -> 0 | V18: =IFERROR(VLOOKUP(X$3,Data!$B$4:$AE$137,17,0),"") -> 84.7 | W18: 0 | X18: =IF(W18=0,0,IFERROR($E18*V18+($E18*'Basic Price Adjustment'!$E43),"")) -> 0 | Z18: =IFERROR(VLOOKUP(AB$3,Data!$B$4:$AE$137,17,0),"") -> 84.7 | AA18: 0 | AB18: =IF(AA18=0,0,IFERROR($E18*Z18+($E18*'Basic Price Adjustment'!$E43),"")) -> 0 | AD18: =IFERROR(VLOOKUP(AF$3,Data!$B$4:$AE$137,17,0),"") -> 77.97 | AE18: 0 | AF18: =IF(AE18=0,0,IFERROR($E18*AD18+($E18*'Basic Price Adjustment'!$E43),"")) -> 0 | AH18: =IFERROR(VLOOKUP(AJ$3,Data!$B$4:$AE$137,17,0),"") -> 83.06 | AI18: 0 | AJ18: =IF(AI18=0,0,IFERROR($E18*AH18+($E18*'Basic Price Adjustment'!$E43),"")) -> 0 | AL18: =IFERROR(VLOOKUP(AN$3,Data!$B$4:$AE$137,17,0),"") -> 83.06 | AM18: 0 | AN18: =IF(AM18=0,0,IFERROR($E18*AL18+($E18*'Basic Price Adjustment'!$E43),"")) -> 0 | AP18: =IFERROR(VLOOKUP(AR$3,Data!$B$4:$AE$137,17,0),"") -> 85.3 | AQ18: 0 | AR18: =IF(AQ18=0,0,IFERROR($E18*AP18+($E18*'Basic Price Adjustment'!$E43),"")) -> 0 | AT18: =IFERROR(VLOOKUP(AV$3,Data!$B$4:$AE$137,17,0),"") -> 0 | AU18: 0 | AV18: =IF(AU18=0,0,IFERROR($E18*AT18+($E18*'Basic Price Adjustment'!$E43),"")) -> 0 | AX18: =IFERROR(VLOOKUP(AZ$3,Data!$B$4:$AE$137,17,0),"") -> 95 | AY18: 0 | AZ18: =IF(AY18=0,0,IFERROR($E18*AX18+($E18*'Basic Price Adjustment'!$E43),"")) -> 0 | BB18: =IFERROR(VLOOKUP(BD$3,Data!$B$4:$AE$137,17,0),"") -> 76 | BC18: 0 | BD18: =IF(BC18=0,0,IFERROR($E18*BB18+($E18*'Basic Price Adjustment'!$E43),"")) -> 0 | BF18: =IFERROR(VLOOKUP(BH$3,Data!$B$4:$AE$137,17,0),"") -> 100 | BG18: 0 | BH18: =IF(BG18=0,0,IFERROR($E18*BF18+($E18*'Basic Price Adjustment'!$E43),"")) -> 0 | BJ18: =IFERROR(VLOOKUP(BL$3,Data!$B$4:$AE$137,17,0),"") -> 100 | BK18: 0 | BL18: =IF(BK18=0,0,IFERROR($E18*BJ18+($E18*'Basic Price Adjustment'!$E43),"")) -> 0 | BN18: =IFERROR(VLOOKUP(BP$3,Data!$B$4:$AE$137,17,0),"") -> 97 | BO18: 0 | BP18: =IF(BO18=0,0,IFERROR($E18*BN18+($E18*'Basic Price Adjustment'!$E43),"")) -> 0 | BR18: =IFERROR(VLOOKUP(BT$3,Data!$B$4:$AE$137,17,0),"") ->  | BT18: =IF(BS18=0,0,IFERROR($E18*BR18+($E18*'Basic Price Adjustment'!$E43),"")) ->  | BV18: =IFERROR(VLOOKUP(BX$3,Data!$B$4:$AE$137,17,0),"") ->  | BX18: =IF(BW18=0,0,IFERROR($E18*BV18+($E18*'Basic Price Adjustment'!$E43),"")) ->  | CB18: =AV$6 -> Incomplete | CC18: =AV$3 -> 511
B19: 12 | C19: Asphalt Section 401 - 4.75mm Superpave | E19: ='Order Details'!J18 -> 0 | F19: =IFERROR(VLOOKUP(H$3,Data!$B$4:$AE$137,18,0),"") -> 86.5 | G19: 0 | H19: =IF(G19=0,0,IFERROR($E19*F19+($E19*'Basic Price Adjustment'!$E44),"")) -> 0 | J19: =IFERROR(VLOOKUP(L$3,Data!$B$4:$AE$137,18,0),"") -> 0 | K19: 0 | L19: =IF(K19=0,0,IFERROR($E19*J19+($E19*'Basic Price Adjustment'!$E44),"")) -> 0 | N19: =IFERROR(VLOOKUP(P$3,Data!$B$4:$AE$137,18,0),"") -> 0 | O19: 0 | P19: =IF(O19=0,0,IFERROR($E19*N19+($E19*'Basic Price Adjustment'!$E44),"")) -> 0 | R19: =IFERROR(VLOOKUP(T$3,Data!$B$4:$AE$137,18,0),"") -> 0 | S19: 0 | T19: =IF(S19=0,0,IFERROR($E19*R19+($E19*'Basic Price Adjustment'!$E44),"")) -> 0 | V19: =IFERROR(VLOOKUP(X$3,Data!$B$4:$AE$137,18,0),"") -> 0 | W19: 0 | X19: =IF(W19=0,0,IFERROR($E19*V19+($E19*'Basic Price Adjustment'!$E44),"")) -> 0 | Z19: =IFERROR(VLOOKUP(AB$3,Data!$B$4:$AE$137,18,0),"") -> 0 | AA19: 0 | AB19: =IF(AA19=0,0,IFERROR($E19*Z19+($E19*'Basic Price Adjustment'!$E44),"")) -> 0 | AD19: =IFERROR(VLOOKUP(AF$3,Data!$B$4:$AE$137,18,0),"") -> 86 | AE19: 0 | AF19: =IF(AE19=0,0,IFERROR($E19*AD19+($E19*'Basic Price Adjustment'!$E44),"")) -> 0 | AH19: =IFERROR(VLOOKUP(AJ$3,Data!$B$4:$AE$137,18,0),"") -> 97.95 | AI19: 0 | AJ19: =IF(AI19=0,0,IFERROR($E19*AH19+($E19*'Basic Price Adjustment'!$E44),"")) -> 0 | AL19: =IFERROR(VLOOKUP(AN$3,Data!$B$4:$AE$137,18,0),"") -> 104.95 | AM19: 0 | AN19: =IF(AM19=0,0,IFERROR($E19*AL19+($E19*'Basic Price Adjustment'!$E44),"")) -> 0 | AP19: =IFERROR(VLOOKUP(AR$3,Data!$B$4:$AE$137,18,0),"") -> 0 | AQ19: 0 | AR19: =IF(AQ19=0,0,IFERROR($E19*AP19+($E19*'Basic Price Adjustment'!$E44),"")) -> 0 | AT19: =IFERROR(VLOOKUP(AV$3,Data!$B$4:$AE$137,18,0),"") -> 0 | AU19: 0 | AV19: =IF(AU19=0,0,IFERROR($E19*AT19+($E19*'Basic Price Adjustment'!$E44),"")) -> 0 | AX19: =IFERROR(VLOOKUP(AZ$3,Data!$B$4:$AE$137,18,0),"") -> 0 | AY19: 0 | AZ19: =IF(AY19=0,0,IFERROR($E19*AX19+($E19*'Basic Price Adjustment'!$E44),"")) -> 0 | BB19: =IFERROR(VLOOKUP(BD$3,Data!$B$4:$AE$137,18,0),"") -> 82.9 | BC19: 0 | BD19: =IF(BC19=0,0,IFERROR($E19*BB19+($E19*'Basic Price Adjustment'!$E44),"")) -> 0 | BF19: =IFERROR(VLOOKUP(BH$3,Data!$B$4:$AE$137,18,0),"") -> 105 | BG19: 0 | BH19: =IF(BG19=0,0,IFERROR($E19*BF19+($E19*'Basic Price Adjustment'!$E44),"")) -> 0 | BJ19: =IFERROR(VLOOKUP(BL$3,Data!$B$4:$AE$137,18,0),"") -> 105 | BK19: 0 | BL19: =IF(BK19=0,0,IFERROR($E19*BJ19+($E19*'Basic Price Adjustment'!$E44),"")) -> 0 | BN19: =IFERROR(VLOOKUP(BP$3,Data!$B$4:$AE$137,18,0),"") -> 0 | BO19: 0 | BP19: =IF(BO19=0,0,IFERROR($E19*BN19+($E19*'Basic Price Adjustment'!$E44),"")) -> 0 | BR19: =IFERROR(VLOOKUP(BT$3,Data!$B$4:$AE$137,18,0),"") ->  | BT19: =IF(BS19=0,0,IFERROR($E19*BR19+($E19*'Basic Price Adjustment'!$E44),"")) ->  | BV19: =IFERROR(VLOOKUP(BX$3,Data!$B$4:$AE$137,18,0),"") ->  | BX19: =IF(BW19=0,0,IFERROR($E19*BV19+($E19*'Basic Price Adjustment'!$E44),"")) ->  | CB19: =AZ$6 -> 54.98 | CC19: =AZ$3 -> 512
B20: 13 | C20: Asphalt Section 402 - 4.75mm Superpave | E20: ='Order Details'!J19 -> 0 | F20: =IFERROR(VLOOKUP(H$3,Data!$B$4:$AE$137,19,0),"") -> 101 | G20: 0 | H20: =IF(G20=0,0,IFERROR($E20*F20+($E20*'Basic Price Adjustment'!$E45),"")) -> 0 | J20: =IFERROR(VLOOKUP(L$3,Data!$B$4:$AE$137,19,0),"") -> 0 | K20: 0 | L20: =IF(K20=0,0,IFERROR($E20*J20+($E20*'Basic Price Adjustment'!$E45),"")) -> 0 | N20: =IFERROR(VLOOKUP(P$3,Data!$B$4:$AE$137,19,0),"") -> 0 | O20: 0 | P20: =IF(O20=0,0,IFERROR($E20*N20+($E20*'Basic Price Adjustment'!$E45),"")) -> 0 | R20: =IFERROR(VLOOKUP(T$3,Data!$B$4:$AE$137,19,0),"") -> 0 | S20: 0 | T20: =IF(S20=0,0,IFERROR($E20*R20+($E20*'Basic Price Adjustment'!$E45),"")) -> 0 | V20: =IFERROR(VLOOKUP(X$3,Data!$B$4:$AE$137,19,0),"") -> 0 | W20: 0 | X20: =IF(W20=0,0,IFERROR($E20*V20+($E20*'Basic Price Adjustment'!$E45),"")) -> 0 | Z20: =IFERROR(VLOOKUP(AB$3,Data!$B$4:$AE$137,19,0),"") -> 0 | AA20: 0 | AB20: =IF(AA20=0,0,IFERROR($E20*Z20+($E20*'Basic Price Adjustment'!$E45),"")) -> 0 | AD20: =IFERROR(VLOOKUP(AF$3,Data!$B$4:$AE$137,19,0),"") -> 87.6 | AE20: 0 | AF20: =IF(AE20=0,0,IFERROR($E20*AD20+($E20*'Basic Price Adjustment'!$E45),"")) -> 0 | AH20: =IFERROR(VLOOKUP(AJ$3,Data!$B$4:$AE$137,19,0),"") -> 100.45 | AI20: 0 | AJ20: =IF(AI20=0,0,IFERROR($E20*AH20+($E20*'Basic Price Adjustment'!$E45),"")) -> 0 | AL20: =IFERROR(VLOOKUP(AN$3,Data!$B$4:$AE$137,19,0),"") -> 107.59 | AM20: 0 | AN20: =IF(AM20=0,0,IFERROR($E20*AL20+($E20*'Basic Price Adjustment'!$E45),"")) -> 0 | AP20: =IFERROR(VLOOKUP(AR$3,Data!$B$4:$AE$137,19,0),"") -> 0 | AQ20: 0 | AR20: =IF(AQ20=0,0,IFERROR($E20*AP20+($E20*'Basic Price Adjustment'!$E45),"")) -> 0 | AT20: =IFERROR(VLOOKUP(AV$3,Data!$B$4:$AE$137,19,0),"") -> 0 | AU20: 0 | AV20: =IF(AU20=0,0,IFERROR($E20*AT20+($E20*'Basic Price Adjustment'!$E45),"")) -> 0 | AX20: =IFERROR(VLOOKUP(AZ$3,Data!$B$4:$AE$137,19,0),"") -> 0 | AY20: 0 | AZ20: =IF(AY20=0,0,IFERROR($E20*AX20+($E20*'Basic Price Adjustment'!$E45),"")) -> 0 | BB20: =IFERROR(VLOOKUP(BD$3,Data!$B$4:$AE$137,19,0),"") -> 86.9 | BC20: 0 | BD20: =IF(BC20=0,0,IFERROR($E20*BB20+($E20*'Basic Price Adjustment'!$E45),"")) -> 0 | BF20: =IFERROR(VLOOKUP(BH$3,Data!$B$4:$AE$137,19,0),"") -> 115 | BG20: 0 | BH20: =IF(BG20=0,0,IFERROR($E20*BF20+($E20*'Basic Price Adjustment'!$E45),"")) -> 0 | BJ20: =IFERROR(VLOOKUP(BL$3,Data!$B$4:$AE$137,19,0),"") -> 115 | BK20: 0 | BL20: =IF(BK20=0,0,IFERROR($E20*BJ20+($E20*'Basic Price Adjustment'!$E45),"")) -> 0 | BN20: =IFERROR(VLOOKUP(BP$3,Data!$B$4:$AE$137,19,0),"") -> 0 | BO20: 0 | BP20: =IF(BO20=0,0,IFERROR($E20*BN20+($E20*'Basic Price Adjustment'!$E45),"")) -> 0 | BR20: =IFERROR(VLOOKUP(BT$3,Data!$B$4:$AE$137,19,0),"") ->  | BT20: =IF(BS20=0,0,IFERROR($E20*BR20+($E20*'Basic Price Adjustment'!$E45),"")) ->  | BV20: =IFERROR(VLOOKUP(BX$3,Data!$B$4:$AE$137,19,0),"") ->  | BX20: =IF(BW20=0,0,IFERROR($E20*BV20+($E20*'Basic Price Adjustment'!$E45),"")) ->  | CB20: =BD$6 -> 31.48 | CC20: =BD$3 -> 513
B21: 14 | C21: Asphalt Section 401 - Wearing III | E21: ='Order Details'!J20 -> 0 | F21: =IFERROR(VLOOKUP(H$3,Data!$B$4:$AE$137,20,0),"") -> 86.25 | G21: 0 | H21: =IF(G21=0,0,IFERROR($E21*F21+($E21*'Basic Price Adjustment'!$E46),"")) -> 0 | J21: =IFERROR(VLOOKUP(L$3,Data!$B$4:$AE$137,20,0),"") -> 0 | K21: 0 | L21: =IF(K21=0,0,IFERROR($E21*J21+($E21*'Basic Price Adjustment'!$E46),"")) -> 0 | N21: =IFERROR(VLOOKUP(P$3,Data!$B$4:$AE$137,20,0),"") -> 0 | O21: 0 | P21: =IF(O21=0,0,IFERROR($E21*N21+($E21*'Basic Price Adjustment'!$E46),"")) -> 0 | R21: =IFERROR(VLOOKUP(T$3,Data!$B$4:$AE$137,20,0),"") -> 0 | S21: 0 | T21: =IF(S21=0,0,IFERROR($E21*R21+($E21*'Basic Price Adjustment'!$E46),"")) -> 0 | V21: =IFERROR(VLOOKUP(X$3,Data!$B$4:$AE$137,20,0),"") -> 0 | W21: 0 | X21: =IF(W21=0,0,IFERROR($E21*V21+($E21*'Basic Price Adjustment'!$E46),"")) -> 0 | Z21: =IFERROR(VLOOKUP(AB$3,Data!$B$4:$AE$137,20,0),"") -> 0 | AA21: 0 | AB21: =IF(AA21=0,0,IFERROR($E21*Z21+($E21*'Basic Price Adjustment'!$E46),"")) -> 0 | AD21: =IFERROR(VLOOKUP(AF$3,Data!$B$4:$AE$137,20,0),"") -> 87.63 | AE21: 0 | AF21: =IF(AE21=0,0,IFERROR($E21*AD21+($E21*'Basic Price Adjustment'!$E46),"")) -> 0 | AH21: =IFERROR(VLOOKUP(AJ$3,Data!$B$4:$AE$137,20,0),"") -> 94.46 | AI21: 0 | AJ21: =IF(AI21=0,0,IFERROR($E21*AH21+($E21*'Basic Price Adjustment'!$E46),"")) -> 0 | AL21: =IFERROR(VLOOKUP(AN$3,Data!$B$4:$AE$137,20,0),"") -> 103.17 | AM21: 0 | AN21: =IF(AM21=0,0,IFERROR($E21*AL21+($E21*'Basic Price Adjustment'!$E46),"")) -> 0 | AP21: =IFERROR(VLOOKUP(AR$3,Data!$B$4:$AE$137,20,0),"") -> 0 | AQ21: 0 | AR21: =IF(AQ21=0,0,IFERROR($E21*AP21+($E21*'Basic Price Adjustment'!$E46),"")) -> 0 | AT21: =IFERROR(VLOOKUP(AV$3,Data!$B$4:$AE$137,20,0),"") -> 0 | AU21: 0 | AV21: =IF(AU21=0,0,IFERROR($E21*AT21+($E21*'Basic Price Adjustment'!$E46),"")) -> 0 | AX21: =IFERROR(VLOOKUP(AZ$3,Data!$B$4:$AE$137,20,0),"") -> 98 | AY21: 0 | AZ21: =IF(AY21=0,0,IFERROR($E21*AX21+($E21*'Basic Price Adjustment'!$E46),"")) -> 0 | BB21: =IFERROR(VLOOKUP(BD$3,Data!$B$4:$AE$137,20,0),"") -> 82.9 | BC21: 0 | BD21: =IF(BC21=0,0,IFERROR($E21*BB21+($E21*'Basic Price Adjustment'!$E46),"")) -> 0 | BF21: =IFERROR(VLOOKUP(BH$3,Data!$B$4:$AE$137,20,0),"") -> 115 | BG21: 0 | BH21: =IF(BG21=0,0,IFERROR($E21*BF21+($E21*'Basic Price Adjustment'!$E46),"")) -> 0 | BJ21: =IFERROR(VLOOKUP(BL$3,Data!$B$4:$AE$137,20,0),"") -> 115 | BK21: 0 | BL21: =IF(BK21=0,0,IFERROR($E21*BJ21+($E21*'Basic Price Adjustment'!$E46),"")) -> 0 | BN21: =IFERROR(VLOOKUP(BP$3,Data!$B$4:$AE$137,20,0),"") -> 104 | BO21: 0 | BP21: =IF(BO21=0,0,IFERROR($E21*BN21+($E21*'Basic Price Adjustment'!$E46),"")) -> 0 | BR21: =IFERROR(VLOOKUP(BT$3,Data!$B$4:$AE$137,20,0),"") ->  | BT21: =IF(BS21=0,0,IFERROR($E21*BR21+($E21*'Basic Price Adjustment'!$E46),"")) ->  | BV21: =IFERROR(VLOOKUP(BX$3,Data!$B$4:$AE$137,20,0),"") ->  | BX21: =IF(BW21=0,0,IFERROR($E21*BV21+($E21*'Basic Price Adjustment'!$E46),"")) ->  | CB21: =BH$6 -> 44.98 | CC21: =BH$3 -> 514
B22: 15 | C22: Asphalt Section 402 - Wearing III | E22: ='Order Details'!J21 -> 0 | F22: =IFERROR(VLOOKUP(H$3,Data!$B$4:$AE$137,21,0),"") -> 99 | G22: 0 | H22: =IF(G22=0,0,IFERROR($E22*F22+($E22*'Basic Price Adjustment'!$E47),"")) -> 0 | J22: =IFERROR(VLOOKUP(L$3,Data!$B$4:$AE$137,21,0),"") -> 0 | K22: 0 | L22: =IF(K22=0,0,IFERROR($E22*J22+($E22*'Basic Price Adjustment'!$E47),"")) -> 0 | N22: =IFERROR(VLOOKUP(P$3,Data!$B$4:$AE$137,21,0),"") -> 0 | O22: 0 | P22: =IF(O22=0,0,IFERROR($E22*N22+($E22*'Basic Price Adjustment'!$E47),"")) -> 0 | R22: =IFERROR(VLOOKUP(T$3,Data!$B$4:$AE$137,21,0),"") -> 0 | S22: 0 | T22: =IF(S22=0,0,IFERROR($E22*R22+($E22*'Basic Price Adjustment'!$E47),"")) -> 0 | V22: =IFERROR(VLOOKUP(X$3,Data!$B$4:$AE$137,21,0),"") -> 0 | W22: 0 | X22: =IF(W22=0,0,IFERROR($E22*V22+($E22*'Basic Price Adjustment'!$E47),"")) -> 0 | Z22: =IFERROR(VLOOKUP(AB$3,Data!$B$4:$AE$137,21,0),"") -> 0 | AA22: 0 | AB22: =IF(AA22=0,0,IFERROR($E22*Z22+($E22*'Basic Price Adjustment'!$E47),"")) -> 0 | AD22: =IFERROR(VLOOKUP(AF$3,Data!$B$4:$AE$137,21,0),"") -> 91.28 | AE22: 0 | AF22: =IF(AE22=0,0,IFERROR($E22*AD22+($E22*'Basic Price Adjustment'!$E47),"")) -> 0 | AH22: =IFERROR(VLOOKUP(AJ$3,Data!$B$4:$AE$137,21,0),"") -> 97.68 | AI22: 0 | AJ22: =IF(AI22=0,0,IFERROR($E22*AH22+($E22*'Basic Price Adjustment'!$E47),"")) -> 0 | AL22: =IFERROR(VLOOKUP(AN$3,Data!$B$4:$AE$137,21,0),"") -> 104.2 | AM22: 0 | AN22: =IF(AM22=0,0,IFERROR($E22*AL22+($E22*'Basic Price Adjustment'!$E47),"")) -> 0 | AP22: =IFERROR(VLOOKUP(AR$3,Data!$B$4:$AE$137,21,0),"") -> 0 | AQ22: 0 | AR22: =IF(AQ22=0,0,IFERROR($E22*AP22+($E22*'Basic Price Adjustment'!$E47),"")) -> 0 | AT22: =IFERROR(VLOOKUP(AV$3,Data!$B$4:$AE$137,21,0),"") -> 0 | AU22: 0 | AV22: =IF(AU22=0,0,IFERROR($E22*AT22+($E22*'Basic Price Adjustment'!$E47),"")) -> 0 | AX22: =IFERROR(VLOOKUP(AZ$3,Data!$B$4:$AE$137,21,0),"") -> 0 | AY22: 0 | AZ22: =IF(AY22=0,0,IFERROR($E22*AX22+($E22*'Basic Price Adjustment'!$E47),"")) -> 0 | BB22: =IFERROR(VLOOKUP(BD$3,Data!$B$4:$AE$137,21,0),"") -> 86.9 | BC22: 0 | BD22: =IF(BC22=0,0,IFERROR($E22*BB22+($E22*'Basic Price Adjustment'!$E47),"")) -> 0 | BF22: =IFERROR(VLOOKUP(BH$3,Data!$B$4:$AE$137,21,0),"") -> 125 | BG22: 0 | BH22: =IF(BG22=0,0,IFERROR($E22*BF22+($E22*'Basic Price Adjustment'!$E47),"")) -> 0 | BJ22: =IFERROR(VLOOKUP(BL$3,Data!$B$4:$AE$137,21,0),"") -> 125 | BK22: 0 | BL22: =IF(BK22=0,0,IFERROR($E22*BJ22+($E22*'Basic Price Adjustment'!$E47),"")) -> 0 | BN22: =IFERROR(VLOOKUP(BP$3,Data!$B$4:$AE$137,21,0),"") -> 0 | BO22: 0 | BP22: =IF(BO22=0,0,IFERROR($E22*BN22+($E22*'Basic Price Adjustment'!$E47),"")) -> 0 | BR22: =IFERROR(VLOOKUP(BT$3,Data!$B$4:$AE$137,21,0),"") ->  | BT22: =IF(BS22=0,0,IFERROR($E22*BR22+($E22*'Basic Price Adjustment'!$E47),"")) ->  | BV22: =IFERROR(VLOOKUP(BX$3,Data!$B$4:$AE$137,21,0),"") ->  | BX22: =IF(BW22=0,0,IFERROR($E22*BV22+($E22*'Basic Price Adjustment'!$E47),"")) ->  | CB22: =BL$6 -> 44.98 | CC22: =BL$3 -> 515
B23: 16 | C23: Asphalt Section 401 - 12.5mm Superpave | E23: ='Order Details'!J22 -> 0 | F23: =IFERROR(VLOOKUP(H$3,Data!$B$4:$AE$137,22,0),"") -> 79.5 | G23: 0 | H23: =IF(G23=0,0,IFERROR($E23*F23+($E23*'Basic Price Adjustment'!$E48),"")) -> 0 | J23: =IFERROR(VLOOKUP(L$3,Data!$B$4:$AE$137,22,0),"") -> 0 | K23: 0 | L23: =IF(K23=0,0,IFERROR($E23*J23+($E23*'Basic Price Adjustment'!$E48),"")) -> 0 | N23: =IFERROR(VLOOKUP(P$3,Data!$B$4:$AE$137,22,0),"") -> 83.3 | O23: 0 | P23: =IF(O23=0,0,IFERROR($E23*N23+($E23*'Basic Price Adjustment'!$E48),"")) -> 0 | R23: =IFERROR(VLOOKUP(T$3,Data!$B$4:$AE$137,22,0),"") -> 84.5 | S23: 0 | T23: =IF(S23=0,0,IFERROR($E23*R23+($E23*'Basic Price Adjustment'!$E48),"")) -> 0 | V23: =IFERROR(VLOOKUP(X$3,Data!$B$4:$AE$137,22,0),"") -> 88 | W23: 0 | X23: =IF(W23=0,0,IFERROR($E23*V23+($E23*'Basic Price Adjustment'!$E48),"")) -> 0 | Z23: =IFERROR(VLOOKUP(AB$3,Data!$B$4:$AE$137,22,0),"") -> 88 | AA23: 0 | AB23: =IF(AA23=0,0,IFERROR($E23*Z23+($E23*'Basic Price Adjustment'!$E48),"")) -> 0 | AD23: =IFERROR(VLOOKUP(AF$3,Data!$B$4:$AE$137,22,0),"") -> 77.51 | AE23: 0 | AF23: =IF(AE23=0,0,IFERROR($E23*AD23+($E23*'Basic Price Adjustment'!$E48),"")) -> 0 | AH23: =IFERROR(VLOOKUP(AJ$3,Data!$B$4:$AE$137,22,0),"") -> 83.71 | AI23: 0 | AJ23: =IF(AI23=0,0,IFERROR($E23*AH23+($E23*'Basic Price Adjustment'!$E48),"")) -> 0 | AL23: =IFERROR(VLOOKUP(AN$3,Data!$B$4:$AE$137,22,0),"") -> 87.08 | AM23: 0 | AN23: =IF(AM23=0,0,IFERROR($E23*AL23+($E23*'Basic Price Adjustment'!$E48),"")) -> 0 | AP23: =IFERROR(VLOOKUP(AR$3,Data!$B$4:$AE$137,22,0),"") -> 0 | AQ23: 0 | AR23: =IF(AQ23=0,0,IFERROR($E23*AP23+($E23*'Basic Price Adjustment'!$E48),"")) -> 0 | AT23: =IFERROR(VLOOKUP(AV$3,Data!$B$4:$AE$137,22,0),"") -> 0 | AU23: 0 | AV23: =IF(AU23=0,0,IFERROR($E23*AT23+($E23*'Basic Price Adjustment'!$E48),"")) -> 0 | AX23: =IFERROR(VLOOKUP(AZ$3,Data!$B$4:$AE$137,22,0),"") -> 92 | AY23: 0 | AZ23: =IF(AY23=0,0,IFERROR($E23*AX23+($E23*'Basic Price Adjustment'!$E48),"")) -> 0 | BB23: =IFERROR(VLOOKUP(BD$3,Data!$B$4:$AE$137,22,0),"") -> 70.6 | BC23: 0 | BD23: =IF(BC23=0,0,IFERROR($E23*BB23+($E23*'Basic Price Adjustment'!$E48),"")) -> 0 | BF23: =IFERROR(VLOOKUP(BH$3,Data!$B$4:$AE$137,22,0),"") -> 90 | BG23: 0 | BH23: =IF(BG23=0,0,IFERROR($E23*BF23+($E23*'Basic Price Adjustment'!$E48),"")) -> 0 | BJ23: =IFERROR(VLOOKUP(BL$3,Data!$B$4:$AE$137,22,0),"") -> 90 | BK23: 0 | BL23: =IF(BK23=0,0,IFERROR($E23*BJ23+($E23*'Basic Price Adjustment'!$E48),"")) -> 0 | BN23: =IFERROR(VLOOKUP(BP$3,Data!$B$4:$AE$137,22,0),"") -> 99 | BO23: 0 | BP23: =IF(BO23=0,0,IFERROR($E23*BN23+($E23*'Basic Price Adjustment'!$E48),"")) -> 0 | BR23: =IFERROR(VLOOKUP(BT$3,Data!$B$4:$AE$137,22,0),"") ->  | BT23: =IF(BS23=0,0,IFERROR($E23*BR23+($E23*'Basic Price Adjustment'!$E48),"")) ->  | BV23: =IFERROR(VLOOKUP(BX$3,Data!$B$4:$AE$137,22,0),"") ->  | BX23: =IF(BW23=0,0,IFERROR($E23*BV23+($E23*'Basic Price Adjustment'!$E48),"")) ->  | CB23: =BP$6 -> 46.48 | CC23: =BP$3 -> 516
B24: 17 | C24: Asphalt Section 402 - 12.5mm Superpave | E24: ='Order Details'!J23 -> 0 | F24: =IFERROR(VLOOKUP(H$3,Data!$B$4:$AE$137,23,0),"") -> 83 | G24: 0 | H24: =IF(G24=0,0,IFERROR($E24*F24+($E24*'Basic Price Adjustment'!$E49),"")) -> 0 | J24: =IFERROR(VLOOKUP(L$3,Data!$B$4:$AE$137,23,0),"") -> 0 | K24: 0 | L24: =IF(K24=0,0,IFERROR($E24*J24+($E24*'Basic Price Adjustment'!$E49),"")) -> 0 | N24: =IFERROR(VLOOKUP(P$3,Data!$B$4:$AE$137,23,0),"") -> 84 | O24: 0 | P24: =IF(O24=0,0,IFERROR($E24*N24+($E24*'Basic Price Adjustment'!$E49),"")) -> 0 | R24: =IFERROR(VLOOKUP(T$3,Data!$B$4:$AE$137,23,0),"") -> 85 | S24: 0 | T24: =IF(S24=0,0,IFERROR($E24*R24+($E24*'Basic Price Adjustment'!$E49),"")) -> 0 | V24: =IFERROR(VLOOKUP(X$3,Data!$B$4:$AE$137,23,0),"") -> 95.5 | W24: 0 | X24: =IF(W24=0,0,IFERROR($E24*V24+($E24*'Basic Price Adjustment'!$E49),"")) -> 0 | Z24: =IFERROR(VLOOKUP(AB$3,Data!$B$4:$AE$137,23,0),"") -> 95.5 | AA24: 0 | AB24: =IF(AA24=0,0,IFERROR($E24*Z24+($E24*'Basic Price Adjustment'!$E49),"")) -> 0 | AD24: =IFERROR(VLOOKUP(AF$3,Data!$B$4:$AE$137,23,0),"") -> 80.84 | AE24: 0 | AF24: =IF(AE24=0,0,IFERROR($E24*AD24+($E24*'Basic Price Adjustment'!$E49),"")) -> 0 | AH24: =IFERROR(VLOOKUP(AJ$3,Data!$B$4:$AE$137,23,0),"") -> 86.38 | AI24: 0 | AJ24: =IF(AI24=0,0,IFERROR($E24*AH24+($E24*'Basic Price Adjustment'!$E49),"")) -> 0 | AL24: =IFERROR(VLOOKUP(AN$3,Data!$B$4:$AE$137,23,0),"") -> 89.67 | AM24: 0 | AN24: =IF(AM24=0,0,IFERROR($E24*AL24+($E24*'Basic Price Adjustment'!$E49),"")) -> 0 | AP24: =IFERROR(VLOOKUP(AR$3,Data!$B$4:$AE$137,23,0),"") -> 81.95 | AQ24: 0 | AR24: =IF(AQ24=0,0,IFERROR($E24*AP24+($E24*'Basic Price Adjustment'!$E49),"")) -> 0 | AT24: =IFERROR(VLOOKUP(AV$3,Data!$B$4:$AE$137,23,0),"") -> 0 | AU24: 0 | AV24: =IF(AU24=0,0,IFERROR($E24*AT24+($E24*'Basic Price Adjustment'!$E49),"")) -> 0 | AX24: =IFERROR(VLOOKUP(AZ$3,Data!$B$4:$AE$137,23,0),"") -> 100 | AY24: 0 | AZ24: =IF(AY24=0,0,IFERROR($E24*AX24+($E24*'Basic Price Adjustment'!$E49),"")) -> 0 | BB24: =IFERROR(VLOOKUP(BD$3,Data!$B$4:$AE$137,23,0),"") -> 73.9 | BC24: 0 | BD24: =IF(BC24=0,0,IFERROR($E24*BB24+($E24*'Basic Price Adjustment'!$E49),"")) -> 0 | BF24: =IFERROR(VLOOKUP(BH$3,Data!$B$4:$AE$137,23,0),"") -> 100 | BG24: 0 | BH24: =IF(BG24=0,0,IFERROR($E24*BF24+($E24*'Basic Price Adjustment'!$E49),"")) -> 0 | BJ24: =IFERROR(VLOOKUP(BL$3,Data!$B$4:$AE$137,23,0),"") -> 100 | BK24: 0 | BL24: =IF(BK24=0,0,IFERROR($E24*BJ24+($E24*'Basic Price Adjustment'!$E49),"")) -> 0 | BN24: =IFERROR(VLOOKUP(BP$3,Data!$B$4:$AE$137,23,0),"") -> 99 | BO24: 0 | BP24: =IF(BO24=0,0,IFERROR($E24*BN24+($E24*'Basic Price Adjustment'!$E49),"")) -> 0 | BR24: =IFERROR(VLOOKUP(BT$3,Data!$B$4:$AE$137,23,0),"") ->  | BT24: =IF(BS24=0,0,IFERROR($E24*BR24+($E24*'Basic Price Adjustment'!$E49),"")) ->  | BV24: =IFERROR(VLOOKUP(BX$3,Data!$B$4:$AE$137,23,0),"") ->  | BX24: =IF(BW24=0,0,IFERROR($E24*BV24+($E24*'Basic Price Adjustment'!$E49),"")) ->  | CB24: =BT$6 -> 0 | CC24: =BT$3 -> 0
B25: 18 | C25: Asphalt Plant Run | E25: ='Order Details'!J24 -> 0 | F25: =IFERROR(VLOOKUP(H$3,Data!$B$4:$AE$137,24,0),"") -> 76 | G25: 0 | H25: =IF(G25=0,0,IFERROR($E25*F25+($E25*'Basic Price Adjustment'!$E50),"")) -> 0 | J25: =IFERROR(VLOOKUP(L$3,Data!$B$4:$AE$137,24,0),"") -> 75.92 | K25: 0 | L25: =IF(K25=0,0,IFERROR($E25*J25+($E25*'Basic Price Adjustment'!$E50),"")) -> 0 | N25: =IFERROR(VLOOKUP(P$3,Data!$B$4:$AE$137,24,0),"") -> 78 | O25: 0 | P25: =IF(O25=0,0,IFERROR($E25*N25+($E25*'Basic Price Adjustment'!$E50),"")) -> 0 | R25: =IFERROR(VLOOKUP(T$3,Data!$B$4:$AE$137,24,0),"") -> 79.8 | S25: 0 | T25: =IF(S25=0,0,IFERROR($E25*R25+($E25*'Basic Price Adjustment'!$E50),"")) -> 0 | V25: =IFERROR(VLOOKUP(X$3,Data!$B$4:$AE$137,24,0),"") -> 78 | W25: 0 | X25: =IF(W25=0,0,IFERROR($E25*V25+($E25*'Basic Price Adjustment'!$E50),"")) -> 0 | Z25: =IFERROR(VLOOKUP(AB$3,Data!$B$4:$AE$137,24,0),"") -> 78 | AA25: 0 | AB25: =IF(AA25=0,0,IFERROR($E25*Z25+($E25*'Basic Price Adjustment'!$E50),"")) -> 0 | AD25: =IFERROR(VLOOKUP(AF$3,Data!$B$4:$AE$137,24,0),"") -> 77.08 | AE25: 0 | AF25: =IF(AE25=0,0,IFERROR($E25*AD25+($E25*'Basic Price Adjustment'!$E50),"")) -> 0 | AH25: =IFERROR(VLOOKUP(AJ$3,Data!$B$4:$AE$137,24,0),"") -> 77.74 | AI25: 0 | AJ25: =IF(AI25=0,0,IFERROR($E25*AH25+($E25*'Basic Price Adjustment'!$E50),"")) -> 0 | AL25: =IFERROR(VLOOKUP(AN$3,Data!$B$4:$AE$137,24,0),"") -> 79.64 | AM25: 0 | AN25: =IF(AM25=0,0,IFERROR($E25*AL25+($E25*'Basic Price Adjustment'!$E50),"")) -> 0 | AP25: =IFERROR(VLOOKUP(AR$3,Data!$B$4:$AE$137,24,0),"") -> 77.3 | AQ25: 0 | AR25: =IF(AQ25=0,0,IFERROR($E25*AP25+($E25*'Basic Price Adjustment'!$E50),"")) -> 0 | AT25: =IFERROR(VLOOKUP(AV$3,Data!$B$4:$AE$137,24,0),"") -> 78 | AU25: 0 | AV25: =IF(AU25=0,0,IFERROR($E25*AT25+($E25*'Basic Price Adjustment'!$E50),"")) -> 0 | AX25: =IFERROR(VLOOKUP(AZ$3,Data!$B$4:$AE$137,24,0),"") -> 90 | AY25: 0 | AZ25: =IF(AY25=0,0,IFERROR($E25*AX25+($E25*'Basic Price Adjustment'!$E50),"")) -> 0 | BB25: =IFERROR(VLOOKUP(BD$3,Data!$B$4:$AE$137,24,0),"") -> 73 | BC25: 0 | BD25: =IF(BC25=0,0,IFERROR($E25*BB25+($E25*'Basic Price Adjustment'!$E50),"")) -> 0 | BF25: =IFERROR(VLOOKUP(BH$3,Data!$B$4:$AE$137,24,0),"") -> 90 | BG25: 0 | BH25: =IF(BG25=0,0,IFERROR($E25*BF25+($E25*'Basic Price Adjustment'!$E50),"")) -> 0 | BJ25: =IFERROR(VLOOKUP(BL$3,Data!$B$4:$AE$137,24,0),"") -> 90 | BK25: 0 | BL25: =IF(BK25=0,0,IFERROR($E25*BJ25+($E25*'Basic Price Adjustment'!$E50),"")) -> 0 | BN25: =IFERROR(VLOOKUP(BP$3,Data!$B$4:$AE$137,24,0),"") -> 84 | BO25: 0 | BP25: =IF(BO25=0,0,IFERROR($E25*BN25+($E25*'Basic Price Adjustment'!$E50),"")) -> 0 | BR25: =IFERROR(VLOOKUP(BT$3,Data!$B$4:$AE$137,24,0),"") ->  | BT25: =IF(BS25=0,0,IFERROR($E25*BR25+($E25*'Basic Price Adjustment'!$E50),"")) ->  | BV25: =IFERROR(VLOOKUP(BX$3,Data!$B$4:$AE$137,24,0),"") ->  | BX25: =IF(BW25=0,0,IFERROR($E25*BV25+($E25*'Basic Price Adjustment'!$E50),"")) ->  | CB25: =BX$6 -> 0 | CC25: =BX$3 -> 0
B26: 19 | C26: Surcharge for PG Binder - 64H minus 22 | E26: ='Order Details'!J25 -> 0 | F26: =IFERROR(VLOOKUP(H$3,Data!$B$4:$AE$137,25,0),"") -> 4.75 | G26: 0 | H26: =IFERROR(G26,"") -> 0 | J26: =IFERROR(VLOOKUP(L$3,Data!$B$4:$AE$137,25,0),"") -> 0 | K26: 0 | L26: =IFERROR(K26,"") -> 0 | N26: =IFERROR(VLOOKUP(P$3,Data!$B$4:$AE$137,25,0),"") -> 5 | O26: 0 | P26: =IFERROR(O26,"") -> 0 | R26: =IFERROR(VLOOKUP(T$3,Data!$B$4:$AE$137,25,0),"") -> 5 | S26: 0 | T26: =IFERROR(S26,"") -> 0 | V26: =IFERROR(VLOOKUP(X$3,Data!$B$4:$AE$137,25,0),"") -> 5 | W26: 0 | X26: =IFERROR(W26,"") -> 0 | Z26: =IFERROR(VLOOKUP(AB$3,Data!$B$4:$AE$137,25,0),"") -> 5 | AA26: 0 | AB26: =IFERROR(AA26,"") -> 0 | AD26: =IFERROR(VLOOKUP(AF$3,Data!$B$4:$AE$137,25,0),"") -> 4.75 | AE26: 0 | AF26: =IFERROR(AE26,"") -> 0 | AH26: =IFERROR(VLOOKUP(AJ$3,Data!$B$4:$AE$137,25,0),"") -> 4.75 | AI26: 0 | AJ26: =IFERROR(AI26,"") -> 0 | AL26: =IFERROR(VLOOKUP(AN$3,Data!$B$4:$AE$137,25,0),"") -> 4.75 | AM26: 0 | AN26: =IFERROR(AM26,"") -> 0 | AP26: =IFERROR(VLOOKUP(AR$3,Data!$B$4:$AE$137,25,0),"") -> 5 | AQ26: 0 | AR26: =IFERROR(AQ26,"") -> 0 | AT26: =IFERROR(VLOOKUP(AV$3,Data!$B$4:$AE$137,25,0),"") -> 0 | AU26: 0 | AV26: =IFERROR(AU26,"") -> 0 | AX26: =IFERROR(VLOOKUP(AZ$3,Data!$B$4:$AE$137,25,0),"") -> 6 | AY26: 0 | AZ26: =IFERROR(AY26,"") -> 0 | BB26: =IFERROR(VLOOKUP(BD$3,Data!$B$4:$AE$137,25,0),"") -> 2 | BC26: 0 | BD26: =IFERROR(BC26,"") -> 0 | BF26: =IFERROR(VLOOKUP(BH$3,Data!$B$4:$AE$137,25,0),"") -> 8 | BG26: 0 | BH26: =IFERROR(BG26,"") -> 0 | BJ26: =IFERROR(VLOOKUP(BL$3,Data!$B$4:$AE$137,25,0),"") -> 8 | BK26: 0 | BL26: =IFERROR(BK26,"") -> 0 | BN26: =IFERROR(VLOOKUP(BP$3,Data!$B$4:$AE$137,25,0),"") -> 4 | BO26: 0 | BP26: =IFERROR(BO26,"") -> 0 | BR26: =IFERROR(VLOOKUP(BT$3,Data!$B$4:$AE$137,25,0),"") ->  | BT26: =IFERROR(BS26,"") ->  | BV26: =IFERROR(VLOOKUP(BX$3,Data!$B$4:$AE$137,25,0),"") ->  | BX26: =IFERROR(BW26,"") -> 
B27: 20 | C27: Surcharge for PG Binder - 64E minus 22 - ordered in 400 ton increments | E27: ='Order Details'!J26 -> 0 | F27: =IFERROR(VLOOKUP(H$3,Data!$B$4:$AE$137,26,0),"") -> 14.5 | G27: 0 | H27: 0 | J27: =IFERROR(VLOOKUP(L$3,Data!$B$4:$AE$137,26,0),"") -> 0 | K27: 0 | L27: 0 | N27: =IFERROR(VLOOKUP(P$3,Data!$B$4:$AE$137,26,0),"") -> 12 | O27: 0 | P27: 0 | R27: =IFERROR(VLOOKUP(T$3,Data!$B$4:$AE$137,26,0),"") -> 12 | S27: 0 | T27: 0 | V27: =IFERROR(VLOOKUP(X$3,Data!$B$4:$AE$137,26,0),"") -> 12 | W27: 0 | X27: 0 | Z27: =IFERROR(VLOOKUP(AB$3,Data!$B$4:$AE$137,26,0),"") -> 12 | AA27: 0 | AB27: 0 | AD27: =IFERROR(VLOOKUP(AF$3,Data!$B$4:$AE$137,26,0),"") -> 12.5 | AE27: 0 | AF27: 0 | AH27: =IFERROR(VLOOKUP(AJ$3,Data!$B$4:$AE$137,26,0),"") -> 12.5 | AI27: 0 | AJ27: 0 | AL27: =IFERROR(VLOOKUP(AN$3,Data!$B$4:$AE$137,26,0),"") -> 12.5 | AM27: 0 | AN27: 0 | AP27: =IFERROR(VLOOKUP(AR$3,Data!$B$4:$AE$137,26,0),"") -> 15 | AQ27: 0 | AR27: 0 | AT27: =IFERROR(VLOOKUP(AV$3,Data!$B$4:$AE$137,26,0),"") -> 0 | AU27: 0 | AV27: 0 | AX27: =IFERROR(VLOOKUP(AZ$3,Data!$B$4:$AE$137,26,0),"") -> 15 | AY27: 0 | AZ27: 0 | BB27: =IFERROR(VLOOKUP(BD$3,Data!$B$4:$AE$137,26,0),"") -> 11 | BC27: 0 | BD27: 0 | BF27: =IFERROR(VLOOKUP(BH$3,Data!$B$4:$AE$137,26,0),"") -> 8 | BG27: 0 | BH27: 0 | BJ27: =IFERROR(VLOOKUP(BL$3,Data!$B$4:$AE$137,26,0),"") -> 8 | BK27: 0 | BL27: 0 | BN27: =IFERROR(VLOOKUP(BP$3,Data!$B$4:$AE$137,26,0),"") -> 12 | BO27: 0 | BP27: 0 | BR27: =IFERROR(VLOOKUP(BT$3,Data!$B$4:$AE$137,26,0),"") ->  | BV27: =IFERROR(VLOOKUP(BX$3,Data!$B$4:$AE$137,26,0),"") -> 
B28: 21 | C28: ESAL Surcharge - 3 million to 20 million ESALs | E28: ='Order Details'!J27 -> 0 | F28: =IFERROR(VLOOKUP(H$3,Data!$B$4:$AE$137,27,0),"") -> 1.25 | G28: 0 | H28: 0 | J28: =IFERROR(VLOOKUP(L$3,Data!$B$4:$AE$137,27,0),"") -> 0 | K28: 0 | L28: 0 | N28: =IFERROR(VLOOKUP(P$3,Data!$B$4:$AE$137,27,0),"") -> 4 | O28: 0 | P28: 0 | R28: =IFERROR(VLOOKUP(T$3,Data!$B$4:$AE$137,27,0),"") -> 4 | S28: 0 | T28: 0 | V28: =IFERROR(VLOOKUP(X$3,Data!$B$4:$AE$137,27,0),"") -> 4 | W28: 0 | X28: 0 | Z28: =IFERROR(VLOOKUP(AB$3,Data!$B$4:$AE$137,27,0),"") -> 4 | AA28: 0 | AB28: 0 | AD28: =IFERROR(VLOOKUP(AF$3,Data!$B$4:$AE$137,27,0),"") -> 10 | AE28: 0 | AF28: 0 | AH28: =IFERROR(VLOOKUP(AJ$3,Data!$B$4:$AE$137,27,0),"") -> 10 | AI28: 0 | AJ28: 0 | AL28: =IFERROR(VLOOKUP(AN$3,Data!$B$4:$AE$137,27,0),"") -> 10 | AM28: 0 | AN28: 0 | AP28: =IFERROR(VLOOKUP(AR$3,Data!$B$4:$AE$137,27,0),"") -> 5 | AQ28: 0 | AR28: 0 | AT28: =IFERROR(VLOOKUP(AV$3,Data!$B$4:$AE$137,27,0),"") -> 0 | AU28: 0 | AV28: 0 | AX28: =IFERROR(VLOOKUP(AZ$3,Data!$B$4:$AE$137,27,0),"") -> 0.3 | AY28: 0 | AZ28: 0 | BB28: =IFERROR(VLOOKUP(BD$3,Data!$B$4:$AE$137,27,0),"") -> 2 | BC28: 0 | BD28: 0 | BF28: =IFERROR(VLOOKUP(BH$3,Data!$B$4:$AE$137,27,0),"") -> 0 | BG28: 0 | BH28: 0 | BJ28: =IFERROR(VLOOKUP(BL$3,Data!$B$4:$AE$137,27,0),"") -> 0 | BK28: 0 | BL28: 0 | BN28: =IFERROR(VLOOKUP(BP$3,Data!$B$4:$AE$137,27,0),"") -> 2 | BO28: 0 | BP28: 0 | BR28: =IFERROR(VLOOKUP(BT$3,Data!$B$4:$AE$137,27,0),"") ->  | BV28: =IFERROR(VLOOKUP(BX$3,Data!$B$4:$AE$137,27,0),"") -> 
B29: 22 | C29: ESAL Surcharge - Greater than 20 million ESALs | E29: ='Order Details'!J28 -> 0 | F29: =IFERROR(VLOOKUP(H$3,Data!$B$4:$AE$137,28,0),"") -> 1.75 | G29: 0 | H29: 0 | J29: =IFERROR(VLOOKUP(L$3,Data!$B$4:$AE$137,28,0),"") -> 0 | K29: 0 | L29: 0 | N29: =IFERROR(VLOOKUP(P$3,Data!$B$4:$AE$137,28,0),"") -> 10 | O29: 0 | P29: 0 | R29: =IFERROR(VLOOKUP(T$3,Data!$B$4:$AE$137,28,0),"") -> 10 | S29: 0 | T29: 0 | V29: =IFERROR(VLOOKUP(X$3,Data!$B$4:$AE$137,28,0),"") -> 10 | W29: 0 | X29: 0 | Z29: =IFERROR(VLOOKUP(AB$3,Data!$B$4:$AE$137,28,0),"") -> 10 | AA29: 0 | AB29: 0 | AD29: =IFERROR(VLOOKUP(AF$3,Data!$B$4:$AE$137,28,0),"") -> 10 | AE29: 0 | AF29: 0 | AH29: =IFERROR(VLOOKUP(AJ$3,Data!$B$4:$AE$137,28,0),"") -> 10 | AI29: 0 | AJ29: 0 | AL29: =IFERROR(VLOOKUP(AN$3,Data!$B$4:$AE$137,28,0),"") -> 10 | AM29: 0 | AN29: 0 | AP29: =IFERROR(VLOOKUP(AR$3,Data!$B$4:$AE$137,28,0),"") -> 15 | AQ29: 0 | AR29: 0 | AT29: =IFERROR(VLOOKUP(AV$3,Data!$B$4:$AE$137,28,0),"") -> 0 | AU29: 0 | AV29: 0 | AX29: =IFERROR(VLOOKUP(AZ$3,Data!$B$4:$AE$137,28,0),"") -> 0.45 | AY29: 0 | AZ29: 0 | BB29: =IFERROR(VLOOKUP(BD$3,Data!$B$4:$AE$137,28,0),"") -> 4 | BC29: 0 | BD29: 0 | BF29: =IFERROR(VLOOKUP(BH$3,Data!$B$4:$AE$137,28,0),"") -> 0 | BG29: 0 | BH29: 0 | BJ29: =IFERROR(VLOOKUP(BL$3,Data!$B$4:$AE$137,28,0),"") -> 0 | BK29: 0 | BL29: 0 | BN29: =IFERROR(VLOOKUP(BP$3,Data!$B$4:$AE$137,28,0),"") -> 5 | BO29: 0 | BP29: 0 | BR29: =IFERROR(VLOOKUP(BT$3,Data!$B$4:$AE$137,28,0),"") ->  | BV29: =IFERROR(VLOOKUP(BX$3,Data!$B$4:$AE$137,28,0),"") -> 
B30: 23 | C30: Off-Season Plant Opening - First Day | E30: ='Order Details'!J29 -> 0 | F30: =IFERROR(VLOOKUP(H$3,Data!$B$4:$AE$137,29,0),"") -> 6850 | G30: 0 | H30: 0 | J30: =IFERROR(VLOOKUP(L$3,Data!$B$4:$AE$137,29,0),"") -> 3000 | K30: 0 | L30: 0 | N30: =IFERROR(VLOOKUP(P$3,Data!$B$4:$AE$137,29,0),"") -> 4500 | O30: 0 | P30: 0 | R30: =IFERROR(VLOOKUP(T$3,Data!$B$4:$AE$137,29,0),"") -> 4500 | S30: 0 | T30: 0 | V30: =IFERROR(VLOOKUP(X$3,Data!$B$4:$AE$137,29,0),"") -> 4500 | W30: 0 | X30: 0 | Z30: =IFERROR(VLOOKUP(AB$3,Data!$B$4:$AE$137,29,0),"") -> 4500 | AA30: 0 | AB30: 0 | AD30: =IFERROR(VLOOKUP(AF$3,Data!$B$4:$AE$137,29,0),"") -> 3500 | AE30: 0 | AF30: 0 | AH30: =IFERROR(VLOOKUP(AJ$3,Data!$B$4:$AE$137,29,0),"") -> 3500 | AI30: 0 | AJ30: 0 | AL30: =IFERROR(VLOOKUP(AN$3,Data!$B$4:$AE$137,29,0),"") -> 3500 | AM30: 0 | AN30: 0 | AP30: =IFERROR(VLOOKUP(AR$3,Data!$B$4:$AE$137,29,0),"") -> 9000 | AQ30: 0 | AR30: 0 | AT30: =IFERROR(VLOOKUP(AV$3,Data!$B$4:$AE$137,29,0),"") -> 0 | AU30: 0 | AV30: 0 | AX30: =IFERROR(VLOOKUP(AZ$3,Data!$B$4:$AE$137,29,0),"") -> 5000 | AY30: 0 | AZ30: 0 | BB30: =IFERROR(VLOOKUP(BD$3,Data!$B$4:$AE$137,29,0),"") -> 5000 | BC30: 0 | BD30: 0 | BF30: =IFERROR(VLOOKUP(BH$3,Data!$B$4:$AE$137,29,0),"") -> 8000 | BG30: 0 | BH30: 0 | BJ30: =IFERROR(VLOOKUP(BL$3,Data!$B$4:$AE$137,29,0),"") -> 8000 | BK30: 0 | BL30: 0 | BN30: =IFERROR(VLOOKUP(BP$3,Data!$B$4:$AE$137,29,0),"") -> 4000 | BO30: 0 | BP30: 0 | BR30: =IFERROR(VLOOKUP(BT$3,Data!$B$4:$AE$137,29,0),"") ->  | BV30: =IFERROR(VLOOKUP(BX$3,Data!$B$4:$AE$137,29,0),"") -> 
B31: 24 | C31: Off-Season Plant Opening - Each Additional Day | E31: ='Order Details'!J30 -> 0 | F31: =IFERROR(VLOOKUP(H$3,Data!$B$4:$AE$137,30,0),"") -> 4350 | G31: 0 | H31: 0 | J31: =IFERROR(VLOOKUP(L$3,Data!$B$4:$AE$137,30,0),"") -> 750 | K31: 0 | L31: 0 | N31: =IFERROR(VLOOKUP(P$3,Data!$B$4:$AE$137,30,0),"") -> 1500 | O31: 0 | P31: 0 | R31: =IFERROR(VLOOKUP(T$3,Data!$B$4:$AE$137,30,0),"") -> 1500 | S31: 0 | T31: 0 | V31: =IFERROR(VLOOKUP(X$3,Data!$B$4:$AE$137,30,0),"") -> 1500 | W31: 0 | X31: 0 | Z31: =IFERROR(VLOOKUP(AB$3,Data!$B$4:$AE$137,30,0),"") -> 1500 | AA31: 0 | AB31: 0 | AD31: =IFERROR(VLOOKUP(AF$3,Data!$B$4:$AE$137,30,0),"") -> 1500 | AE31: 0 | AF31: 0 | AH31: =IFERROR(VLOOKUP(AJ$3,Data!$B$4:$AE$137,30,0),"") -> 1500 | AI31: 0 | AJ31: 0 | AL31: =IFERROR(VLOOKUP(AN$3,Data!$B$4:$AE$137,30,0),"") -> 1500 | AM31: 0 | AN31: 0 | AP31: =IFERROR(VLOOKUP(AR$3,Data!$B$4:$AE$137,30,0),"") -> 3000 | AQ31: 0 | AR31: 0 | AT31: =IFERROR(VLOOKUP(AV$3,Data!$B$4:$AE$137,30,0),"") -> 0 | AU31: 0 | AV31: 0 | AX31: =IFERROR(VLOOKUP(AZ$3,Data!$B$4:$AE$137,30,0),"") -> 500 | AY31: 0 | AZ31: 0 | BB31: =IFERROR(VLOOKUP(BD$3,Data!$B$4:$AE$137,30,0),"") -> 1500 | BC31: 0 | BD31: 0 | BF31: =IFERROR(VLOOKUP(BH$3,Data!$B$4:$AE$137,30,0),"") -> 4000 | BG31: 0 | BH31: 0 | BJ31: =IFERROR(VLOOKUP(BL$3,Data!$B$4:$AE$137,30,0),"") -> 4000 | BK31: 0 | BL31: 0 | BN31: =IFERROR(VLOOKUP(BP$3,Data!$B$4:$AE$137,30,0),"") -> 1500 | BO31: 0 | BP31: 0 | BR31: =IFERROR(VLOOKUP(BT$3,Data!$B$4:$AE$137,30,0),"") ->  | BV31: =IFERROR(VLOOKUP(BX$3,Data!$B$4:$AE$137,30,0),"") -> 
I32: =IF(ISNA(MATCH("Incomplete",I8:I31,0))=TRUE,"","Incomplete") ->  | M32: =IF(ISNA(MATCH("Incomplete",M8:M31,0))=TRUE,"","Incomplete") ->  | Q32: =IF(ISNA(MATCH("Incomplete",Q8:Q31,0))=TRUE,"","Incomplete") ->  | U32: =IF(ISNA(MATCH("Incomplete",U8:U31,0))=TRUE,"","Incomplete") ->  | Y32: =IF(ISNA(MATCH("Incomplete",Y8:Y31,0))=TRUE,"","Incomplete") ->  | AC32: =IF(ISNA(MATCH("Incomplete",AC8:AC31,0))=TRUE,"","Incomplete") ->  | AG32: =IF(ISNA(MATCH("Incomplete",AG8:AG31,0))=TRUE,"","Incomplete") ->  | AK32: =IF(ISNA(MATCH("Incomplete",AK8:AK31,0))=TRUE,"","Incomplete") ->  | AO32: =IF(ISNA(MATCH("Incomplete",AO8:AO31,0))=TRUE,"","Incomplete") ->  | AS32: =IF(ISNA(MATCH("Incomplete",AS8:AS31,0))=TRUE,"","Incomplete") ->  | AW32: =IF(ISNA(MATCH("Incomplete",AW8:AW31,0))=TRUE,"","Incomplete") -> Incomplete | BA32: =IF(ISNA(MATCH("Incomplete",BA8:BA31,0))=TRUE,"","Incomplete") ->  | BE32: =IF(ISNA(MATCH("Incomplete",BE8:BE31,0))=TRUE,"","Incomplete") ->  | BI32: =IF(ISNA(MATCH("Incomplete",BI8:BI31,0))=TRUE,"","Incomplete") ->  | BM32: =IF(ISNA(MATCH("Incomplete",BM8:BM31,0))=TRUE,"","Incomplete") ->  | BQ32: =IF(ISNA(MATCH("Incomplete",BQ8:BQ31,0))=TRUE,"","Incomplete") ->  | BU32: =IF(ISNA(MATCH("Incomplete",BU8:BU31,0))=TRUE,"","Incomplete") ->  | BY32: =IF(ISNA(MATCH("Incomplete",BY8:BY31,0))=TRUE,"","Incomplete") -> 

Sheet Order Summary
A1: Manual Override Selection:
A2: Override | B2: =IF(D1="","No","Yes") -> No
A4: Agency Release No. | B4: ='Order Details'!B19 -> 0 | G4: Vendor: | H4: =IF(D1="",'Vendor Totals'!C2,HLOOKUP(D1,'Vendor Totals'!F2:BX5,3,FALSE)) -> C WILLIAM HETZER INC
A5: Project Type: | B5: ='Order Details'!B17 -> 0 | H5: =IF(D1="",'Vendor Totals'!C3,HLOOKUP('Order Summary'!$D$1,'Vendor Totals'!$F$2:$BX$5,4,0)) -> 10104 Mapleville Road Hagerstown, MD 21740
A6: Description: | B6: ='Order Details'!B18 -> 0 | G6: PID | H6: =IF(D1="",'Vendor Totals'!B3,HLOOKUP('Order Summary'!D1,'Vendor Totals'!F2:BX5,2,FALSE)) -> 513
A7: Project # | B7: ='Order Details'!B20 -> 0
A8: Authorization # | B8: ='Order Details'!B21 -> 0 | G8: TOTAL | H8: =SUM(K11:K34) -> 31.48
B10: Item | C10: Description | H10: Quantity | I10: Unit $ | J10: Adjustment | K10: Total
B11: 1 | C11: Asphalt Section 401 - Base I | H11: ='Order Details'!J7 -> 1 | I11: =VLOOKUP($H$6,Data!$B$4:$AE$137,7,0) -> 56.5 | J11: =IF(I11=0,0,IFERROR(H11*I11+(H11*'Basic Price Adjustment'!E33),"")) -> 31.48 | K11: =J11 -> 31.48
B12: 2 | C12: Asphalt Section 401 - 25mm Superpave | H12: ='Order Details'!J8 -> 0 | I12: =VLOOKUP($H$6,Data!$B$4:$AE$137,8,0) -> 61.4 | J12: =IF(I12=0,0,IFERROR(H12*I12+(H12*'Basic Price Adjustment'!E34),"")) -> 0 | K12: =J12 -> 0
B13: 3 | C13: Asphalt Section 401 - Base II | H13: ='Order Details'!J9 -> 0 | I13: =VLOOKUP($H$6,Data!$B$4:$AE$137,9,0) -> 63.5 | J13: =IF(I13=0,0,IFERROR(H13*I13+(H13*'Basic Price Adjustment'!E35),"")) -> 0 | K13: 0
B14: 4 | C14: Asphalt Section 401 - Patch and Level | H14: ='Order Details'!J10 -> 0 | I14: =VLOOKUP($H$6,Data!$B$4:$AE$137,10,0) -> 63.5 | J14: =IF(I14=0,0,IFERROR(H14*I14+(H14*'Basic Price Adjustment'!E36),"")) -> 0 | K14: 0
B15: 5 | C15: Asphalt Section 401 - Wearing IV | H15: ='Order Details'!J11 -> 0 | I15: =VLOOKUP($H$6,Data!$B$4:$AE$137,11,0) -> 63.5 | J15: =IF(I15=0,0,IFERROR(H15*I15+(H15*'Basic Price Adjustment'!E37),"")) -> 0 | K15: 0
B16: 6 | C16: Asphalt Section 402 - Wearing IV | H16: ='Order Details'!J12 -> 0 | I16: =VLOOKUP($H$6,Data!$B$4:$AE$137,12,0) -> 66.8 | J16: =IF(I16=0,0,IFERROR(H16*I16+(H16*'Basic Price Adjustment'!E38),"")) -> 0 | K16: 0
B17: 7 | C17: Asphalt Section 401 - 19mm Superpave | H17: ='Order Details'!J13 -> 0 | I17: =VLOOKUP($H$6,Data!$B$4:$AE$137,13,0) -> 63.5 | J17: =IF(I17=0,0,IFERROR(H17*I17+(H17*'Basic Price Adjustment'!E39),"")) -> 0 | K17: 0
B18: 8 | C18: Asphalt Section 401 - Scratch Course | H18: ='Order Details'!J14 -> 0 | I18: =VLOOKUP($H$6,Data!$B$4:$AE$137,14,0) -> 72.7 | J18: =IF(I18=0,0,IFERROR(H18*I18+(H18*'Basic Price Adjustment'!E40),"")) -> 0 | K18: 0
B19: 9 | C19: Asphalt Section 402 - 9.5mm Superpave | H19: ='Order Details'!J15 -> 0 | I19: =VLOOKUP($H$6,Data!$B$4:$AE$137,15,0) -> 72.7 | J19: =IF(I19=0,0,IFERROR(H19*I19+(H19*'Basic Price Adjustment'!E41),"")) -> 0 | K19: 0
B20: 10 | C20: Asphalt Section 401 - Wearing 1 | H20: ='Order Details'!J16 -> 0 | I20: =VLOOKUP($H$6,Data!$B$4:$AE$137,16,0) -> 72.7 | J20: =IF(I20=0,0,IFERROR(H20*I20+(H20*'Basic Price Adjustment'!E42),"")) -> 0 | K20: 0
B21: 11 | C21: Asphalt Section 402 - Wearing 1 | H21: ='Order Details'!J17 -> 0 | I21: =VLOOKUP($H$6,Data!$B$4:$AE$137,17,0) -> 76 | J21: =IF(I21=0,0,IFERROR(H21*I21+(H21*'Basic Price Adjustment'!E43),"")) -> 0 | K21: 0
B22: 12 | C22: Asphalt Section 401 - 4.75mm Superpave | H22: ='Order Details'!J18 -> 0 | I22: =VLOOKUP($H$6,Data!$B$4:$AE$137,18,0) -> 82.9 | J22: =IF(I22=0,0,IFERROR(H22*I22+(H22*'Basic Price Adjustment'!E44),"")) -> 0 | K22: 0
B23: 13 | C23: Asphalt Section 402 - 4.75mm Superpave | H23: ='Order Details'!J19 -> 0 | I23: =VLOOKUP($H$6,Data!$B$4:$AE$137,19,0) -> 86.9 | J23: =IF(I23=0,0,IFERROR(H23*I23+(H23*'Basic Price Adjustment'!E45),"")) -> 0 | K23: 0
B24: 14 | C24: Asphalt Section 401 - Wearing III | H24: ='Order Details'!J20 -> 0 | I24: =VLOOKUP($H$6,Data!$B$4:$AE$137,20,0) -> 82.9 | J24: =IF(I24=0,0,IFERROR(H24*I24+(H24*'Basic Price Adjustment'!E46),"")) -> 0 | K24: 0
B25: 15 | C25: Asphalt Section 402 - Wearing III | H25: ='Order Details'!J21 -> 0 | I25: =VLOOKUP($H$6,Data!$B$4:$AE$137,21,0) -> 86.9 | J25: =IF(I25=0,0,IFERROR(H25*I25+(H25*'Basic Price Adjustment'!E47),"")) -> 0 | K25: 0
B26: 16 | C26: Asphalt Section 401 - 12.5mm Superpave | H26: ='Order Details'!J22 -> 0 | I26: =VLOOKUP($H$6,Data!$B$4:$AE$137,22,0) -> 70.6 | J26: =IF(I26=0,0,IFERROR(H26*I26+(H26*'Basic Price Adjustment'!E48),"")) -> 0 | K26: 0
B27: 17 | C27: Asphalt Section 402 - 12.5mm Superpave | H27: ='Order Details'!J23 -> 0 | I27: =VLOOKUP($H$6,Data!$B$4:$AE$137,23,0) -> 73.9 | J27: =IF(I27=0,0,IFERROR(H27*I27+(H27*'Basic Price Adjustment'!E49),"")) -> 0 | K27: 0
B28: 18 | C28: Asphalt Plant Run | H28: ='Order Details'!J24 -> 0 | I28: =VLOOKUP($H$6,Data!$B$4:$AE$137,24,0) -> 73 | J28: =IF(I28=0,0,IFERROR(H28*I28+(H28*'Basic Price Adjustment'!E50),"")) -> 0 | K28: 0
B29: 19 | C29: Surcharge for PG Binder - 64H minus 22 | H29: ='Order Details'!J25 -> 0 | I29: =VLOOKUP($H$6,Data!$B$4:$AE$137,25,0) -> 2 | K29: =I29*H29 -> 0
B30: 20 | C30: Surcharge for PG Binder - 64E minus 22 - ordered in 400 ton increments | H30: ='Order Details'!J26 -> 0 | I30: =VLOOKUP($H$6,Data!$B$4:$AE$137,26,0) -> 11 | K30: 0
B31: 21 | C31: ESAL Surcharge - 3 million to 20 million ESALs | H31: ='Order Details'!J27 -> 0 | I31: =VLOOKUP($H$6,Data!$B$4:$AE$137,27,0) -> 2 | K31: 0
B32: 22 | C32: ESAL Surcharge - Greater than 20 million ESALs | H32: ='Order Details'!J28 -> 0 | I32: =VLOOKUP($H$6,Data!$B$4:$AE$137,28,0) -> 4 | K32: 0
B33: 23 | C33: Off-Season Plant Opening - First Day | H33: ='Order Details'!J29 -> 0 | I33: =VLOOKUP($H$6,Data!$B$4:$AE$137,29,0) -> 5000 | K33: 0
B34: 24 | C34: Off-Season Plant Opening - Each Additional Day | H34: ='Order Details'!J30 -> 0 | I34: =VLOOKUP($H$6,Data!$B$4:$AE$137,30,0) -> 1500 | K34: 0

Sheet PJ-101
A1: STATE USE ONLY
A2: PJ-101
A3: Rev. 4/14/82
A5: WEST VIRGINIA DEPARTMENT OF HIGHWAYS
A7: REPORT OF ROAD OR BRIDGE PROJECTS EFFECTING PLANNING INVENTORY DATA
A8: (Send to RP to update Straight-Line Diagrams)
A10: A. IDENTIFICATION INFORMATION | G10: P. O. Request Date: | J10: =NOW() -> 2024-02-05T10:45:10.610
G11: Prepared By:
A12: l. District | C12: ='Order Details'!D3 -> 05 | G12: Data Column:
G13: Authorization No:
A14: 2. County | C14: ='Order Details'!B3 -> Berkeley | G14: Approx. Cost | J14: ='Order Summary'!$H$8 -> 31.48
A16: 3. I, US, WV, Co. & Route Number | E16: ='Order Details'!B6 -> 0 | F16: ='Order Details'!B7 -> 0 | G16: / | H16: =IF('Order Details'!$B$8="","",'Order Details'!$B$8) -> 
A18: 4. Beginning Milepoint | D18: ='Order Details'!E6 -> 0
A20: 5. Ending Milepoint (before project) | E20: ='Order Details'!E7 -> 0
D22: District Equipment Shop
A23: 6. Project beginning is | E23: miles | H23: from jct. with Route Number
D24: to
A26: 7. Length of new work | D26: ='Order Details'!B24 -> 0
A28: 8. Project Number
A31: B. Nature of Work
A33: 1. Road | C33: Bridge | E33: Bridge & Approaches | I33: Other
A35: 2. Narrative Description of Work:
B37: Examples: Widen to 16' and stab Reconst to 2 12' ln, 4' shl
C38: Reinf base and pave Traf sig, Sign, Light, Pvmt. Mark
C39: Const 2 l0' ln, 4' shl Repl New Loc, 28' wide conc slab
A43: 3. New Pavement Width (if paved)
A45: 4. New Grade Width
A47: 5. New Pavement:
B49: Example: 110 #/ST HLBC patch & level & 110 #/SY HLBC Wearing Course
A58: 6. Date Work Completed | F58: Date Work Started
B61: Prepared by: | H61: Date:
D62: (Please print or type)

Sheet FIELD
A1: HOT-MIXED ASPHALT PROJECT DATA (FOR FIELD PERSONNEL, BOTH STATE & CONTRACTOR)
A2: Project Title: | D2: ='Order Details'!B17 -> 0 | F2: Project Description: | H2: ='Order Details'!B18 -> 0
A3: Project Number: | D3: ='Order Details'!B20 -> 0 | F3: Longitude: | I3: Agency Release No. | K3: =IF('Order Details'!$B19="","",'Order Details'!$B19) -> 
A4: County: | D4: ='Order Details'!$B$3 -> Berkeley | F4: Latitude: | I4: Prepared By:
A5: Auth. No.: | D5: ='Order Details'!B21 -> 0 | F5: Date: | H5: =TODAY() -> 2024-02-05 | I5: Length (miles): | K5: ='Order Details'!B24 -> 0
A6: Begin: | D6: ='Order Details'!$B$16 -> 0 | I6: Route Sign: | K6: ='Order Details'!$B$6 -> 0
A7: End: | D7: ='Order Details'!$B$17 -> 0 | I7: Route No.: | K7: ='Order Details'!B7 -> 0 | L7: ="/" -> / | M7: =IF('Order Details'!$B$8="","",'Order Details'!$B$8) -> 
A8: Further Description: and Comments:
A12: Vendor PID: | D12: ='Order Summary'!$H$6 -> 513 | H12: FIELD INSPECTOR'S COPY
A13: Vendor Name: | D13: ='Order Summary'!$H$4 -> C WILLIAM HETZER INC
A14: Vendor Location: | D14: ='Order Summary'!$H$5 -> 10104 Mapleville Road Hagerstown, MD 21740 | H14: Actual | I14: Comment
E15: Qty.
A16: 1 | B16: Asphalt Section 401 - Base I | E16: ='Order Details'!J7 -> 1
A17: 2 | B17: Asphalt Section 401 - 25mm Superpave | E17: ='Order Details'!J8 -> 0
A18: 3 | B18: Asphalt Section 401 - Base II | E18: ='Order Details'!J9 -> 0
A19: 4 | B19: Asphalt Section 401 - Patch and Level | E19: ='Order Details'!J10 -> 0
A20: 5 | B20: Asphalt Section 401 - Wearing IV | E20: ='Order Details'!J11 -> 0
A21: 6 | B21: Asphalt Section 402 - Wearing IV | E21: ='Order Details'!J12 -> 0
A22: 7 | B22: Asphalt Section 401 - 19mm Superpave | E22: ='Order Details'!J13 -> 0
A23: 8 | B23: Asphalt Section 401 - Scratch Course | E23: ='Order Details'!J14 -> 0
A24: 9 | B24: Asphalt Section 402 - 9.5mm Superpave | E24: ='Order Details'!J15 -> 0
A25: 10 | B25: Asphalt Section 401 - Wearing 1 | E25: ='Order Details'!J16 -> 0
A26: 11 | B26: Asphalt Section 402 - Wearing 1 | E26: ='Order Details'!J17 -> 0
A27: 12 | B27: Asphalt Section 401 - 4.75mm Superpave | E27: ='Order Details'!J18 -> 0
A28: 13 | B28: Asphalt Section 402 - 4.75mm Superpave | E28: ='Order Details'!J19 -> 0
A29: 14 | B29: Asphalt Section 401 - Wearing III | E29: ='Order Details'!J20 -> 0
A30: 15 | B30: Asphalt Section 402 - Wearing III | E30: ='Order Details'!J21 -> 0
A31: 16 | B31: Asphalt Section 401 - 12.5mm Superpave | E31: ='Order Details'!J22 -> 0
A32: 17 | B32: Asphalt Section 402 - 12.5mm Superpave | E32: ='Order Details'!J23 -> 0
A33: 18 | B33: Asphalt Plant Run | E33: ='Order Details'!J24 -> 0
A34: 19 | B34: Surcharge for PG Binder - 64H minus 22 | E34: ='Order Details'!J25 -> 0
A35: 20 | B35: Surcharge for PG Binder - 64E minus 22 - ordered in 400 ton increments | E35: ='Order Details'!J26 -> 0
A36: 21 | B36: ESAL Surcharge - 3 million to 20 million ESALs | E36: ='Order Details'!J27 -> 0
A37: 22 | B37: ESAL Surcharge - Greater than 20 million ESALs | E37: ='Order Details'!J28 -> 0
A38: 23 | B38: Off-Season Plant Opening - First Day | E38: ='Order Details'!J29 -> 0
A39: 24 | B39: Off-Season Plant Opening - Each Additional Day | E39: ='Order Details'!J30 -> 0
